{"text_format":"1","workbook":"xlsx","n_sheets":13,"sheets":["Hoofdmenu","Toelichting","Voorblad","Mededelingen","NAW_gegevens","Kostenverzamelstaat","Specifieke informatie A","Specifieke informatie C","Contractinformatie","Wanbetalers","Controleoverzicht","Blad1","Parameters"],"not_rendered":{"charts":0,"images":1,"macros":1,"external_links":0,"defined_names":92,"comments":0,"pivot_tables":0},"unopened":[],"bounds":{"document_bytes":16777216,"sheet_cells":100000,"rows_first":2000,"rows_last":500,"rows_between":2000,"halvings":0,"cell_chars":16384,"cell_head_chars":4096},"cells_cut":0,"cells_raw":0,"read":"whole","date_system":"1900"}

{"sheet":"Hoofdmenu","index":0,"n_rows":3,"n_cols":2,"rows_kept":3,"cut":false,"hidden":false,"merged":[[0,0,0,1],[1,0,1,1]]}
[" "]
[{"$f":"CONCATENATE(\"KWARTAALSTAAT ZVW \", jaar_id,\" \",kwartaal_id,\"E KWARTAAL\")","v":"KWARTAALSTAAT ZVW 2018 2E KWARTAAL"}]
["Navigatie","Afdrukken"]

{"sheet":"Toelichting","index":1,"n_rows":4,"n_cols":2,"rows_kept":4,"cut":false,"hidden":false,"merged":[]}
[]
[]
[]
[null,{"$f":"CONCATENATE(\" KWARTAALSTAAT ZVW \",jaar_id,\" \",kwartaal_id,\"E KWARTAAL (VERSIE: \",revisie_id,\")\")","v":" KWARTAALSTAAT ZVW 2018 2E KWARTAAL (VERSIE: A)"}]

{"sheet":"Voorblad","index":2,"n_rows":35,"n_cols":4,"rows_kept":35,"cut":false,"hidden":false,"merged":[[15,3,16,11],[13,3,14,11],[17,3,18,11]]}
[null,null,"VOORBLAD"]
[]
[]
[]
[]
["Pagina 1",null,null," "]
[]
[]
[]
[]
[]
[]
[]
[null,null,null,{"$f":"CONCATENATE(\"KWARTAALSTAAT ZVW \",jaar_id)","v":"KWARTAALSTAAT ZVW 2018"}]
[]
[null,null,null,{"$f":"CONCATENATE(kwartaal_id,\"E KWARTAAL\")","v":"2E KWARTAAL"}]
[]
[null,null,null,"SPECIFIEKE INFORMATIE"]
[]
[]
[]
[null,null,null,"    KOSTENVERZAMELSTAAT (SPECIFIEKE INFORMATIE A)"]
[null,null,null,"     ● Informatie risicoverevening (pagina 1 t/m 4)"]
[]
[null,null,null,"    SPECIFIEKE INFORMATIE A"]
[null,null,null,"     ● Informatie risicoverevening (pagina 1 t/m 4)"]
[]
[null,null,null,"    SPECIFIEKE INFORMATIE C"]
[null,null,null,"     ● Specificaties van kosten en productie (pagina 1 t/m 7)"]
[]
[null,null,null,"    CONTRACTINFORMATIE (SPECIFIEKE INFORMATIE C)"]
[null,null,null,"     ● Specificaties van kosten en productie (pagina 1 & 2)"]
[]
[null,null,null,"    WANBETALERS (SPECIFIEKE INFORMATIE C)"]
[null,null,null,"     ● Specificaties van aantallen (pagina 1)"]

{"sheet":"Mededelingen","index":3,"n_rows":49,"n_cols":12,"rows_kept":49,"cut":false,"hidden":false,"merged":[[48,3,48,4]]}
[]
[]
[]
[]
[]
["Pagina 1",null,null,{"$f":"CONCATENATE(\"KWARTAALSTAAT ZVW \", jaar_id,\" \",kwartaal_id,\"E KWARTAAL\")","v":"KWARTAALSTAAT ZVW 2018 2E KWARTAAL"}]
[null,null,null,{"$f":"IF(naw_uzovi_zorgverzekeraar<>\"0000\",CONCATENATE(UPPER(naw_naam_zorgverzekeraar),\", \",UPPER(naw_plaats_zorgverzekeraar)),\"\")","v":""},null,null,null,null,null,null,null,{"$f":"CONCATENATE(\"UZOVI: \",naw_uzovi_zorgverzekeraar)","v":"UZOVI: 0000"}]
[null,null,null,"MEDEDELINGEN :"]
[]
[]
[]
[]
[]
[]
[]
[]
[]
[]
[]
[]
[]
[]
[]
[]
[]
[]
[]
[]
[]
[]
[]
[]
[]
[]
[]
[]
[]
[]
[]
[]
[]
[]
[]
[]
[]
[]
[]
[]
[null,null,null,{"$f":"NOW()","v":"2018-06-18T11:23:02.870"},null,null,null,null,null,null,null,{"$f":"CONCATENATE(\"Mededelingen \",LOWER(A6))","v":"Mededelingen pagina 1"}]

{"sheet":"NAW_gegevens","index":4,"n_rows":40,"n_cols":6,"rows_kept":40,"cut":false,"hidden":false,"merged":[[2,1,2,2],[3,1,3,2]]}
[]
[]
[null,"NAW-GEGEVENS"]
[null,{"$f":"CONCATENATE(\"KWARTAALSTAAT ZVW \", jaar_id,\" \",kwartaal_id,\"E KWARTAAL\")","v":"KWARTAALSTAAT ZVW 2018 2E KWARTAAL"}]
[null," Selecteer uw nummer:","0000 KIES UW UZOVI-NUMMER"]
[null," Uzovi-nummer:",{"$f":"MID(keuze_uzovi_nummer,1,4)","v":"0000"}]
[null," Zorgverzekeraar:"]
[null," Contactpersoon:"]
[null," Telefoonnummer:"]
[null," E-mail:"]
[]
[null,"Let op dat u het goede UZOVI-nummer invult, zie onderstaand overzicht:"]
[]
[null,"UZOVI","NAAM",null,null,"PLAATS"]
[null,"0101","N.V. UNIVÉ ZORG",null,null,"ARNHEM"]
[null,"0104","DELTA LLOYD ZORGVERZEKERING N.V.",null,null,"TILBURG"]
[null,"0201","OHRA ZIEKTEKOSTENVERZEKERINGEN N.V. ",null,null,"TILBURG"]
[null,"0403","ASR BASIS ZIEKTENKOSTENVERZEKERINGEN N.V. ",null,null,"AMERSFOORT"]
[null,"0420","N.V. VGZ CARES ",null,null,"ARNHEM"]
[null,"0699","IZA ZORGVERZEKERAAR N.V.",null,null,"ARNHEM"]
[null,"0736","N.V. ZORGVERZEKERAAR UMC",null,null,"ARNHEM"]
[null,"3311","ZILVEREN KRUIS ACHMEA ZORGVERZEKERINGEN N.V.",null,null,"AMSTERDAM"]
[null,"3313","INTERPOLIS ZORGVERZEKERINGEN N.V.",null,null,"AMSTERDAM"]
[null,"3314","OZF ACHMEA ZORGVERZEKERINGEN N.V.",null,null,"HENGELO"]
[null,3329,"AVÉRO ACHMEA ZORGVERZEKERINGEN N.V.",null,null,"AMSTERDAM"]
[null,3332,"MENZIS ZORGVERZEKERAAR NV",null,null,"WAGENINGEN"]
[null,3333,"ANDERZORG NV",null,null,"GRONINGEN"]
[null,3343,"ONVZ ZIEKTEKOSTENVERZEKERAAR N.V.",null,null,"HOUTEN"]
[null,3351,"FBTO ZORGVERZEKERINGEN N.V.",null,null,"LEEUWARDEN"]
[null,3352,"IPTIQ LIFE S.A.",null,null,"AMSTELVEEN"]
[null,"7029","OWM ZORGVERZEKERAAR 'DSW' U.A.",null,null,"SCHIEDAM"]
[null,"7032","ENO ZORGVERZEKERAAR N.V.",null,null,"DEVENTER"]
[null,"7037","STAD HOLLAND ZORGVERZEKERAAR OWM U.A.",null,null,"SCHIEDAM"]
[null,"7053","OHRA ZORGVERZEKERINGEN  N.V.",null,null,"TILBURG"]
[null,"7054","AZIVO ZORGVERZEKERAAR N.V.",null,null,"DEN HAAG"]
[null,"7084","DE FRIESLAND ZORGVERZEKERAAR N.V.",null,null,"LEEUWARDEN"]
[null,"7085","OWM ZORGVERZEKERAAR ZORG EN ZEKERHEID U.A.",null,null,"LEIDEN"]
[null,"7095","VGZ ZORGVERZEKERAAR N.V.",null,null,"ARNHEM"]
[null,"7119","OWM CENTRALE ZORGVERZEKRAARS GROEP, ZORGVERZEKERAAR UA'",null,null,"TILBURG"]
[null,"9015","VGZ VOOR DE ZORG N.V.",null,null,"ARNHEM"]

{"sheet":"Kostenverzamelstaat","index":5,"n_rows":135,"n_cols":14,"rows_kept":135,"cut":false,"hidden":false,"merged":[[10,8,11,9],[15,3,15,6],[12,7,13,7],[19,3,19,6],[12,9,13,9],[12,8,13,8],[17,3,17,6],[48,11,49,11],[48,13,49,13],[10,12,11,13],[12,12,13,12],[12,13,13,13],[10,10,11,11],[12,11,13,11],[12,10,13,10],[46,10,47,11],[46,12,47,13],[48,12,49,12],[20,3,20,6],[21,3,21,6],[22,3,22,6],[24,3,24,7],[46,8,47,9],[36,3,36,7],[80,12,81,13],[73,3,73,4],[69,3,69,6],[56,3,56,6],[65,3,65,7],[66,3,66,7],[68,3,68,7],[70,3,70,6],[57,3,57,6],[67,3,67,6],[80,8,81,9],[80,10,81,11],[14,3,14,7],[16,3,16,6],[18,3,18,6],[53,3,53,6],[48,10,49,10],[35,3,35,6],[34,3,34,6],[23,3,23,7],[50,3,50,7],[48,7,49,7],[48,8,49,8],[48,9,49,9],[39,3,39,4],[31,3,31,6],[32,3,32,7],[33,3,33,7],[25,3,25,6],[28,3,28,7],[26,3,26,7],[27,3,27,6],[91,3,91,6],[92,3,92,6],[102,3,102,6],[95,3,95,6],[96,3,96,7],[99,3,99,6],[134,3,134,4],[117,3,117,6],[118,3,118,6],[119,3,119,6],[120,3,120,6],[90,3,90,7],[29,3,29,6],[30,3,30,6],[52,3,52,6],[55,3,55,6],[54,3,54,6],[86,3,86,6],[84,3,84,7],[87,3,87,6],[88,3,88,6],[85,3,85,6],[82,7,83,7],[51,3,51,6],[82,10,83,10],[115,11,116,11],[115,13,116,13],[115,12,116,12],[115,10,116,10],[82,9,83,9],[115,9,116,9],[104,3,104,6],[115,8,116,8],[116,3,116,6],[115,3,115,7],[82,13,83,13],[82,12,83,12],[82,8,83,8],[97,3,97,6],[82,11,83,11],[108,3,108,4],[103,3,103,7],[98,3,98,6],[105,3,105,7],[101,3,101,7],[100,3,100,6],[93,3,93,6],[94,3,94,7]]}
[null,null,"INVULSPECIFICATIES SPECIFIEKE INFORMATIE A"]
[]
[]
[]
[]
["Pagina 1",null,null,{"$f":"CONCATENATE(\"KWARTAALSTAAT ZVW \", jaar_id,\" \",kwartaal_id,\"E KWARTAAL\")","v":"KWARTAALSTAAT ZVW 2018 2E KWARTAAL"}]
[null,null,null,"KOSTENVERZAMELSTAAT (SPECIFIEKE INFORMATIE A)"]
[null,null,null,{"$f":"IF(naw_uzovi_zorgverzekeraar<>\"0000\",CONCATENATE(UPPER(naw_naam_zorgverzekeraar),\", \",UPPER(naw_plaats_zorgverzekeraar)),\"\")","v":""},null,null,null,null,null,null,null,null,null,{"$f":"CONCATENATE(\"UZOVI: \",naw_uzovi_zorgverzekeraar)","v":"UZOVI: 0000"}]
[null,null,null,"SPECIFICATIES INFORMATIE RISICOVEREVENING"]
[null,null,null,"KOSTENVERZAMELSTAAT"]
[null,null,null,null,null,null,null,null,{"$f":"CONCATENATE(\"LASTEN \",jaar_id,)","v":"LASTEN 2018"},null,{"$f":"CONCATENATE(\"LASTEN \",jaar_id-1,)","v":"LASTEN 2017"},null,{"$f":"CONCATENATE(\"LASTEN \",jaar_id-2,\" EN OUDER\")","v":"LASTEN 2016 EN OUDER"}]
[]
[null,null,null,null,null,null,null,"\ncode","Lasten 2018 inclusief balanspost ","Ontvangen en geaccepteerde declaraties t/m 2e kwartaal 2018","Lasten 2017 inclusief balanspost","Ontvangen en geaccepteerde declaraties m.b.t. 2017","Lasten 2016 en ouder inclusief balanspost","Ontvangen en geaccepteerde declaraties m.b.t. 2016 en ouder"]
[null,null,null," KOSTENRUBRIEK"]
[null,null,null," 01  HUISARTSENZORG en MDZ"]
[null,null,null," Bijzondere betalingen",null,null,null,"503   "]
[null,null,null," Avond-, nacht- en weekenddiensten",null,null,null,"504   "]
[null,null,null," Inschrijftarieven",null,null,null,"505   "]
[null,null,null," Consulttarieven",null,null,null,"506   "]
[null,null,null," Overige tarieven",null,null,null,"507   "]
[null,null,null," Multidisciplinaire zorg",null,null,null,"510   "]
[null,null,null," Resultaatbeloning en zorgvernieuwing huisartsen",null,null,null,"515   "]
[null,null,null," Resultaatbeloning en zorgvernieuwing MDZ",null,null,null,"516   "]
[null,null,null," TOTAAL RUBRIEK 01",null,null,null,null,{"$f":"SUM(I16:I23)","v":0},0,0,0,0,0]
[null,null,null," 02 FARMACEUTISCHE ZORG"]
[null,null,null," TOTAAL RUBRIEK 02",null,null,null,"520   "]
[null,null,null," 03 VERPLEGING EN VERZORGING "]
[null,null,null," Kosten van verpleging en verzorging ",null,null,null,"530   "]
[null,null,null," 04  MONDZORG"]
[null,null,null," Kosten mondzorg volwassen verzekerden",null,null,null,"560.1"]
[null,null,null," Kosten mondzorg jeugdige verzekerden",null,null,null,"560.2"]
[null,null,null," Kosten gebitsprothesen",null,null,null,"561   "]
[null,null,null," TOTAAL RUBRIEK 04",null,null,null,null,{"$f":"SUM(I30:I32)","v":0},0,0,0,0,0]
[null,null,null," 05  VERLOSKUNDIGE ZORG"]
[null,null,null," Kosten verloskundige zorg door verloskundigen",null,null,null,"580   "]
[null,null,null," Kosten verloskundige zorg door huisartsen",null,null,null,"581   "]
[null,null,null," TOTAAL RUBRIEK 05",null,null,null,null,{"$f":"SUM(I35:I36)","v":0},0,0,0,0,0]
[]
[]
[null,null,null,{"$f":"NOW()","v":"2018-06-18T11:23:02.870"},null,null,null,null,null,null,null,null,null,{"$f":"CONCATENATE(\"Specifieke informatie A, \",LOWER(A6))","v":"Specifieke informatie A, pagina 1"}]
[]
["Pagina 2",null,null,{"$f":"CONCATENATE(\"KWARTAALSTAAT ZVW \", jaar_id,\" \",kwartaal_id,\"E KWARTAAL\")","v":"KWARTAALSTAAT ZVW 2018 2E KWARTAAL"}]
[null,null,null,"KOSTENVERZAMELSTAAT (SPECIFIEKE INFORMATIE A)"]
[null,null,null,{"$f":"IF(naw_uzovi_zorgverzekeraar<>\"0000\",CONCATENATE(UPPER(naw_naam_zorgverzekeraar),\", \",UPPER(naw_plaats_zorgverzekeraar)),\"\")","v":""},null,null,null,null,null,null,null,null,null,{"$f":"CONCATENATE(\"UZOVI: \",naw_uzovi_zorgverzekeraar)","v":"UZOVI: 0000"}]
[null,null,null,"SPECIFICATIES INFORMATIE RISICOVEREVENING"]
[null,null,null,"KOSTENVERZAMELSTAAT - vervolg"]
[null,null,null,null,null,null,null,null,{"$f":"CONCATENATE(\"LASTEN \",jaar_id,)","v":"LASTEN 2018"},null,{"$f":"CONCATENATE(\"LASTEN \",jaar_id-1,)","v":"LASTEN 2017"},null,{"$f":"CONCATENATE(\"LASTEN \",jaar_id-2,\" EN OUDER\")","v":"LASTEN 2016 EN OUDER"}]
[]
[null,null,null,null,null,null,null,"\ncode","Lasten 2018 inclusief balanspost ","Ontvangen en geaccepteerde declaraties t/m 2e kwartaal 2018","Lasten 2017 inclusief balanspost","Ontvangen en geaccepteerde declaraties m.b.t. 2017","Lasten 2016 en ouder inclusief balanspost","Ontvangen en geaccepteerde declaraties m.b.t. 2016 en ouder"]
[null,null,null," KOSTENRUBRIEK"]
[null,null,null," 06  MEDISCH SPECIALISTISCHE ZORG"]
[null,null,null," Kosten specialisten mondziekten en kaakchirurgie",null,null,null,"545   "]
[null,null,null," Overige kosten ziekenhuiszorg en curatieve zorg",null,null,null,"610   "]
[null,null,null," Overige zorgproducten",null,null,null,"611   "]
[null,null,null," Kosten add-ons ",null,null,null,"612   "]
[null,null,null," Integrale kosten van DBC-zorgproduct \n gereguleerde segment  ",null,null,null,"613.1 "]
[null,null,null," Integrale kosten DBC-zorgproduct vrije segment",null,null,null,"615.1 "]
[null,null,null," Integrale kosten extramuraal werkende \n specialisten",null,null,null,"619   "]
[null,null,null," TOTAAL RUBRIEK 06",null,null,null,null,{"$f":"SUM(I52:I58)","v":0},0,0,0,0,0]
[null,null,null," 07  PARAMEDISCHE ZORG"]
[null,null,null," Kosten fysiotherapie",null,null,null,"620   "]
[null,null,null," Kosten oefentherapie Mensendieck/Cesar",null,null,null,"621   "]
[null,null,null," Kosten logopedie",null,null,null,"623   "]
[null,null,null," Kosten ergotherapie",null,null,null,"624   "]
[null,null,null," Kosten dieetadvisering",null,null,null,"625   "]
[null,null,null," TOTAAL RUBRIEK 07",null,null,null,null,{"$f":"SUM(I61:I65)","v":0},0,0,0,0,0]
[null,null,null," 08  HULPMIDDELENZORG"]
[null,null,null," TOTAAL RUBRIEK 08",null,null,null,"640   "]
[null,null,null," 09  ZIEKENVERVOER"]
[null,null,null," Kosten vervoer per ambulance/helikopter",null,null,null,"650   "]
[null,null,null," Kosten vervoer per openbaar vervoer, taxi \n en eigen auto",null,null,null,"651   "]
[null,null,null," TOTAAL RUBRIEK 09",null,null,null,null,{"$f":"SUM(I70:I71)","v":0},0,0,0,0,0]
[]
[null,null,null,{"$f":"NOW()","v":"2018-06-18T11:23:02.870"},null,null,null,null,null,null,null,null,null,{"$f":"CONCATENATE(\"Specifieke informatie A, \",LOWER(A42))","v":"Specifieke informatie A, pagina 2"}]
[]
["Pagina 3",null,null,{"$f":"CONCATENATE(\"KWARTAALSTAAT ZVW \", jaar_id,\" \",kwartaal_id,\"E KWARTAAL\")","v":"KWARTAALSTAAT ZVW 2018 2E KWARTAAL"}]
[null,null,null,"KOSTENVERZAMELSTAAT (SPECIFIEKE INFORMATIE A)"]
[null,null,null,{"$f":"IF(naw_uzovi_zorgverzekeraar<>\"0000\",CONCATENATE(UPPER(naw_naam_zorgverzekeraar),\", \",UPPER(naw_plaats_zorgverzekeraar)),\"\")","v":""},null,null,null,null,null,null,null,null,null,{"$f":"CONCATENATE(\"UZOVI: \",naw_uzovi_zorgverzekeraar)","v":"UZOVI: 0000"}]
[null,null,null,"SPECIFICATIES INFORMATIE RISICOVEREVENING"]
[null,null,null,"KOSTENVERZAMELSTAAT - vervolg"]
[null,null,null,null,null,null,null,null,{"$f":"CONCATENATE(\"LASTEN \",jaar_id,)","v":"LASTEN 2018"},null,{"$f":"CONCATENATE(\"LASTEN \",jaar_id-1,)","v":"LASTEN 2017"},null,{"$f":"CONCATENATE(\"LASTEN \",jaar_id-2,\" EN OUDER\")","v":"LASTEN 2016 EN OUDER"}]
[]
[null,null,null,null,null,null,null,"\ncode","Lasten 2018 inclusief balanspost ","Ontvangen en geaccepteerde declaraties t/m 2e kwartaal 2018","Lasten 2017 inclusief balanspost","Ontvangen en geaccepteerde declaraties m.b.t. 2017","Lasten 2016 en ouder inclusief balanspost","Ontvangen en geaccepteerde declaraties m.b.t. 2016 en ouder"]
[null,null,null," KOSTENRUBRIEK"]
[null,null,null," 10 GENEESKUNDIGE GEESTELIJKE GEZONDHEIDSZORG"]
[null,null,null," Kosten specialistische GGZ met verblijf",null,null,null,"661   "]
[null,null,null," Kosten LGGZ (langdurige GGZ, jaar 2 en 3)",null,null,null,"661.1 "]
[null,null,null," Kosten specialistische GGZ zonder verblijf",null,null,null,"662   "]
[null,null,null," Generalistische basis GGZ",null,null,null,"665"]
[null,null,null," TOTAAL RUBRIEK 10",null,null,null,null,{"$f":"SUM(I86:I89)","v":0},0,0,0,0,0]
[null,null,null," 11  GERIATRISCHE REVALIDATIEZORG"]
[null,null,null," Geriatrische Revalidatie",null,null,null,"670   "]
[null,null,null," Eerstelijnsverblijf ",null,null,null,"671   "]
[null,null,null," TOTAAL RUBRIEK 11",null,null,null,null,{"$f":"SUM(I92:I93)","v":0},{"$f":"SUM(J92:J93)","v":0},{"$f":"SUM(K92)","v":0},{"$f":"SUM(L92)","v":0},{"$f":"SUM(M92)","v":0},{"$f":"SUM(N92)","v":0}]
[null,null,null," 12  KRAAMZORG"]
[null,null,null," TOTAAL RUBRIEK 12",null,null,null,"680   "]
[null,null,null," 13  DIVERSE OVERIGE KOSTEN"]
[null,null,null," Overige kosten",null,null,null,"700   "]
[null,null,null," Overige geneeskundige zorg",null,null,null,"701"]
[null,null,null," Kosten van zorg zintuiglijk gehandicapten ",null,null,null,"702"]
[null,null,null," TOTAAL RUBRIEK 13",null,null,null,null,{"$f":"SUM(I98:I100)","v":0},0,0,0,0,0]
[null,null,null," 15  GRENSOVERSCHRIJDENDE ZORG"]
[null,null,null," TOTAAL RUBRIEK 15",null,null,null,"720   "]
[null,null,null," 16  KWALITEITSGELDEN"]
[null,null,null," TOTAAL RUBRIEK 16",null,null,null,"730   "]
[null,null,null," TOTAAL LASTEN   (bruto-schade, definitie ZIN)",null,null,null,null,{"$f":"SUM(I24,I26,I28,I33,I37,I59,I66,I68,I72,I90,I94,I96,I101,I103,I105)","v":0},{"$f":"SUM(J24,J26,J28,J33,J37,J59,J66,J68,J72,J90,J94,J96,J101,J103,J105)","v":0},0,0,0,0]
[]
[]
[null,null,null,{"$f":"NOW()","v":"2018-06-18T11:23:02.870"},null,null,null,null,null,null,null,null,null,{"$f":"CONCATENATE(\"Specifieke informatie A, \",LOWER(A76))","v":"Specifieke informatie A, pagina 3"}]
[]
["Pagina 4",null,null,{"$f":"CONCATENATE(\"KWARTAALSTAAT ZVW \", jaar_id,\" \",kwartaal_id,\"E KWARTAAL\")","v":"KWARTAALSTAAT ZVW 2018 2E KWARTAAL"}]
[null,null,null,"KOSTENVERZAMELSTAAT (SPECIFIEKE INFORMATIE A)"]
[null,null,null,{"$f":"IF(naw_uzovi_zorgverzekeraar<>\"0000\",CONCATENATE(UPPER(naw_naam_zorgverzekeraar),\", \",UPPER(naw_plaats_zorgverzekeraar)),\"\")","v":""},null,null,null,null,null,null,null,null,null,{"$f":"CONCATENATE(\"UZOVI: \",naw_uzovi_zorgverzekeraar)","v":"UZOVI: 0000"}]
[null,null,null,"SPECIFICATIES INFORMATIE RISICOVEREVENING"]
[null,null,null,"KOSTENVERZAMELSTAAT - vervolg"]
[null,null,null," VERSCHIL POSTEN SCHADE DE NEDERLANDSCHE BANK",null,null,null,null,"Lasten 2018 inclusief balanspost ","Ontvangen en geaccepteerde declaraties t/m 2e kwartaal 2018","Lasten 2017 inclusief balanspost","Ontvangen en geaccepteerde declaraties m.b.t. 2017","Lasten 2016 en ouder inclusief balanspost","Ontvangen en geaccepteerde declaraties m.b.t. 2016 en ouder"]
[null,null,null,null,null,null,null,"code"]
[null,null,null," OPBRENGSTEN VERHAAL",null,null,null,"890.1"]
[null,null,null," SCHADE T.L.V. HET VRIJWILLIG EIGEN RISICO",null,null,null,"910   "]
[null,null,null," SCHADE T.L.V. HET VERPLICHT EIGEN RISICO",null,null,null,"915   "]
[null,null,null," SCHADE-AFHANDELINGSKOSTEN",null,null,null,"920   "]
[]
[]
[]
[]
[]
[]
[]
[]
[]
[]
[]
[]
[]
[null,null,null,{"$f":"NOW()","v":"2018-06-18T11:23:02.870"},null,null,null,null,null,null,null,null,null,{"$f":"CONCATENATE(\"Specifieke informatie A, \",LOWER(A111))","v":"Specifieke informatie A, pagina 4"}]

{"sheet":"Specifieke informatie A","index":6,"n_rows":183,"n_cols":12,"rows_kept":183,"cut":false,"hidden":false,"merged":[[11,11,12,11],[13,3,13,10],[14,3,14,10],[11,3,12,10],[92,3,92,4],[15,3,15,10],[56,9,56,10],[16,3,16,10],[86,9,88,11],[47,3,47,4],[56,11,57,11],[176,9,178,11],[182,3,182,4],[101,9,101,10],[101,11,102,11],[131,9,133,11],[137,3,137,4],[146,9,146,10],[146,11,147,11]]}
[null,null,"INVULSPECIFICATIES SPECIFIEKE INFORMATIE A"]
[]
[]
[]
[]
["Pagina 1",null,null,{"$f":"CONCATENATE(\"KWARTAALSTAAT ZVW \", jaar_id,\" \",kwartaal_id,\"E KWARTAAL\")","v":"KWARTAALSTAAT ZVW 2018 2E KWARTAAL"}]
[null,null,null,"SPECIFIEKE INFORMATIE A"]
[null,null,null,{"$f":"IF(naw_uzovi_zorgverzekeraar<>\"0000\",CONCATENATE(UPPER(naw_naam_zorgverzekeraar),\", \",UPPER(naw_plaats_zorgverzekeraar)),\"\")","v":""},null,null,null,null,null,null,null,{"$f":"CONCATENATE(\"UZOVI: \",naw_uzovi_zorgverzekeraar)","v":"UZOVI: 0000"}]
[]
[null,null,null,"SPECIFICATIES INFORMATIE RISICOVEREVENING"]
[null,null,null,"KOSTEN NAAR DEELBIJDRAGE"]
[null,null,null," KOSTEN NAAR DEELBIJDRAGE",null,null,null,null,null,null,null,"Lasten 2018 inclusief balanspost "]
[]
[null,null,null," Variabele zorgkosten "]
[null,null,null," Vaste zorgkosten"]
[null,null,null," Kosten geneeskundige geestelijke gezondheidszorg "]
[null,null,null," TOTAAL lasten (bruto-schade, definitie ZIN)",null,null,null,null,null,null,null,{"$f":"SUM(L14:L16)","v":0}]
[]
[]
[]
[]
[]
[]
[]
[]
[]
[]
[]
[]
[]
[]
[]
[]
[]
[]
[]
[]
[]
[]
[]
[]
[]
[]
[]
[]
[]
[]
[null,null,null,{"$f":"NOW()","v":"2018-06-18T11:23:02.870"},null,null,null,null,null,null,null,{"$f":"CONCATENATE(\"Specifieke informatie A, \",LOWER(A6))","v":"Specifieke informatie A, pagina 1"}]
[]
["Pagina 2",null,null,{"$f":"CONCATENATE(\"KWARTAALSTAAT ZVW \", jaar_id,\" \",kwartaal_id,\"E KWARTAAL\")","v":"KWARTAALSTAAT ZVW 2018 2E KWARTAAL"}]
[null,null,null,"SPECIFIEKE INFORMATIE A"]
[null,null,null,{"$f":"IF(naw_uzovi_zorgverzekeraar<>\"0000\",CONCATENATE(UPPER(naw_naam_zorgverzekeraar),\", \",UPPER(naw_plaats_zorgverzekeraar)),\"\")","v":""},null,null,null,null,null,null,null,{"$f":"CONCATENATE(\"UZOVI: \",naw_uzovi_zorgverzekeraar)","v":"UZOVI: 0000"}]
[]
[null,null,null,"SPECIFICATIES INFORMATIE RISICOVEREVENING"]
[null,null,null,"VERZEKERDENSTAND NAAR RISICOKLASSE",null,null,null,null,null,null,null,"Peildatum: datum van nominale premieprolongatie"]
[null,null,null,null,null,null,null,null,null,null,null,"voor de maand MEI 2018"]
[null,null,null," LEEFTIJD",null,null,null,null,null,"AANTAL NAAR GESLACHT",null,"TOTAAL \nAANTAL"]
[null,null,null,null,null,null,null,null,null,"MAN","VROUW"]
[null,null,null,"  1a.   0  t/m   1",null,null,null,null,null,null,null,{"$f":"SUM(J59:K59)","v":0}]
[null,null,null,"  1b.   2  t/m   4",null,null,null,null,null,null,null,{"$f":"SUM(J60:K60)","v":0}]
[null,null,null,"  2.     5  t/m   9",null,null,null,null,null,null,null,0]
[null,null,null,"  3.   10  t/m 14",null,null,null,null,null,null,null,0]
[null,null,null,"  4.   15  t/m 19",null,null,null,null,null,null,null,0]
[null,null,null,"  5.   20  t/m 24",null,null,null,null,null,null,null,0]
[null,null,null,"  6.   25  t/m 29",null,null,null,null,null,null,null,0]
[null,null,null,"  7.   30  t/m 34",null,null,null,null,null,null,null,0]
[null,null,null,"  8.   35  t/m 39",null,null,null,null,null,null,null,0]
[null,null,null,"  9.   40  t/m 44",null,null,null,null,null,null,null,0]
[null,null,null," 10.  45  t/m 49",null,null,null,null,null,null,null,0]
[null,null,null," 11.  50  t/m 54",null,null,null,null,null,null,null,0]
[null,null,null," 12.  55  t/m 59",null,null,null,null,null,null,null,0]
[null,null,null," 13.  60  t/m 64",null,null,null,null,null,null,null,0]
[null,null,null," 14.  65  t/m 69",null,null,null,null,null,null,null,0]
[null,null,null," 15.  70  t/m 74",null,null,null,null,null,null,null,0]
[null,null,null," 16.  75  t/m 79",null,null,null,null,null,null,null,0]
[null,null,null," 17.  80  t/m 84",null,null,null,null,null,null,null,0]
[null,null,null," 18.  85  t/m 89",null,null,null,null,null,null,null,0]
[null,null,null," 19.  90 en ouder",null,null,null,null,null,null,null,0]
[null,null,null," TOTAAL",null,null,null,null,null,{"$f":"SUM(J59:J78)","v":0},{"$f":"SUM(K59:K78)","v":0},{"$f":"SUM(L59:L78)","v":0}]
[]
[null,null,null,"VERZEKERDENSTAND NAAR NOMINALE PREMIE",null,null,null,null,null,null,null,"Peildatum: datum van nominale premieprolongatie"]
[null,null,null,null,null,null,null,null,null,null,null,"voor de maand MEI 2018"]
[null,null,null,null,null,null,null,null,null,null,null,"AANTAL"]
[null,null,null," Verzekerden met nominale premie Zvw"]
[null,null,null," Verzekerden zonder nominale premie Zvw"]
[null,null,null," TOTAAL",null,null,null,null,null,null,null,{"$f":"SUM(L84:L85)","v":0}]
[null,null,null,null,null,null,null,null,null,{"$f":"IF(AND(ISBLANK(K78)=FALSE,ISBLANK(L84)=FALSE),IF(L84<SUM(L64:L78),\"ATTENTIE: is het juist dat het aantal verzekerden \nmet nominale premie kleiner is dan het totaal\naantal verzekerden van 20 jaar en ouder?\",\"\"),\"\")","v":""}]
[]
[]
[]
[]
[]
[null,null,null,{"$f":"NOW()","v":"2018-06-18T11:23:02.870"},null,null,null,null,null,null,null,{"$f":"CONCATENATE(\"Specifieke informatie A, \",LOWER(A50))","v":"Specifieke informatie A, pagina 2"}]
[]
["Pagina 3",null,null,{"$f":"CONCATENATE(\"KWARTAALSTAAT ZVW \", jaar_id,\" \",kwartaal_id,\"E KWARTAAL\")","v":"KWARTAALSTAAT ZVW 2018 2E KWARTAAL"}]
[null,null,null,"SPECIFIEKE INFORMATIE A"]
[null,null,null,{"$f":"IF(naw_uzovi_zorgverzekeraar<>\"0000\",CONCATENATE(UPPER(naw_naam_zorgverzekeraar),\", \",UPPER(naw_plaats_zorgverzekeraar)),\"\")","v":""},null,null,null,null,null,null,null,{"$f":"CONCATENATE(\"UZOVI: \",naw_uzovi_zorgverzekeraar)","v":"UZOVI: 0000"}]
[]
[null,null,null,"SPECIFICATIES INFORMATIE RISICOVEREVENING"]
[null,null,null,"VERZEKERDENSTAND NAAR RISICOKLASSE",null,null,null,null,null,null,null,"Peildatum: datum van nominale premieprolongatie"]
[null,null,null,null,null,null,null,null,null,null,null,"voor de maand JUNI 2018"]
[null,null,null," LEEFTIJD",null,null,null,null,null,"AANTAL NAAR GESLACHT",null,"TOTAAL \nAANTAL"]
[null,null,null,null,null,null,null,null,null,"MAN","VROUW"]
[null,null,null,"  1a.   0  t/m   1",null,null,null,null,null,null,null,{"$f":"SUM(J104:K104)","v":0}]
[null,null,null,"  1b.   2  t/m   4",null,null,null,null,null,null,null,{"$f":"SUM(J105:K105)","v":0}]
[null,null,null,"  2.     5  t/m   9",null,null,null,null,null,null,null,0]
[null,null,null,"  3.   10  t/m 14",null,null,null,null,null,null,null,0]
[null,null,null,"  4.   15  t/m 19",null,null,null,null,null,null,null,0]
[null,null,null,"  5.   20  t/m 24",null,null,null,null,null,null,null,0]
[null,null,null,"  6.   25  t/m 29",null,null,null,null,null,null,null,0]
[null,null,null,"  7.   30  t/m 34",null,null,null,null,null,null,null,0]
[null,null,null,"  8.   35  t/m 39",null,null,null,null,null,null,null,0]
[null,null,null,"  9.   40  t/m 44",null,null,null,null,null,null,null,0]
[null,null,null," 10.  45  t/m 49",null,null,null,null,null,null,null,0]
[null,null,null," 11.  50  t/m 54",null,null,null,null,null,null,null,0]
[null,null,null," 12.  55  t/m 59",null,null,null,null,null,null,null,0]
[null,null,null," 13.  60  t/m 64",null,null,null,null,null,null,null,0]
[null,null,null," 14.  65  t/m 69",null,null,null,null,null,null,null,0]
[null,null,null," 15.  70  t/m 74",null,null,null,null,null,null,null,0]
[null,null,null," 16.  75  t/m 79",null,null,null,null,null,null,null,0]
[null,null,null," 17.  80  t/m 84",null,null,null,null,null,null,null,0]
[null,null,null," 18.  85  t/m 89",null,null,null,null,null,null,null,0]
[null,null,null," 19.  90 en ouder",null,null,null,null,null,null,null,0]
[null,null,null," TOTAAL",null,null,null,null,null,{"$f":"SUM(J104:J123)","v":0},{"$f":"SUM(K104:K123)","v":0},{"$f":"SUM(L104:L123)","v":0}]
[]
[null,null,null,"VERZEKERDENSTAND NAAR NOMINALE PREMIE",null,null,null,null,null,null,null,"Peildatum: datum van nominale premieprolongatie"]
[null,null,null,null,null,null,null,null,null,null,null,"voor de maand JUNI 2018"]
[null,null,null,null,null,null,null,null,null,null,null,"AANTAL"]
[null,null,null," Verzekerden met nominale premie Zvw"]
[null,null,null," Verzekerden zonder nominale premie Zvw"]
[null,null,null," TOTAAL",null,null,null,null,null,null,null,{"$f":"SUM(L129:L130)","v":0}]
[null,null,null,null,null,null,null,null,null,{"$f":"IF(AND(ISBLANK(K123)=FALSE,ISBLANK(L129)=FALSE),IF(L129<SUM(L109:L123),\"ATTENTIE: is het juist dat het aantal verzekerden \nmet nominale premie kleiner is dan het totaal\naantal verzekerden van 20 jaar en ouder?\",\"\"),\"\")","v":""}]
[]
[]
[]
[]
[]
[null,null,null,{"$f":"NOW()","v":"2018-06-18T11:23:02.870"},null,null,null,null,null,null,null,{"$f":"CONCATENATE(\"Specifieke informatie A, \",LOWER(A95))","v":"Specifieke informatie A, pagina 3"}]
[]
["Pagina 4",null,null,{"$f":"CONCATENATE(\"KWARTAALSTAAT ZVW \", jaar_id,\" \",kwartaal_id,\"E KWARTAAL\")","v":"KWARTAALSTAAT ZVW 2018 2E KWARTAAL"}]
[null,null,null,"SPECIFIEKE INFORMATIE A"]
[null,null,null,{"$f":"IF(naw_uzovi_zorgverzekeraar<>\"0000\",CONCATENATE(UPPER(naw_naam_zorgverzekeraar),\", \",UPPER(naw_plaats_zorgverzekeraar)),\"\")","v":""},null,null,null,null,null,null,null,{"$f":"CONCATENATE(\"UZOVI: \",naw_uzovi_zorgverzekeraar)","v":"UZOVI: 0000"}]
[]
[null,null,null,"SPECIFICATIES INFORMATIE RISICOVEREVENING"]
[null,null,null,"VERZEKERDENSTAND NAAR RISICOKLASSE",null,null,null,null,null,null,null,"Peildatum: datum van nominale premieprolongatie"]
[null,null,null,null,null,null,null,null,null,null,null,"voor de maand JULI 2018"]
[null,null,null," LEEFTIJD",null,null,null,null,null,"AANTAL NAAR GESLACHT",null,"TOTAAL \nAANTAL"]
[null,null,null,null,null,null,null,null,null,"MAN","VROUW"]
[null,null,null,"  1a.   0  t/m   1",null,null,null,null,null,null,null,{"$f":"SUM(J149:K149)","v":0}]
[null,null,null,"  1b.   2  t/m   4",null,null,null,null,null,null,null,{"$f":"SUM(J150:K150)","v":0}]
[null,null,null,"  2.     5  t/m   9",null,null,null,null,null,null,null,0]
[null,null,null,"  3.   10  t/m 14",null,null,null,null,null,null,null,0]
[null,null,null,"  4.   15  t/m 19",null,null,null,null,null,null,null,0]
[null,null,null,"  5.   20  t/m 24",null,null,null,null,null,null,null,0]
[null,null,null,"  6.   25  t/m 29",null,null,null,null,null,null,null,0]
[null,null,null,"  7.   30  t/m 34",null,null,null,null,null,null,null,0]
[null,null,null,"  8.   35  t/m 39",null,null,null,null,null,null,null,0]
[null,null,null,"  9.   40  t/m 44",null,null,null,null,null,null,null,0]
[null,null,null," 10.  45  t/m 49",null,null,null,null,null,null,null,0]
[null,null,null," 11.  50  t/m 54",null,null,null,null,null,null,null,0]
[null,null,null," 12.  55  t/m 59",null,null,null,null,null,null,null,0]
[null,null,null," 13.  60  t/m 64",null,null,null,null,null,null,null,0]
[null,null,null," 14.  65  t/m 69",null,null,null,null,null,null,null,0]
[null,null,null," 15.  70  t/m 74",null,null,null,null,null,null,null,0]
[null,null,null," 16.  75  t/m 79",null,null,null,null,null,null,null,0]
[null,null,null," 17.  80  t/m 84",null,null,null,null,null,null,null,0]
[null,null,null," 18.  85  t/m 89",null,null,null,null,null,null,null,0]
[null,null,null," 19.  90 en ouder",null,null,null,null,null,null,null,0]
[null,null,null," TOTAAL",null,null,null,null,null,{"$f":"SUM(J149:J168)","v":0},{"$f":"SUM(K149:K168)","v":0},{"$f":"SUM(L149:L168)","v":0}]
[]
[null,null,null,"VERZEKERDENSTAND NAAR NOMINALE PREMIE",null,null,null,null,null,null,null,"Peildatum: datum van nominale premieprolongatie"]
[null,null,null,null,null,null,null,null,null,null,null,"voor de maand JULI 2018"]
[null,null,null,null,null,null,null,null,null,null,null,"AANTAL"]
[null,null,null," Verzekerden met nominale premie Zvw"]
[null,null,null," Verzekerden zonder nominale premie Zvw"]
[null,null,null," TOTAAL",null,null,null,null,null,null,null,{"$f":"SUM(L174:L175)","v":0}]
[null,null,null,null,null,null,null,null,null,{"$f":"IF(AND(ISBLANK(K168)=FALSE,ISBLANK(L174)=FALSE),IF(L174<SUM(L154:L168),\"ATTENTIE: is het juist dat het aantal verzekerden \nmet nominale premie kleiner is dan het totaal\naantal verzekerden van 20 jaar en ouder?\",\"\"),\"\")","v":""}]
[]
[]
[]
[]
[]
[null,null,null,{"$f":"NOW()","v":"2018-06-18T11:23:02.870"},null,null,null,null,null,null,null,{"$f":"CONCATENATE(\"Specifieke informatie A, \",LOWER(A140))","v":"Specifieke informatie A, pagina 4"}]

{"sheet":"Specifieke informatie C","index":7,"n_rows":294,"n_cols":12,"rows_kept":294,"cut":false,"hidden":false,"merged":[[284,3,284,5],[279,10,279,11],[265,3,265,10],[266,3,266,10],[283,3,283,5],[163,3,163,11],[195,3,195,5],[194,3,194,5],[196,3,196,5],[197,3,197,5],[198,3,198,5],[199,5,199,11],[200,3,200,5],[201,3,201,5],[164,3,164,5],[165,3,165,5],[166,3,166,5],[167,3,167,5],[168,3,168,5],[191,10,192,10],[191,6,192,6],[191,8,192,8],[190,8,190,9],[188,3,188,5],[280,11,281,11],[271,11,272,11],[260,11,261,11],[250,3,250,10],[249,3,249,10],[293,3,293,4],[267,3,267,10],[268,3,268,10],[269,3,269,10],[271,3,272,10],[264,3,264,10],[262,3,262,10],[263,3,263,10],[280,6,281,6],[273,3,273,10],[279,6,279,7],[279,3,281,5],[274,3,274,10],[276,3,276,10],[280,7,281,7],[280,8,281,8],[280,9,281,9],[279,8,279,9],[280,10,281,10],[225,3,225,10],[235,3,235,10],[234,3,234,10],[231,3,231,10],[237,3,238,10],[253,3,253,4],[241,3,241,10],[239,3,239,10],[282,3,282,5],[260,3,261,10],[275,3,275,10],[215,3,215,4],[248,3,248,10],[246,3,247,10],[222,11,223,11],[246,11,247,11],[202,3,202,5],[203,3,203,5],[204,3,204,5],[190,6,190,7],[193,3,193,4],[190,3,192,5],[193,5,193,11],[228,11,229,11],[237,11,238,11],[230,3,230,10],[228,3,229,10],[222,3,223,10],[242,3,242,10],[240,3,240,10],[233,3,233,10],[243,3,243,10],[224,3,224,10],[226,3,226,10],[232,3,232,10],[184,3,187,3],[211,3,211,10],[212,3,212,10],[191,7,192,7],[210,3,210,10],[191,9,192,9],[208,3,209,10],[208,11,209,11],[199,3,199,4],[190,10,190,11],[191,11,192,11],[184,4,184,5],[187,4,187,5],[186,4,186,5],[185,4,185,5],[170,3,170,4],[177,8,177,9],[180,3,183,3],[183,4,183,5],[177,6,177,7],[178,7,179,7],[178,9,179,9],[178,6,179,6],[177,3,179,5],[182,4,182,5],[180,4,180,5],[181,4,181,5],[178,10,179,10],[153,11,154,11],[161,10,162,10],[124,3,125,10],[127,3,127,10],[128,3,128,10],[160,10,160,11],[160,8,160,9],[160,3,162,5],[160,6,160,7],[161,9,162,9],[152,3,154,5],[156,3,156,5],[155,3,155,5],[152,6,152,7],[158,3,158,5],[178,11,179,11],[177,10,177,11],[161,11,162,11],[161,7,162,7],[178,8,179,8],[124,11,125,11],[146,5,146,10],[161,6,162,6],[161,8,162,8],[157,3,157,5],[153,7,154,7],[152,8,152,9],[153,9,154,9],[136,3,137,10],[126,3,126,10],[144,3,145,10],[141,3,141,10],[152,10,152,11],[153,10,154,10],[153,8,154,8],[136,11,137,11],[139,3,139,10],[146,3,147,4],[144,11,145,11],[57,11,58,11],[69,3,70,3],[70,4,70,10],[69,4,69,10],[66,3,66,10],[64,3,65,10],[64,11,65,11],[112,3,112,10],[114,3,114,10],[113,3,113,10],[107,3,107,10],[105,3,106,10],[59,3,59,10],[57,3,58,10],[60,3,60,10],[68,3,68,10],[72,3,72,10],[71,3,71,10],[67,3,67,10],[99,3,99,10],[98,3,98,10],[61,3,61,10],[79,3,79,10],[78,3,78,10],[117,3,117,10],[153,6,154,6],[142,3,142,10],[147,5,147,10],[138,3,138,10],[119,3,119,10],[122,3,122,10],[120,3,120,10],[118,3,118,10],[140,3,140,10],[129,3,129,4],[148,3,149,4],[148,5,148,10],[149,5,149,10],[121,3,121,10],[21,3,22,4],[19,5,19,10],[55,3,55,10],[53,3,53,10],[20,5,20,10],[43,3,43,10],[25,3,25,10],[24,3,24,10],[32,3,32,10],[54,3,54,10],[26,3,26,10],[34,3,34,10],[40,3,40,10],[44,3,44,4],[41,3,41,10],[10,11,11,11],[12,3,12,10],[17,11,18,11],[17,3,18,10],[10,3,11,10],[13,3,13,10],[15,3,15,10],[14,3,14,10],[51,11,52,11],[22,5,22,10],[37,11,38,11],[37,3,38,10],[33,3,33,10],[29,11,30,11],[39,3,39,10],[35,3,35,10],[31,3,31,10],[29,3,30,10],[51,3,52,10],[27,3,27,10],[42,3,42,10],[21,5,21,10],[23,3,23,10],[19,3,20,4],[101,3,102,10],[101,11,102,11],[94,3,94,10],[85,3,85,4],[74,11,75,11],[92,11,93,11],[77,3,77,10],[96,5,96,10],[95,5,95,10],[95,3,96,4],[92,3,93,10],[76,3,76,10],[74,3,75,10],[97,3,97,10],[108,3,108,10],[116,3,116,10],[115,3,115,10],[111,3,111,10],[110,3,110,10],[109,3,109,10],[105,11,106,11],[103,8,103,10],[103,3,103,7]]}
[null,null,"INVULSPECIFICATIES SPECIFIEKE INFORMATIE C"]
[]
[]
[]
[]
["Pagina 1",null,null,{"$f":"CONCATENATE(\"KWARTAALSTAAT ZVW \", jaar_id,\" \",kwartaal_id,\"E KWARTAAL\")","v":"KWARTAALSTAAT ZVW 2018 2E KWARTAAL"}]
[null,null,null,"SPECIFIEKE INFORMATIE C"]
[null,null,null,{"$f":"IF(naw_uzovi_zorgverzekeraar<>\"0000\",CONCATENATE(UPPER(naw_naam_zorgverzekeraar),\", \",UPPER(naw_plaats_zorgverzekeraar)),\"\")","v":""},null,null,null,null,null,null,null,{"$f":"CONCATENATE(\"UZOVI: \",naw_uzovi_zorgverzekeraar)","v":"UZOVI: 0000"}]
[null,null,null,"SPECIFICATIES VAN KOSTEN EN PRODUCTIE"]
[null,null,null,"RUBRIEK 01 HUISARTSENZORG"]
[null,null,null,"  CODE 503 - BIJZONDERE BETALINGEN",null,null,null,null,null,null,null,"Ontvangen en geaccepteerde declaraties tot en met 2e kwartaal 2018"]
[]
[null,null,null," Module achterstandsfonds"]
[null,null,null," Module modernisering en innovatie"]
[null,null,null," Overige kosten"]
[null,null,null," TOTAAL code 503",null,null,null,null,null,null,null,{"$f":"SUM(L13:L15)","v":0}]
[]
[null,null,null,"  CODE 506 - CONSULTTARIEVEN",null,null,null,null,null,null,null,"Ontvangen en geaccepteerde declaraties tot en met 2e kwartaal 2018"]
[]
[null,null,null," Kosten consulten huisartsen",null," ≤ 20 minuten"]
[null,null,null,null,null," > 20 minuten"]
[null,null,null," Kosten visites huisartsen",null," ≤ 20 minuten"]
[null,null,null,null,null," > 20 minuten"]
[null,null,null," Kosten telefonisch consulten huisartsen"]
[null,null,null," Kosten e-mailconsulten huisartsen"]
[null,null,null," Kosten consulttarieven POH GGZ"]
[null,null,null," Kosten huisartsenzorg ELV en Intensieve zorg "]
[null,null,null," TOTAAL code 506",null,null,null,null,null,null,null,{"$f":"SUM(L20:L27)","v":0}]
[]
[null,null,null,"  CODE 507 - OVERIGE TARIEVEN",null,null,null,null,null,null,null,"Ontvangen en geaccepteerde declaraties tot en met 2e kwartaal 2018"]
[null,null,null,null,null,null,null,null,null,null,null,"Ontvangen en geaccepteerde declaraties mbt jaar T"]
[null,null,null," Module POH GGZ"]
[null,null,null," S1 Verrichtingen "]
[null,null,null," Vaccinaties"]
[null,null,null," Passantentarieven"]
[null,null,null," TOTAAL code 507",null,null,null,null,null,null,null,{"$f":"SUM(L32:L35)","v":0}]
[]
[null,null,null,"  CODE 510 - MULTIDISCIPLINAIRE ZORG",null,null,null,null,null,null,null,"Ontvangen en geaccepteerde declaraties tot en met 2e kwartaal 2018"]
[null,null,null,null,null,null,null,null,null,null,null,"Ontvangen en geaccepteerde declaraties mbt jaar T"]
[null,null,null," Multidisciplinaire zorgverlening Diabetes Mellitus type 2 en multidisciplinaire zorgverlening Cardiovasculair risicomanagement \n (vergoedingscomponent te verzekeren prestatie Zvw)"]
[null,null,null," Multidisciplinaire zorgverlening COPD (vergoedingscomponent te verzekeren prestatie Zvw) "]
[null,null,null," Ondersteuning en infrastructuur"]
[null,null,null," Programma stoppen met roken"]
[null,null,null," TOTAAL code 510",null,null,null,null,null,null,null,{"$f":"SUM(L40:L43)","v":0}]
[null,null,null,{"$f":"NOW()","v":"2018-06-18T11:23:02.870"},null,null,null,null,null,null,null,{"$f":"CONCATENATE(\"Specifieke informatie C, \",LOWER(A6))","v":"Specifieke informatie C, pagina 1"}]
[]
["Pagina 2",null,null,{"$f":"CONCATENATE(\"KWARTAALSTAAT ZVW \", jaar_id,\" \",kwartaal_id,\"E KWARTAAL\")","v":"KWARTAALSTAAT ZVW 2018 2E KWARTAAL"}]
[null,null,null,"SPECIFIEKE INFORMATIE C"]
[null,null,null,{"$f":"IF(naw_uzovi_zorgverzekeraar<>\"0000\",CONCATENATE(UPPER(naw_naam_zorgverzekeraar),\", \",UPPER(naw_plaats_zorgverzekeraar)),\"\")","v":""},null,null,null,null,null,null,null,{"$f":"CONCATENATE(\"UZOVI: \",naw_uzovi_zorgverzekeraar)","v":"UZOVI: 0000"}]
[null,null,null,"SPECIFICATIES VAN KOSTEN EN PRODUCTIE"]
[null,null,null,"RUBRIEK 01 HUISARTSENZORG"]
[null,null,null,"  CODE 515 - RESULTAATBELONING EN ZORGVERNIEUWING HUISARTSEN",null,null,null,null,null,null,null,"Ontvangen en geaccepteerde declaraties tot en met 2e kwartaal 2018"]
[null,null,null,null,null,null,null,null,null,null,null,"Ontvangen en geaccepteerde declaraties mbt jaar T"]
[null,null,null," Kosten resultaatbeloning huisartsen"]
[null,null,null," Kosten zorgvernieuwing huisartsen"]
[null,null,null," TOTAAL code 515",null,null,null,null,null,null,null,{"$f":"SUM(L54:L55)","v":0}]
[]
[null,null,null,"  CODE 516 - RESULTAATBELONING EN ZORGVERNIEUWING MDZ",null,null,null,null,null,null,null,"Ontvangen en geaccepteerde declaraties tot en met 2e kwartaal 2018"]
[null,null,null,null,null,null,null,null,null,null,null,"Ontvangen en geaccepteerde declaraties mbt jaar T"]
[null,null,null," Kosten resultaatbeloning MDZ"]
[null,null,null," Kosten zorgvernieuwing MDZ"]
[null,null,null," TOTAAL code 516",null,null,null,null,null,null,null,{"$f":"SUM(L60:L61)","v":0}]
[]
[null,null,null,"RUBRIEK 03 VERPLEGING EN VERZORGING"]
[null,null,null,"  CODE 530 - VERPLEGING EN VERZORGING ",null,null,null,null,null,null,null,"Ontvangen en geaccepteerde declaraties tot en met 2e kwartaal 2018"]
[null,null,null,null,null,null,null,null,null,null,null,"Ontvangen en geaccepteerde declaraties mbt jaar T"]
[null,null,null," Kosten verpleging"]
[null,null,null," Kosten verzorging"]
[null,null,null," Kosten PGB"]
[null,null,null," Overige kosten"," Prestatie AIV, Beloning op maat, Experiment bekostiging VenV (prestaties op verzekerdenniveau)"]
[null,null,null,null," Wijkgericht werken, Experiment regelarme instelling, Regionale beschikbaarheidsfunctie, Experimenten \n ketenzorg dementie (prestaties niet op verzekerdenniveau)"]
[null,null,null," Kosten verpleegkundige dagopvang en verblijf bij Intensieve kindzorg"]
[null,null,null," TOTAAL code 530",null,null,null,null,null,null,null,{"$f":"SUM(L67:L72)","v":0}]
[]
[null,null,null,"  CODE 530 - VERPLEGING EN VERZORGING ",null,null,null,null,null,null,null,"AANTAL tot en met 2e kwartaal 2018"]
[null,null,null,null,null,null,null,null,null,null,null,"Ontvangen en geaccepteerde declaraties mbt jaar T"]
[null,null,null," Verpleging"]
[null,null,null," Verzorging"]
[null,null,null," PGB"]
[null,null,null," Verpleegkundige dagopvang en verblijf bij Intensieve kindzorg"]
[]
[]
[]
[]
[]
[null,null,null,{"$f":"NOW()","v":"2018-06-18T11:23:02.870"},null,null,null,null,null,null,null,{"$f":"CONCATENATE(\"Specifieke informatie C, \",LOWER(A47))","v":"Specifieke informatie C, pagina 2"}]
[]
["Pagina 3",null,null,{"$f":"CONCATENATE(\"KWARTAALSTAAT ZVW \", jaar_id,\" \",kwartaal_id,\"E KWARTAAL\")","v":"KWARTAALSTAAT ZVW 2018 2E KWARTAAL"}]
[null,null,null,"SPECIFIEKE INFORMATIE C"]
[null,null,null,{"$f":"IF(naw_uzovi_zorgverzekeraar<>\"0000\",CONCATENATE(UPPER(naw_naam_zorgverzekeraar),\", \",UPPER(naw_plaats_zorgverzekeraar)),\"\")","v":""},null,null,null,null,null,null,null,{"$f":"CONCATENATE(\"UZOVI: \",naw_uzovi_zorgverzekeraar)","v":"UZOVI: 0000"}]
[null,null,null,"SPECIFICATIES VAN KOSTEN EN PRODUCTIE"]
[null,null,null,"RUBRIEK 04 MONDZORG "]
[null,null,null,"  CODE 560.1 - MONDZORG VOLWASSEN VERZEKERDEN",null,null,null,null,null,null,null,"Ontvangen en geaccepteerde declaraties tot en met 2e kwartaal 2018"]
[]
[null,null,null," X   Maken en beoordelen foto's (Röntgendiagnostiek)"]
[null,null,null," Bijzondere tandheelkundige zorg \n (art. 2.7, lid 1, sub a)",null," Implantaten "]
[null,null,null,null,null," Overig"]
[null,null,null," Bijzondere tandheelkundige zorg (art. 2.7, lid 1, b en c)"]
[null,null,null," Bijzondere tandheelkundige zorg (art. 2.7, lid 3), Orthodontie"]
[null,null,null," TOTAAL code 560.1",null,null,null,null,null,null,null,{"$f":"SUM(L95:L99)","v":0}]
[]
[null,null,null,"  CODE 560.1 - MONDZORG VOLWASSEN VERZEKERDEN - vervolg",null,null,null,null,null,null,null,"AANTAL tot en met 2e kwartaal 2018"]
[null,null,null,null,null,null,null,null,null,null,null,"Ontvangen en geaccepteerde declaraties mbt jaar T"]
[null,null,null," Bijzondere tandheelkundige zorg (art. 2.7, lid 1, sub a)",null,null,null,null," Implantaten"]
[]
[null,null,null,"  CODE 560.2 - MONDZORG JEUGDIGE VERZEKERDEN",null,null,null,null,null,null,null,"Ontvangen en geaccepteerde declaraties tot en met 2e kwartaal 2018"]
[null,null,null,null,null,null,null,null,null,null,null,"Ontvangen en geaccepteerde declaraties mbt jaar T"]
[null,null,null," C        Consultatie en diagnostiek"]
[null,null,null," X        Maken en beoordelen foto's"]
[null,null,null," M        Preventieve mondzorg"]
[null,null,null," A+B    Verdoving"]
[null,null,null," V        Vullingen"]
[null,null,null," E        Wortelkanaalbehandelingen"]
[null,null,null," R        Kronen en bruggen"]
[null,null,null," G        Kaakgewrichtbehandelingen "]
[null,null,null," H        Chirurgische ingrepen"]
[null,null,null," P        Uitneembare prothetische voorzieningen"]
[null,null,null," T        Tandvleesbehandelingen "]
[null,null,null," J        Implantaten"]
[null,null,null," Z       Abbonementstarieven"]
[null,null,null," Bijzondere tandheelkundige zorg (art. 2.7, lid 1, sub a,b en c)"]
[null,null,null," Bijzondere tandheelkundige zorg (art. 2.7, lid 3), Orthodontie"]
[null,null,null," TOTAAL code 560.2",null,null,null,null,null,null,null,{"$f":"SUM(L108:L122)","v":0}]
[]
[null,null,null,"  CODE 560.2 - MONDZORG JEUGDIGE VERZEKERDEN - vervolg",null,null,null,null,null,null,null,"AANTAL tot en met 2e kwartaal 2018"]
[null,null,null,null,null,null,null,null,null,null,null,"Ontvangen en geaccepteerde declaraties mbt jaar T"]
[null,null,null," C     Consultatie en diagnostiek (C11, Periodieke controle)"]
[null,null,null," M     Preventieve mondzorg (M01, Preventieve voorlichting en/of instructie) "]
[null,null,null," M     Preventieve mondzorg (M02, Consult voor evaluatie van preventie)"]
[null,null,null,{"$f":"NOW()","v":"2018-06-18T11:23:02.870"},null,null,null,null,null,null,null,{"$f":"CONCATENATE(\"Specifieke informatie C, \",LOWER(A88))","v":"Specifieke informatie C, pagina 3"}]
[]
["Pagina 4",null,null,{"$f":"CONCATENATE(\"KWARTAALSTAAT ZVW \", jaar_id,\" \",kwartaal_id,\"E KWARTAAL\")","v":"KWARTAALSTAAT ZVW 2018 2E KWARTAAL"}]
[null,null,null,"SPECIFIEKE INFORMATIE C "]
[null,null,null,{"$f":"IF(naw_uzovi_zorgverzekeraar<>\"0000\",CONCATENATE(UPPER(naw_naam_zorgverzekeraar),\", \",UPPER(naw_plaats_zorgverzekeraar)),\"\")","v":""},null,null,null,null,null,null,null,{"$f":"CONCATENATE(\"UZOVI: \",naw_uzovi_zorgverzekeraar)","v":"UZOVI: 0000"}]
[null,null,null,"SPECIFICATIES VAN KOSTEN EN PRODUCTIE"]
[null,null,null,"RUBRIEK 04 MONDZORG - vervolg"]
[null,null,null,"  CODE 561 - GEBITSPROTHESEN",null,null,null,null,null,null,null,"Ontvangen en geaccepteerde declaraties tot en met 2e kwartaal 2018"]
[null,null,null,null,null,null,null,null,null,null,null,"Ontvangen en geaccepteerde declaraties mbt jaar T"]
[null,null,null," Volledige conventionele gebitsprothesen voor onder- en/of bovenkaak"]
[null,null,null," Rebasings en reparaties van de conventionele gebitsprothesen "]
[null,null,null," Volledige implantaat gedragen gebitsprothesen voor onder- en/of bovenkaak"]
[null,null,null," Rebasings en reparaties implantaat gedragen gebitsprothesen "]
[null,null,null," TOTAAL code 561",null,null,null,null,null,null,null,{"$f":"SUM(L139:L142)","v":0}]
[]
[null,null,null,"  CODE 561 - GEBITSPROTHESEN - vervolg",null,null,null,null,null,null,null,"AANTAL tot en met 2e kwartaal 2018"]
[null,null,null,null,null,null,null,null,null,null,null,"Ontvangen en geaccepteerde declaraties mbt jaar T"]
[null,null,null," Volledige conventionele \n gebitsprothesen \n ",null," onder en boven"]
[null,null,null,null,null," onder of boven (tellen per kaak) "]
[null,null,null," Volledige implantaat gedragen  \n gebitsprothesen \n ",null," onder en boven"]
[null,null,null,null,null," onder of boven (tellen per kaak) "]
[]
[null,null,null,"RUBRIEK 06 MEDISCH SPECIALISTISCHE ZORG"]
[null,null,null," CODE 610 - OVERIGE KOSTEN \n ZIEKENHUISZORG EN CURATIEVE ZORG",null,null,"Lasten 2018 t/m 2e kwartaal",null,"Lasten 2017 ",null,"Lasten 2016 en ouder"]
[null,null,null,null,null,null,"Lasten 2018 inclusief balanspost","Ontvangen en geaccepteerde declaraties t/m 2e kwartaal 2018","Lasten 2017 inclusief balanspost","Ontvangen en geaccepteerde declaraties m.b.t. 2017","Lasten 2016 en ouder inclusief balanspost ","Ontvangen en geaccepteerde declaraties m.b.t. 2016 en ouder"]
[null,null,null,null,null,null,null,null,"Ontvangen en geaccepteerde declaraties mbt jaar T","Ontvangen en geaccepteerde declaraties mbt jaar T","Ontvangen en geaccepteerde declaraties mbt jaar T","Ontvangen en geaccepteerde declaraties mbt jaar T"]
[null,null,null," Kosten van eerstelijnsdiagnostiek \n aangevraagd door eerstelijnszorg-\n aanbieders geleverd door \n huisartsenlaboratoria "]
[null,null,null," Trombosediensten "]
[null,null,null," SKION en NTS"]
[null,null,null," TOTAAL code 610",null,null,{"$f":"SUM(G156:G158)","v":0},{"$f":"SUM(H156:H158)","v":0},{"$f":"SUM(I156:I158)","v":0},{"$f":"SUM(J156:J158)","v":0},{"$f":"SUM(K156:K158)","v":0},0]
[]
[null,null,null,"  CODE 611 - NAAR INSTELLING",null,null,"Lasten 2018 t/m 2e kwartaal",null,"Lasten 2017 ",null,"Lasten 2016 en ouder"]
[null,null,null,null,null,null,"Lasten 2018 inclusief balanspost","Ontvangen en geaccepteerde declaraties t/m 2e kwartaal 2018","Lasten 2017 inclusief balanspost","Ontvangen en geaccepteerde declaraties m.b.t. 2017","Lasten 2016 en ouder inclusief balanspost ","Ontvangen en geaccepteerde declaraties m.b.t. 2016 en ouder"]
[null,null,null,null,null,null,null,null,"Ontvangen en geaccepteerde declaraties mbt jaar T","Ontvangen en geaccepteerde declaraties mbt jaar T","Ontvangen en geaccepteerde declaraties mbt jaar T","Ontvangen en geaccepteerde declaraties mbt jaar T"]
[null,null,null," Overige zorgproducten"]
[null,null,null," Academische ziekenhuizen"]
[null,null,null," Algemene ziekenhuizen"]
[null,null,null," Zelfstandige behandelcentra"]
[null,null,null," Overige zorgaanbieders"]
[null,null,null," TOTAAL code 611",null,null,{"$f":"SUM(G165:G168)","v":0},{"$f":"SUM(H165:H168)","v":0},{"$f":"SUM(I165:I168)","v":0},{"$f":"SUM(J165:J168)","v":0},{"$f":"SUM(K165:K168)","v":0},{"$f":"SUM(L165:L168)","v":0}]
[]
[null,null,null,{"$f":"NOW()","v":"2018-06-18T11:23:02.870"},null,null,null,null,null,null,null,{"$f":"CONCATENATE(\"Specifieke informatie C, \",LOWER(A132))","v":"Specifieke informatie C, pagina 4"}]
[]
["Pagina 5",null,null,{"$f":"CONCATENATE(\"KWARTAALSTAAT ZVW \", jaar_id,\" \",kwartaal_id,\"E KWARTAAL\")","v":"KWARTAALSTAAT ZVW 2018 2E KWARTAAL"}]
[null,null,null,"SPECIFIEKE INFORMATIE C "]
[null,null,null,{"$f":"IF(naw_uzovi_zorgverzekeraar<>\"0000\",CONCATENATE(UPPER(naw_naam_zorgverzekeraar),\", \",UPPER(naw_plaats_zorgverzekeraar)),\"\")","v":""},null,null,null,null,null,null,null,{"$f":"CONCATENATE(\"UZOVI: \",naw_uzovi_zorgverzekeraar)","v":"UZOVI: 0000"}]
[null,null,null,"SPECIFICATIES VAN KOSTEN EN PRODUCTIE"]
[null,null,null,"RUBRIEK 06 MEDISCH SPECIALISTISCHE ZORG - vervolg"]
[null,null,null," CODE 612 - KOSTEN ADD-ONS NAAR \n INSTELLING",null,null,"Lasten 2018 t/m 2e kwartaal",null,"Lasten 2017 ",null,"Lasten 2016 en ouder"]
[null,null,null,null,null,null,"Lasten 2018 inclusief balanspost","Ontvangen en geaccepteerde declaraties t/m 2e kwartaal 2018","Lasten 2017 inclusief balanspost","Ontvangen en geaccepteerde declaraties m.b.t. 2017","Lasten 2016 en ouder inclusief balanspost ","Ontvangen en geaccepteerde declaraties m.b.t. 2016 en ouder"]
[null,null,null,null,null,null,null,null,"Ontvangen en geaccepteerde declaraties mbt jaar T","Ontvangen en geaccepteerde declaraties mbt jaar T","Ontvangen en geaccepteerde declaraties mbt jaar T","Ontvangen en geaccepteerde declaraties mbt jaar T"]
[null,null,null," Geneesmiddelen"," Academ. ziekenhuizen"]
[null,null,null,null," Algemene ziekenhuizen"]
[null,null,null,null," Zelfst. behandelcentra"]
[null,null,null,null," Overige zorgaanbieders"]
[null,null,null," IC "," Academ. ziekenhuizen"]
[null,null,null,null," Algemene ziekenhuizen"]
[null,null,null,null," Zelfst. behandelcentra"]
[null,null,null,null," Overige zorgaanbieders"]
[null,null,null," TOTAAL code 612",null,null,{"$f":"SUM(G181:G188)","v":0},{"$f":"SUM(H181:H188)","v":0},{"$f":"SUM(I181:I188)","v":0},{"$f":"SUM(J181:J188)","v":0},{"$f":"SUM(K181:K188)","v":0},0]
[]
[null,null,null,"  DBC-ZORGPRODUCTEN NAAR \n  INSTELLING",null,null,"Lasten 2018 t/m 2e kwartaal",null,"Lasten 2017 ",null,"Lasten 2016 en ouder"]
[null,null,null,null,null,null,"Lasten 2018 inclusief balanspost","Ontvangen en geaccepteerde declaraties t/m 2e kwartaal 2018","Lasten 2017 inclusief balanspost","Ontvangen en geaccepteerde declaraties m.b.t. 2017","Lasten 2016 en ouder inclusief balanspost ","Ontvangen en geaccepteerde declaraties m.b.t. 2016 en ouder"]
[null,null,null,null,null,"code",null,null,"Ontvangen en geaccepteerde declaraties mbt jaar T","Ontvangen en geaccepteerde declaraties mbt jaar T","Ontvangen en geaccepteerde declaraties mbt jaar T","Ontvangen en geaccepteerde declaraties mbt jaar T"]
[null,null,null," Integrale kosten DBC-zorgproduct \n gereguleerde segment",null," 613.1"]
[null,null,null," Academische ziekenhuizen"]
[null,null,null," Algemene ziekenhuizen"]
[null,null,null," Zelfstandige behandelcentra"]
[null,null,null," Overige zorgaanbieders"]
[null,null,null," TOTAAL code 613.1",null,null,{"$f":"SUM(G195:G198)","v":0},0,0,0,0,0]
[null,null,null," Integrale kosten DBC-zorgproduct \n vrije segment",null," 615.1 "]
[null,null,null," Academische ziekenhuizen"]
[null,null,null," Algemene ziekenhuizen"]
[null,null,null," Zelfstandige behandelcentra"]
[null,null,null," Overige zorgaanbieders"]
[null,null,null," TOTAAL code 615.1",null,null,{"$f":"SUM(G201:G204)","v":0},0,0,0,0,0]
[]
[null,null,null,"SPECIFICATIES VAN KOSTEN EN PRODUCTIE"]
[null,null,null,"RUBRIEK 10 GENEESKUNDIGE GEESTELIJKE GEZONDHEIDSZORG"]
[null,null,null,"  CODE 662 - SPECIALISTISCHE GGZ ZONDER VERBLIJF",null,null,null,null,null,null,null,"Ontvangen en geaccepteerde declaraties tot en met 2e kwartaal 2018"]
[null,null,null,null,null,null,null,null,null,null,null,"Ontvangen en geaccepteerde declaraties mbt jaar T"]
[null,null,null," Instellingen "]
[null,null,null," Zelfstandig gevestigden"]
[null,null,null," TOTAAL code 662",null,null,null,null,null,null,null,{"$f":"SUM(L211:L212)","v":0}]
[]
[]
[null,null,null,{"$f":"NOW()","v":"2018-06-18T11:23:02.870"},null,null,null,null,null,null,null,{"$f":"CONCATENATE(\"Specifieke informatie C, \",LOWER(A173))","v":"Specifieke informatie C, pagina 5"}]
[]
["Pagina 6",null,null,{"$f":"CONCATENATE(\"KWARTAALSTAAT ZVW \", jaar_id,\" \",kwartaal_id,\"E KWARTAAL\")","v":"KWARTAALSTAAT ZVW 2018 2E KWARTAAL"}]
[null,null,null,"SPECIFIEKE INFORMATIE C "]
[null,null,null,{"$f":"IF(naw_uzovi_zorgverzekeraar<>\"0000\",CONCATENATE(UPPER(naw_naam_zorgverzekeraar),\", \",UPPER(naw_plaats_zorgverzekeraar)),\"\")","v":""},null,null,null,null,null,null,null,{"$f":"CONCATENATE(\"UZOVI: \",naw_uzovi_zorgverzekeraar)","v":"UZOVI: 0000"}]
[null,null,null,"SPECIFICATIES VAN KOSTEN EN PRODUCTIE"]
[null,null,null,"RUBRIEK 10 GENEESKUNDIGE GEESTELIJKE GEZONDHEIDSZORG - vervolg"]
[null,null,null,"  CODE 665 - GENERALISTISCHE BASIS GGZ",null,null,null,null,null,null,null,"Ontvangen en geaccepteerde declaraties tot en met 2e kwartaal 2018"]
[null,null,null,null,null,null,null,null,null,null,null,"Ontvangen en geaccepteerde declaraties mbt jaar T"]
[null,null,null," Instellingen "]
[null,null,null," Zelfstandig gevestigden"]
[null,null,null," TOTAAL code 665",null,null,null,null,null,null,null,{"$f":"SUM(L225:L226)","v":0}]
[]
[null,null,null,"  CODE 665 - GENERALISTISCHE BASIS GGZ",null,null,null,null,null,null,null,"Ontvangen en geaccepteerde declaraties tot en met 2e kwartaal 2018"]
[null,null,null,null,null,null,null,null,null,null,null,"Ontvangen en geaccepteerde declaraties mbt jaar T"]
[null,null,null," Basis GGZ - Kort"]
[null,null,null," Basis GGZ - Middel"]
[null,null,null," Basis GGZ - Intensief "]
[null,null,null," Basis GGZ - Chronisch"]
[null,null,null," Onvolledig behandeltraject"]
[null,null,null," TOTAAL code 665",null,null,null,null,null,null,null,{"$f":"SUM(L231:L235)","v":0}]
[]
[null,null,null,"  CODE 665 - GENERALISTISCHE BASIS GGZ",null,null,null,null,null,null,null,"AANTAL tot en met 2e kwartaal 2018"]
[]
[null,null,null," Basis GGZ - Kort"]
[null,null,null," Basis GGZ - Middel"]
[null,null,null," Basis GGZ - Intensief "]
[null,null,null," Basis GGZ - Chronisch"]
[null,null,null," Onvolledig behandeltraject"]
[]
[null,null,null,"RUBRIEK 13 DIVERSE OVERIGE KOSTEN"]
[null,null,null," CODE 700 - OVERIGE KOSTEN",null,null,null,null,null,null,null,"Ontvangen en geaccepteerde declaraties tot en met 2e kwartaal 2018"]
[null,null,null,null,null,null,null,null,null,null,null,"Ontvangen en geaccepteerde declaraties mbt jaar T"]
[null,null,null," Kosten i.v.m. beleidsregel innovatie t.b.v. nieuwe zorgprestaties "]
[null,null,null," Kosten Integrale geboortezorg "]
[null,null,null," TOTAAL code 700",null,null,null,null,null,null,null,{"$f":"SUM(L249:L250)","v":0}]
[]
[]
[null,null,null,{"$f":"NOW()","v":"2018-06-18T11:23:02.870"},null,null,null,null,null,null,null,{"$f":"CONCATENATE(\"Specifieke informatie C, \",LOWER(A218))","v":"Specifieke informatie C, pagina 6"}]
[]
["Pagina 7",null,null,{"$f":"CONCATENATE(\"KWARTAALSTAAT ZVW \", jaar_id,\" \",kwartaal_id,\"E KWARTAAL\")","v":"KWARTAALSTAAT ZVW 2018 2E KWARTAAL"}]
[null,null,null,"SPECIFIEKE INFORMATIE C "]
[null,null,null,{"$f":"IF(naw_uzovi_zorgverzekeraar<>\"0000\",CONCATENATE(UPPER(naw_naam_zorgverzekeraar),\", \",UPPER(naw_plaats_zorgverzekeraar)),\"\")","v":""},null,null,null,null,null,null,null,{"$f":"CONCATENATE(\"UZOVI: \",naw_uzovi_zorgverzekeraar)","v":"UZOVI: 0000"}]
[null,null,null,"SPECIFICATIES VAN KOSTEN EN PRODUCTIE"]
[null,null,null,"RUBRIEK 13 DIVERSE OVERIGE KOSTEN"]
[null,null,null," CODE 701 - OVERIGE GENEESKUNDIGE ZORG",null,null,null,null,null,null,null,"Ontvangen en geaccepteerde declaraties tot en met 2e kwartaal 2018"]
[null,null,null,null,null,null,null,null,null,null,null,"Ontvangen en geaccepteerde declaraties mbt jaar T"]
[null,null,null," Geneeskundige individuele zorg bij tuberculose en infectieziekten door GGD'en"]
[null,null,null," Huidtherapie"]
[null,null,null," Orthoptie"]
[null,null,null," Optometrie"]
[null,null,null," Kosten voetzorg bij Diabetes Mellitus type 2"]
[null,null,null," Koemelkallergietest (niet horend bij Multidisciplinaire Zorg) "]
[null,null,null," Regiefunctie complexe wondzorg"]
[null,null,null," TOTAAL code 701",null,null,null,null,null,null,null,{"$f":"SUM(L263:L269)","v":0}]
[]
[null,null,null," CODE 702 - ZINTUIGLIJK GEHANDICAPTEN",null,null,null,null,null,null,null,"Ontvangen en geaccepteerde declaraties tot en met 2e kwartaal 2018"]
[null,null,null,null,null,null,null,null,null,null,null,"Ontvangen en geaccepteerde declaraties mbt jaar T"]
[null,null,null," Kosten van zorg ivm visuele beperking"]
[null,null,null," Kosten van zorg ivm auditieve beperking"]
[null,null,null," Kosten van zorg ivm taalontwikkelingsstoornis"]
[null,null,null," TOTAAL code 702",null,null,null,null,null,null,null,{"$f":"SUM(L274:L276)","v":0}]
[]
[null,null,null,"RUBRIEK 15 GRENSOVERSCHRIJDENDE ZORG "]
[null,null,null,"  CODE 720 GRENSOVERSCHRIJDENDE \n                  ZORG",null,null,"Lasten 2018 t/m 2e kwartaal",null,"Lasten 2017 ",null,"Lasten 2016 en ouder"]
[null,null,null,null,null,null,"Lasten 2018 inclusief balanspost","Ontvangen en geaccepteerde declaraties t/m 2e kwartaal 2018","Lasten 2017 inclusief balanspost","Ontvangen en geaccepteerde declaraties m.b.t. 2017","Lasten 2016 en ouder inclusief balanspost ","Ontvangen en geaccepteerde declaraties m.b.t. 2016 en ouder"]
[null,null,null,null,null,"CVZ-code",null,null,"Ontvangen en geaccepteerde declaraties mbt jaar T","Ontvangen en geaccepteerde declaraties mbt jaar T","Ontvangen en geaccepteerde declaraties mbt jaar T","Ontvangen en geaccepteerde declaraties mbt jaar T"]
[null,null,null," Kosten naar toepassing verordening \n of verdrag, via internationaal \n verbindingsorgaan",null,null,null,null,{"$f":"J283","v":0},null,{"$f":"L283","v":0}]
[null,null,null," Kosten gemaakt in het buitenland \n via verzekeraar"]
[null,null,null," TOTAAL code 720",null,null,{"$f":"SUM(G283:G284)","v":0},0,0,0,0,0]
[]
[]
[]
[]
[]
[]
[]
[]
[null,null,null,{"$f":"NOW()","v":"2018-06-18T11:23:02.870"},null,null,null,null,null,null,null,{"$f":"CONCATENATE(\"Specifieke informatie C, \",LOWER(A256))","v":"Specifieke informatie C, pagina 7"}]

{"sheet":"Contractinformatie","index":8,"n_rows":90,"n_cols":11,"rows_kept":90,"cut":false,"hidden":false,"merged":[[20,3,20,9],[37,3,37,9],[36,3,36,9],[58,3,58,9],[54,3,54,9],[55,3,55,9],[53,3,53,9],[52,3,52,9],[57,3,57,9],[56,3,56,9],[45,3,45,4],[43,3,43,9],[26,3,26,9],[35,3,35,9],[21,3,21,9],[22,3,22,9],[33,3,33,9],[25,3,25,9],[27,3,27,9],[34,3,34,9],[29,3,29,9],[32,3,32,9],[28,3,28,9],[11,3,11,9],[13,3,13,9],[14,3,14,9],[19,3,19,9],[15,3,15,9],[12,3,12,10],[16,3,16,9],[17,3,17,10],[18,3,18,9],[89,3,89,4],[59,3,59,9],[60,3,60,9],[62,3,62,9],[63,3,63,9],[70,3,70,9],[67,3,67,9],[68,3,68,9],[69,3,69,9],[66,3,66,9],[73,3,73,9],[74,3,74,10],[75,3,75,9],[76,3,76,9],[77,3,77,9],[78,3,78,9],[38,3,38,9],[39,3,39,9],[42,3,42,9],[84,3,84,9],[79,3,79,10],[80,3,80,9],[81,3,81,9],[82,3,82,9],[83,3,83,9],[40,3,40,9]]}
[null,null,"INVULSPECIFICATIES SPECIFIEKE INFORMATIE C"]
[]
[]
[]
[]
["Pagina 1",null,null,{"$f":"CONCATENATE(\"KWARTAALSTAAT ZVW \", jaar_id,\" \",kwartaal_id,\"E KWARTAAL\")","v":"KWARTAALSTAAT ZVW 2018 2E KWARTAAL"}]
[null,null,null,"SPECIFIEKE INFORMATIE C - CONTRACTINFORMATIE"]
[null,null,null,{"$f":"IF(naw_uzovi_zorgverzekeraar<>\"0000\",CONCATENATE(UPPER(naw_naam_zorgverzekeraar),\", \",UPPER(naw_plaats_zorgverzekeraar)),\"\")","v":""},null,null,null,null,null,null,{"$f":"CONCATENATE(\"UZOVI: \",naw_uzovi_zorgverzekeraar)","v":"UZOVI: 0000"}]
[]
[]
[null,null,null," CONTRACTINFORMATIE HUISARTSENZORG EN MULTIDISCIPLINAIRE ZORG, rubriek 01"]
[null,null,null,null,null,null,null,null,null,null,"Lasten inclusief balanspost 2018"]
[null,null,null," Huisartsenzorg, codes 503, 504, 505, 506, 507, 515"]
[null,null,null," Gecontracteerde zorg"]
[null,null,null," Lopende onderhandelingen"]
[null,null,null," Niet gecontracteerde zorg"]
[null,null,null," Subtotaal huisartsenzorg",null,null,null,null,null,null,{"$f":"SUM(K14:K16)","v":0}]
[null,null,null," Multidisciplinaire zorg, codes 510 en 516"]
[null,null,null," Gecontracteerde zorg"]
[null,null,null," Lopende onderhandelingen"]
[null,null,null," Niet gecontracteerde zorg"]
[null,null,null," Subtotaal multidisciplinaire zorg",null,null,null,null,null,null,{"$f":"SUM(K19:K21)","v":0}]
[null,null,null," TOTAAL RUBRIEK 01 ",null,null,null,null,null,null,{"$f":"SUM(K17+K22)","v":0}]
[]
[null,null,null," CONTRACTINFORMATIE VERPLEGING EN VERZORGING, rubriek 03"]
[null,null,null,null,null,null,null,null,null,null,"Lasten inclusief balanspost 2018"]
[null,null,null," Gecontracteerde zorg"]
[null,null,null," Lopende onderhandelingen"]
[null,null,null," Niet gecontracteerde zorg"]
[null,null,null," TOTAAL RUBRIEK 03",null,null,null,null,null,null,{"$f":"SUM(K27:K29)","v":0}]
[]
[null,null,null," CONTRACTINFORMATIE MEDISCH SPECIALISTISCHE ZORG, rubriek 06"]
[null,null,null,null,null,null,null,null,null,null,"Lasten inclusief balanspost 2018"]
[null,null,null," Gecontracteerde zorg: aanneemsom"]
[null,null,null," Gecontracteerde zorg: plafond"]
[null,null,null," Gecontracteerde zorg: nacalculatie bij aanneemsommen en plafondcontracten"]
[null,null,null," Gecontracteerde zorg: open einde contract"]
[null,null,null," Subtotaal gecontracteerde zorg",null,null,null,null,null,null,{"$f":"SUM(K34:K37)","v":0}]
[null,null,null," Lopende onderhandelingen"]
[null,null,null," Niet gecontracteerde zorg"]
[null,null,null," TOTAAL RUBRIEK 06 ",null,null,null,null,null,null,{"$f":"SUM(K38:K40)","v":0}]
[]
[null,null,null,null,null,null,null,null,null,null,2018]
[null,null,null," Totaal afgesproken maximumomzet plafondcontracten"]
[]
[null,null,null,{"$f":"NOW()","v":"2018-06-18T11:23:02.870"},null,null,null,null,null,null,{"$f":"CONCATENATE(\"Specifieke informatie C - Contractinformatie, \",LOWER(A6))","v":"Specifieke informatie C - Contractinformatie, pagina 1"}]
[]
["Pagina 2",null,null,{"$f":"CONCATENATE(\"KWARTAALSTAAT ZVW \", jaar_id,\" \",kwartaal_id,\"E KWARTAAL\")","v":"KWARTAALSTAAT ZVW 2018 2E KWARTAAL"}]
[null,null,null,"SPECIFIEKE INFORMATIE C - CONTRACTINFORMATIE"]
[null,null,null,{"$f":"IF(naw_uzovi_zorgverzekeraar<>\"0000\",CONCATENATE(UPPER(naw_naam_zorgverzekeraar),\", \",UPPER(naw_plaats_zorgverzekeraar)),\"\")","v":""},null,null,null,null,null,null,{"$f":"CONCATENATE(\"UZOVI: \",naw_uzovi_zorgverzekeraar)","v":"UZOVI: 0000"}]
[]
[null,null,null," CONTRACTINFORMATIE GENEESKUNDIGE GEESTELIJKE GEZONDHEIDSZORG, rubriek 10"]
[null,null,null,null,null,null,null,null,null,null,"Lasten inclusief balanspost 2018"]
[null,null,null," Gecontracteerde zorg: aanneemsom"]
[null,null,null," Gecontracteerde zorg: plafond"]
[null,null,null," Gecontracteerde zorg: nacalculatie bij aanneemsommen en plafondcontracten"]
[null,null,null," Gecontracteerde zorg: open einde contract"]
[null,null,null," Subtotaal gecontracteerde zorg",null,null,null,null,null,null,{"$f":"SUM(K54:K57)","v":0}]
[null,null,null," Lopende onderhandelingen"]
[null,null,null," Niet gecontracteerde zorg"]
[null,null,null," TOTAAL RUBRIEK 10",null,null,null,null,null,null,{"$f":"SUM(K58:K60)","v":0}]
[]
[null,null,null,null,null,null,null,null,null,null,2018]
[null,null,null," Totaal afgesproken maximumomzet plafondcontracten"]
[]
[null,null,null," CONTRACTINFORMATIE ZINTUIGLIJK GEHANDICAPTEN, code 702 "]
[null,null,null,null,null,null,null,null,null,null,"Lasten inclusief balanspost 2018"]
[null,null,null," Gecontracteerde zorg"]
[null,null,null," Lopende onderhandelingen"]
[null,null,null," Niet gecontracteerde zorg"]
[null,null,null," TOTAAL CODE 702",null,null,null,null,null,null,{"$f":"SUM(K68:K70)","v":0}]
[]
[null,null,null," CONTRACTINFORMATIE GERIATRISCHE REVALIDATIEZORG & EERSTELIJNSVERBLIJF, rubriek 11"]
[null,null,null,null,null,null,null,null,null,null,"Lasten inclusief balanspost 2018"]
[null,null,null," Geriatrische Revalidatie zorg, code 670"]
[null,null,null," Gecontracteerde zorg"]
[null,null,null," Lopende onderhandelingen"]
[null,null,null," Niet gecontracteerde zorg"]
[null,null,null," Subtotaal Geriatrische Revalidatie zorg",null,null,null,null,null,null,{"$f":"SUM(K76:K78)","v":0}]
[null,null,null," Eerstelijnsverblijf, code 671"]
[null,null,null," Gecontracteerde zorg"]
[null,null,null," Lopende onderhandelingen"]
[null,null,null," Niet gecontracteerde zorg"]
[null,null,null," Subtotaal Eerstelijnsverblijf ",null,null,null,null,null,null,{"$f":"SUM(K81:K83)","v":0}]
[null,null,null," TOTAAL RUBRIEK 11",null,null,null,null,null,null,{"$f":"SUM(K79+K84)","v":0}]
[]
[]
[]
[]
[null,null,null,{"$f":"NOW()","v":"2018-06-18T11:23:02.870"},null,null,null,null,null,null,{"$f":"CONCATENATE(\"Specifieke informatie C - Contractinformatie, \",LOWER(A48))","v":"Specifieke informatie C - Contractinformatie, pagina 2"}]

{"sheet":"Wanbetalers","index":9,"n_rows":49,"n_cols":11,"rows_kept":49,"cut":false,"hidden":false,"merged":[[26,3,26,7],[48,3,48,4],[27,3,27,7],[17,3,17,7],[19,3,19,7],[20,3,20,7],[21,3,21,7],[22,3,22,7],[24,3,24,7],[25,3,25,7],[15,3,15,7],[16,3,16,7],[10,3,10,7],[11,3,11,7],[12,3,12,7],[13,3,13,7]]}
[null,null,"INVULSPECIFICATIES SPECIFIEKE INFORMATIE C"]
[]
[]
[]
[]
["Pagina 1",null,null,{"$f":"CONCATENATE(\"KWARTAALSTAAT ZVW \", jaar_id,\" \",kwartaal_id,\"E KWARTAAL\")","v":"KWARTAALSTAAT ZVW 2018 2E KWARTAAL"}]
[null,null,null,"SPECIFIEKE INFORMATIE C - WANBETALERS"]
[null,null,null,{"$f":"IF(naw_uzovi_zorgverzekeraar<>\"0000\",CONCATENATE(UPPER(naw_naam_zorgverzekeraar),\", \",UPPER(naw_plaats_zorgverzekeraar)),\"\")","v":""},null,null,null,null,null,null,{"$f":"CONCATENATE(\"UZOVI: \",naw_uzovi_zorgverzekeraar)","v":"UZOVI: 0000"}]
[]
[null,null,null,"SPECIFICATIES VAN WANBETALERS"]
[null,null,null,null,null,null,null,null,"AANTAL \napril","AANTAL \nmei","AANTAL \njuni"]
[null,null,null," Verzekeringnemers die een achterstand in de premiebetaling hebben van \n twee of meer, maar minder dan vier volle maandpremies."]
[null,null,null," Verzekeringnemers die een achterstand in de premiebetaling hebben van \n vier of meer, maar minder dan zes volle maandpremies."]
[null,null,null," Verzekeringnemers die een achterstand in de premiebetaling hebben van \n zes of meer volle maandpremies."]
[]
[null,null,null,null,null,null,null,null,"AANTAL \napril","AANTAL \nmei","AANTAL \njuni"]
[null,null,null," Verstuurde tweedemaandsbrieven"]
[null,null,null," Verstuurde vierdemaandsbrieven"]
[]
[null,null,null,null,null,null,null,null,"AANTAL \napril","AANTAL \nmei","AANTAL \njuni"]
[null,null,null," Debiteuren met een interne betalingsregeling, al dan niet uitsluitend \n voor premiebetaling."]
[null,null,null," Debiteuren met een externe betalingsregeling, al dan niet uitsluitend \n voor premiebetaling."]
[null,null,null," Actieve stabilisatieovereenkomsten voor premiebetaling."]
[]
[null,null,null,null,null,null,null,null,"AANTAL \napril","AANTAL \nmei","AANTAL \njuni"]
[null,null,null," Wanbetalers bij CAK aangemeld met een betalingsachterstand van minder \n dan € 250."]
[null,null,null," Wanbetalers bij CAK aangemeld met een betalingsachterstand van \n meer dan € 250, maar minder dan € 750."]
[null,null,null," Wanbetalers bij CAK aangemeld met een betalingsachterstand van meer \n dan € 750."]
[]
[]
[]
[]
[]
[]
[]
[]
[]
[]
[]
[]
[]
[]
[]
[]
[]
[]
[]
[]
[null,null,null,{"$f":"NOW()","v":"2018-06-18T11:23:02.870"},null,null,null,null,null,null,{"$f":"CONCATENATE(\"Specifieke informatie C - Wanbetalers, \",LOWER(A6))","v":"Specifieke informatie C - Wanbetalers, pagina 1"}]

{"sheet":"Controleoverzicht","index":10,"n_rows":181,"n_cols":12,"rows_kept":181,"cut":false,"hidden":false,"merged":[[176,3,176,8],[169,3,170,8],[169,9,170,9],[169,10,170,10],[169,11,170,11],[171,3,171,8],[172,3,172,8],[173,3,173,8],[174,3,174,8],[175,3,175,8],[56,3,57,8],[42,3,42,8],[44,3,44,8],[45,3,45,8],[56,11,57,11],[56,10,57,10],[56,9,57,9],[9,9,10,9],[84,3,84,8],[9,3,10,8],[11,3,11,8],[15,3,16,8],[12,3,12,8],[13,3,13,8],[29,3,29,8],[30,3,30,8],[28,3,28,8],[9,10,10,10],[24,3,24,8],[26,3,26,8],[23,3,23,8],[25,3,25,8],[15,11,16,11],[15,9,16,9],[85,3,85,8],[86,3,86,8],[87,3,87,8],[88,3,88,8],[89,3,89,8],[90,3,90,8],[72,3,72,8],[69,3,69,8],[71,3,71,8],[70,3,70,8],[91,3,91,8],[73,3,73,8],[76,11,77,11],[64,3,64,8],[68,3,68,8],[62,3,62,8],[31,3,31,8],[33,3,33,8],[38,3,38,8],[67,3,67,8],[61,3,61,8],[36,3,36,8],[34,3,34,8],[59,3,59,8],[35,3,35,8],[32,3,32,8],[40,3,40,8],[41,3,41,8],[39,3,39,8],[65,3,65,8],[63,3,63,8],[60,3,60,8],[58,3,58,8],[43,3,43,8],[133,3,133,8],[126,3,126,8],[130,3,131,8],[127,3,127,8],[128,3,128,8],[137,3,137,8],[76,10,77,10],[116,3,116,8],[114,3,114,8],[119,3,119,8],[105,3,105,8],[76,3,77,8],[102,10,103,10],[125,3,125,8],[124,3,124,8],[123,3,123,8],[76,9,77,9],[78,3,78,8],[79,3,79,8],[80,3,80,8],[81,3,81,8],[92,3,92,8],[82,3,82,8],[83,3,83,8],[166,3,166,11],[155,11,156,11],[155,10,156,10],[161,3,161,8],[155,9,156,9],[165,3,165,10],[155,3,156,8],[164,3,164,10],[37,3,37,8],[66,3,66,8],[146,11,147,11],[146,10,147,10],[146,9,147,9],[146,3,147,8],[104,3,104,8],[102,9,103,9],[130,11,131,11],[130,9,131,9],[130,10,131,10],[134,3,134,8],[132,3,132,8],[136,3,136,8],[135,3,135,8],[148,3,148,8],[162,3,162,8],[151,3,151,8],[150,3,150,8],[149,3,149,8],[160,3,160,8],[159,3,159,8],[158,3,158,8],[157,3,157,8],[153,3,153,8],[152,3,152,8],[121,11,122,11],[118,3,118,8],[102,3,103,8],[106,3,106,8],[112,11,113,11],[112,10,113,10],[112,3,113,8],[107,3,107,8],[102,11,103,11],[115,3,115,8],[121,10,122,10],[117,3,117,8],[121,9,122,9],[112,9,113,9],[121,3,122,8],[109,3,109,8],[108,3,108,8],[110,3,110,8],[9,11,10,11],[19,11,20,11],[19,9,20,9],[19,10,20,10],[21,3,21,8],[17,3,17,8],[19,3,20,8],[27,3,27,8],[22,3,22,8],[15,10,16,10]]}
[null,null,"CONTROLEOVERZICHT"]
[]
[]
[]
[]
["Pagina 1",null,null,{"$f":"CONCATENATE(\"KWARTAALSTAAT ZVW \", jaar_id,\" \",kwartaal_id,\"E KWARTAAL\")","v":"KWARTAALSTAAT ZVW 2018 2E KWARTAAL"}]
[null,null,null,"CONTROLEOVERZICHT"]
[null,null,null,{"$f":"IF(naw_uzovi_zorgverzekeraar<>\"0000\",CONCATENATE(UPPER(naw_naam_zorgverzekeraar),\", \",UPPER(naw_plaats_zorgverzekeraar)),\"\")","v":""},null,null,null,null,null,null,null,{"$f":"CONCATENATE(\"UZOVI: \",naw_uzovi_zorgverzekeraar)","v":"UZOVI: 0000"}]
[null,null,null,"SPECIFIEKE INFORMATIE A"]
[null,null,null," VERZEKERDENSTANDEN",null,null,null,null,null,"MEI","JUNI","JULI"]
[]
[null,null,null," Verzekerdenstand naar risicoklasse",null,null,null,null,null,{"$f":"'Specifieke informatie A'!L79","v":0},{"$f":"'Specifieke informatie A'!L124","v":0},{"$f":"'Specifieke informatie A'!L169","v":0}]
[null,null,null," Verzekerdenstand naar nominale premie",null,null,null,null,null,{"$f":"'Specifieke informatie A'!L86","v":0},{"$f":"'Specifieke informatie A'!L131","v":0},{"$f":"'Specifieke informatie A'!L176","v":0}]
[null,null,null," Verschil",null,null,null,null,null,{"$f":"IF(J12<>J13,J12-J13,\"\")","v":""},{"$f":"IF(K12<>K13,K12-K13,\"\")","v":""},""]
[]
[null,null,null," KOSTENSPECIFICATIES",null,null,null,null,null,"VOLGENS\nKOSTENVER- \nZAMELSTAAT","VOLGENS\nDETAIL- \nSPECIFICATIE ","VERSCHIL"]
[]
[null,null,null," Totaal kosten t.l.v. deelbijdragen (totaal lasten t/m rubriek 16)\n - inclusief balanspost",null,null,null,null,null,{"$f":"Kostenverzamelstaat!I106","v":0},{"$f":"'Specifieke informatie A'!L17","v":0},{"$f":"IF(J18<>K18,J18-K18,\"\")","v":""}]
[]
[null,null,null," KOSTENVERZAMELSTAAT",null,null,null,null,null,"Kosten balanspost 2016","Kosten balanspost 2017","Kosten balanspost 2018"]
[]
[null,null,null," 503 Bijzondere betalingen",null,null,null,null,null,{"$f":"Kostenverzamelstaat!M16-Kostenverzamelstaat!N16","v":0},{"$f":"Kostenverzamelstaat!K16-Kostenverzamelstaat!L16","v":0},{"$f":"Kostenverzamelstaat!I16-Kostenverzamelstaat!J16","v":0}]
[null,null,null," 504 Avond-, nacht- en weekenddiensten",null,null,null,null,null,{"$f":"Kostenverzamelstaat!M17-Kostenverzamelstaat!N17","v":0},{"$f":"Kostenverzamelstaat!K17-Kostenverzamelstaat!L17","v":0},{"$f":"Kostenverzamelstaat!I17-Kostenverzamelstaat!J17","v":0}]
[null,null,null," 505 Inschrijftarieven",null,null,null,null,null,{"$f":"Kostenverzamelstaat!M18-Kostenverzamelstaat!N18","v":0},{"$f":"Kostenverzamelstaat!K18-Kostenverzamelstaat!L18","v":0},{"$f":"Kostenverzamelstaat!I18-Kostenverzamelstaat!J18","v":0}]
[null,null,null," 506 Consulttarieven",null,null,null,null,null,{"$f":"Kostenverzamelstaat!M19-Kostenverzamelstaat!N19","v":0},{"$f":"Kostenverzamelstaat!K19-Kostenverzamelstaat!L19","v":0},{"$f":"Kostenverzamelstaat!I19-Kostenverzamelstaat!J19","v":0}]
[null,null,null," 507 Overige tarieven",null,null,null,null,null,{"$f":"Kostenverzamelstaat!M20-Kostenverzamelstaat!N20","v":0},{"$f":"Kostenverzamelstaat!K20-Kostenverzamelstaat!L20","v":0},{"$f":"Kostenverzamelstaat!I20-Kostenverzamelstaat!J20","v":0}]
[null,null,null," 510 Multidisciplinaire zorg",null,null,null,null,null,{"$f":"Kostenverzamelstaat!M21-Kostenverzamelstaat!N21","v":0},{"$f":"Kostenverzamelstaat!K21-Kostenverzamelstaat!L21","v":0},{"$f":"Kostenverzamelstaat!I21-Kostenverzamelstaat!J21","v":0}]
[null,null,null," 515 Resultaatbeloning en zorgvernieuwing huisartsen",null,null,null,null,null,{"$f":"Kostenverzamelstaat!M22-Kostenverzamelstaat!N22","v":0},{"$f":"Kostenverzamelstaat!K22-Kostenverzamelstaat!L22","v":0},{"$f":"Kostenverzamelstaat!I22-Kostenverzamelstaat!J22","v":0}]
[null,null,null," 516 Resultaatbeloning en zorgvernieuwing MDZ",null,null,null,null,null,{"$f":"Kostenverzamelstaat!M23-Kostenverzamelstaat!N23","v":0},{"$f":"Kostenverzamelstaat!K23-Kostenverzamelstaat!L23","v":0},{"$f":"Kostenverzamelstaat!I23-Kostenverzamelstaat!J23","v":0}]
[null,null,null," 520 Farmaceutische zorg",null,null,null,null,null,{"$f":"Kostenverzamelstaat!M26-Kostenverzamelstaat!N26","v":0},{"$f":"Kostenverzamelstaat!K26-Kostenverzamelstaat!L26","v":0},{"$f":"Kostenverzamelstaat!I26-Kostenverzamelstaat!J26","v":0}]
[null,null,null," 530 Kosten van verpleging en verzorging",null,null,null,null,null,{"$f":"Kostenverzamelstaat!M28-Kostenverzamelstaat!N28","v":0},{"$f":"Kostenverzamelstaat!K28-Kostenverzamelstaat!L28","v":0},{"$f":"Kostenverzamelstaat!I28-Kostenverzamelstaat!J28","v":0}]
[null,null,null," 545 Kosten specialisten mondziekten en kaakchirurgie",null,null,null,null,null,{"$f":"Kostenverzamelstaat!M52-Kostenverzamelstaat!N52","v":0},{"$f":"Kostenverzamelstaat!K52-Kostenverzamelstaat!L52","v":0},{"$f":"Kostenverzamelstaat!I52-Kostenverzamelstaat!J52","v":0}]
[null,null,null," 560.1 Kosten mondzorg volwassen verzekerden",null,null,null,null,null,{"$f":"Kostenverzamelstaat!M30-Kostenverzamelstaat!N30","v":0},{"$f":"Kostenverzamelstaat!K30-Kostenverzamelstaat!L30","v":0},{"$f":"Kostenverzamelstaat!I30-Kostenverzamelstaat!J30","v":0}]
[null,null,null," 560.2 Kosten mondzorg jeugdige verzekerden",null,null,null,null,null,{"$f":"Kostenverzamelstaat!M31-Kostenverzamelstaat!N31","v":0},{"$f":"Kostenverzamelstaat!K31-Kostenverzamelstaat!L31","v":0},{"$f":"Kostenverzamelstaat!I31-Kostenverzamelstaat!J31","v":0}]
[null,null,null," 561 Kosten gebitsprothesen",null,null,null,null,null,{"$f":"Kostenverzamelstaat!M32-Kostenverzamelstaat!N32","v":0},{"$f":"Kostenverzamelstaat!K32-Kostenverzamelstaat!L32","v":0},{"$f":"Kostenverzamelstaat!I32-Kostenverzamelstaat!J32","v":0}]
[null,null,null," 580 Kosten verloskundige zorg door verloskundigen",null,null,null,null,null,{"$f":"Kostenverzamelstaat!M35-Kostenverzamelstaat!N35","v":0},{"$f":"Kostenverzamelstaat!K35-Kostenverzamelstaat!L35","v":0},{"$f":"Kostenverzamelstaat!I35-Kostenverzamelstaat!J35","v":0}]
[null,null,null," 581 Kosten verloskundige zorg door huisartsen",null,null,null,null,null,{"$f":"Kostenverzamelstaat!M36-Kostenverzamelstaat!N36","v":0},{"$f":"Kostenverzamelstaat!K36-Kostenverzamelstaat!L36","v":0},{"$f":"Kostenverzamelstaat!I36-Kostenverzamelstaat!J36","v":0}]
[null,null,null," 610 Overige kosten ziekenhuiszorg en curatieve zorg",null,null,null,null,null,{"$f":"Kostenverzamelstaat!M53-Kostenverzamelstaat!N53","v":0},{"$f":"Kostenverzamelstaat!K53-Kostenverzamelstaat!L53","v":0},{"$f":"Kostenverzamelstaat!I53-Kostenverzamelstaat!J53","v":0}]
[null,null,null," 611 Overige zorgproducten",null,null,null,null,null,{"$f":"Kostenverzamelstaat!M54-Kostenverzamelstaat!N54","v":0},{"$f":"Kostenverzamelstaat!K54-Kostenverzamelstaat!L54","v":0},{"$f":"Kostenverzamelstaat!I54-Kostenverzamelstaat!J54","v":0}]
[null,null,null," 612 Kosten add-ons ",null,null,null,null,null,{"$f":"Kostenverzamelstaat!M55-Kostenverzamelstaat!N55","v":0},{"$f":"Kostenverzamelstaat!K55-Kostenverzamelstaat!L55","v":0},{"$f":"Kostenverzamelstaat!I55-Kostenverzamelstaat!J55","v":0}]
[null,null,null," 613.1 Integrale kosten van DBC-zorgproduct gereguleerde segment ",null,null,null,null,null,{"$f":"Kostenverzamelstaat!M56-Kostenverzamelstaat!N56","v":0},{"$f":"Kostenverzamelstaat!K56-Kostenverzamelstaat!L56","v":0},{"$f":"Kostenverzamelstaat!I56-Kostenverzamelstaat!J56","v":0}]
[null,null,null," 615.1 Integrale kosten van DBC-zorgproduct vrije segment",null,null,null,null,null,{"$f":"Kostenverzamelstaat!M57-Kostenverzamelstaat!N57","v":0},{"$f":"Kostenverzamelstaat!K57-Kostenverzamelstaat!L57","v":0},{"$f":"Kostenverzamelstaat!I57-Kostenverzamelstaat!J57","v":0}]
[null,null,null," 619 Integrale kosten extramuraal werkende specialisten",null,null,null,null,null,{"$f":"Kostenverzamelstaat!M58-Kostenverzamelstaat!N58","v":0},{"$f":"Kostenverzamelstaat!K58-Kostenverzamelstaat!L58","v":0},{"$f":"Kostenverzamelstaat!I58-Kostenverzamelstaat!J58","v":0}]
[null,null,null," 620 Kosten fysiotherapie",null,null,null,null,null,{"$f":"Kostenverzamelstaat!M61-Kostenverzamelstaat!N61","v":0},{"$f":"Kostenverzamelstaat!K61-Kostenverzamelstaat!L61","v":0},{"$f":"Kostenverzamelstaat!I61-Kostenverzamelstaat!J61","v":0}]
[null,null,null," 621 Kosten oefentherapie Mensendieck/Cesar",null,null,null,null,null,{"$f":"Kostenverzamelstaat!M62-Kostenverzamelstaat!N62","v":0},{"$f":"Kostenverzamelstaat!K62-Kostenverzamelstaat!L62","v":0},{"$f":"Kostenverzamelstaat!I62-Kostenverzamelstaat!J62","v":0}]
[null,null,null," 623 Kosten logopedie",null,null,null,null,null,{"$f":"Kostenverzamelstaat!M63-Kostenverzamelstaat!N63","v":0},{"$f":"Kostenverzamelstaat!K63-Kostenverzamelstaat!L63","v":0},{"$f":"Kostenverzamelstaat!I63-Kostenverzamelstaat!J63","v":0}]
[]
[]
[]
[]
[null,null,null,{"$f":"NOW()","v":"2018-06-18T11:23:02.870"},null,null,null,null,null,null,null,{"$f":"CONCATENATE(\"Controleoverzicht \",LOWER(A6))","v":"Controleoverzicht pagina 1"}]
[]
["Pagina 2",null,null,{"$f":"CONCATENATE(\"KWARTAALSTAAT ZVW \", jaar_id,\" \",kwartaal_id,\"E KWARTAAL\")","v":"KWARTAALSTAAT ZVW 2018 2E KWARTAAL"}]
[null,null,null,"CONTROLEOVERZICHT"]
[null,null,null,{"$f":"IF(naw_uzovi_zorgverzekeraar<>\"0000\",CONCATENATE(UPPER(naw_naam_zorgverzekeraar),\", \",UPPER(naw_plaats_zorgverzekeraar)),\"\")","v":""},null,null,null,null,null,null,null,{"$f":"CONCATENATE(\"UZOVI: \",naw_uzovi_zorgverzekeraar)","v":"UZOVI: 0000"}]
[null,null,null,"SPECIFIEKE INFORMATIE A - vervolg"]
[null,null,null," KOSTENVERZAMELSTAAT",null,null,null,null,null,"Kosten balanspost 2016","Kosten balanspost 2017","Kosten balanspost 2018"]
[]
[null,null,null," 624 Kosten ergotherapie",null,null,null,null,null,{"$f":"Kostenverzamelstaat!M64-Kostenverzamelstaat!N64","v":0},{"$f":"Kostenverzamelstaat!K64-Kostenverzamelstaat!L64","v":0},{"$f":"Kostenverzamelstaat!I64-Kostenverzamelstaat!J64","v":0}]
[null,null,null," 625 Kosten dieetadvisering ",null,null,null,null,null,{"$f":"Kostenverzamelstaat!M65-Kostenverzamelstaat!N65","v":0},{"$f":"Kostenverzamelstaat!K65-Kostenverzamelstaat!L65","v":0},{"$f":"Kostenverzamelstaat!I65-Kostenverzamelstaat!J65","v":0}]
[null,null,null," 640 Hulpmiddelenzorg",null,null,null,null,null,{"$f":"Kostenverzamelstaat!M68-Kostenverzamelstaat!N68","v":0},{"$f":"Kostenverzamelstaat!K68-Kostenverzamelstaat!L68","v":0},{"$f":"Kostenverzamelstaat!I68-Kostenverzamelstaat!J68","v":0}]
[null,null,null," 650 Kosten vervoer per ambulance/helikopter",null,null,null,null,null,{"$f":"Kostenverzamelstaat!M70-Kostenverzamelstaat!N70","v":0},{"$f":"Kostenverzamelstaat!K70-Kostenverzamelstaat!L70","v":0},{"$f":"Kostenverzamelstaat!I70-Kostenverzamelstaat!J70","v":0}]
[null,null,null," 651 Kosten vervoer per openbaar vervoer, taxi en eigen auto",null,null,null,null,null,{"$f":"Kostenverzamelstaat!M71-Kostenverzamelstaat!N71","v":0},{"$f":"Kostenverzamelstaat!K71-Kostenverzamelstaat!L71","v":0},{"$f":"Kostenverzamelstaat!I71-Kostenverzamelstaat!J71","v":0}]
[null,null,null," 661 Kosten specialistische GGZ met verblijf",null,null,null,null,null,{"$f":"Kostenverzamelstaat!M86-Kostenverzamelstaat!N86","v":0},{"$f":"Kostenverzamelstaat!K86-Kostenverzamelstaat!L86","v":0},{"$f":"Kostenverzamelstaat!I86-Kostenverzamelstaat!J86","v":0}]
[null,null,null," 661.1 Kosten LGGZ (langdurige GGZ, jaar 2 en 3)",null,null,null,null,null,{"$f":"Kostenverzamelstaat!M87-Kostenverzamelstaat!N87","v":0},{"$f":"Kostenverzamelstaat!K87-Kostenverzamelstaat!L87","v":0},{"$f":"Kostenverzamelstaat!I87-Kostenverzamelstaat!J87","v":0}]
[null,null,null," 662 Kosten specialistische GGZ zonder verblijf",null,null,null,null,null,{"$f":"Kostenverzamelstaat!M88-Kostenverzamelstaat!N88","v":0},{"$f":"Kostenverzamelstaat!K88-Kostenverzamelstaat!L88","v":0},{"$f":"Kostenverzamelstaat!I88-Kostenverzamelstaat!J88","v":0}]
[null,null,null," 665 Generalistische basis GGZ",null,null,null,null,null,{"$f":"Kostenverzamelstaat!M89-Kostenverzamelstaat!N89","v":0},{"$f":"Kostenverzamelstaat!K89-Kostenverzamelstaat!L89","v":0},{"$f":"Kostenverzamelstaat!I89-Kostenverzamelstaat!J89","v":0}]
[null,null,null," 670 Geriatrische revalidatiezorg",null,null,null,null,null,{"$f":"Kostenverzamelstaat!M92-Kostenverzamelstaat!N92","v":0},{"$f":"Kostenverzamelstaat!K92-Kostenverzamelstaat!L92","v":0},{"$f":"Kostenverzamelstaat!I92-Kostenverzamelstaat!J92","v":0}]
[null,null,null," 680 Kraamzorg",null,null,null,null,null,{"$f":"Kostenverzamelstaat!M96-Kostenverzamelstaat!N96","v":0},{"$f":"Kostenverzamelstaat!K96-Kostenverzamelstaat!L96","v":0},{"$f":"Kostenverzamelstaat!I96-Kostenverzamelstaat!J96","v":0}]
[null,null,null," 700 Overige kosten",null,null,null,null,null,{"$f":"Kostenverzamelstaat!M98-Kostenverzamelstaat!N98","v":0},{"$f":"Kostenverzamelstaat!K98-Kostenverzamelstaat!L98","v":0},{"$f":"Kostenverzamelstaat!I98-Kostenverzamelstaat!J98","v":0}]
[null,null,null," 701 Overige geneeskundige zorg",null,null,null,null,null,{"$f":"Kostenverzamelstaat!M99-Kostenverzamelstaat!N99","v":0},{"$f":"Kostenverzamelstaat!K99-Kostenverzamelstaat!L99","v":0},{"$f":"Kostenverzamelstaat!I99-Kostenverzamelstaat!J99","v":0}]
[null,null,null," 702 Kosten van zorg zintuiglijk gehandicapten ",null,null,null,null,null,{"$f":"Kostenverzamelstaat!M100-Kostenverzamelstaat!N100","v":0},{"$f":"Kostenverzamelstaat!K100-Kostenverzamelstaat!L100","v":0},{"$f":"Kostenverzamelstaat!I100-Kostenverzamelstaat!J100","v":0}]
[null,null,null," 720 Grensoverschrijdende zorg",null,null,null,null,null,{"$f":"Kostenverzamelstaat!M103-Kostenverzamelstaat!N103","v":0},{"$f":"Kostenverzamelstaat!K103-Kostenverzamelstaat!L103","v":0},{"$f":"Kostenverzamelstaat!I103-Kostenverzamelstaat!J103","v":0}]
[null,null,null," 730 Kwaliteitsgelden",null,null,null,null,null,{"$f":"Kostenverzamelstaat!M105-Kostenverzamelstaat!N105","v":0},{"$f":"Kostenverzamelstaat!K105-Kostenverzamelstaat!L105","v":0},{"$f":"Kostenverzamelstaat!I105-Kostenverzamelstaat!J105","v":0}]
[]
[null,null,null,"VERGELIJKING SPECIFIEKE INFORMATIE A EN C"]
[null,null,null,"KOSTEN PER CODENUMMER\n(ONTVANGEN EN GEACCEPTEERDE DECLARATIES \nT/M 2E KWARTAAL 2018)",null,null,null,null,null,"Spec. inform. A\nkostenver-\nzamelstaat","Spec. inform. C\ndetail-\ninformatie","VERSCHIL"]
[]
[null,null,null," 503 Bijzondere betalingen",null,null,null,null,null,{"$f":"Kostenverzamelstaat!J16","v":0},{"$f":"'Specifieke informatie C'!L16","v":0},{"$f":"J79-K79","v":0}]
[null,null,null," 506 Consulttarieven",null,null,null,null,null,{"$f":"Kostenverzamelstaat!J19","v":0},{"$f":"'Specifieke informatie C'!L28","v":0},{"$f":"J80-K80","v":0}]
[null,null,null," 507 Overige tarieven",null,null,null,null,null,{"$f":"Kostenverzamelstaat!J20","v":0},{"$f":"'Specifieke informatie C'!L36","v":0},{"$f":"J81-K81","v":0}]
[null,null,null," 510 Multidisciplinaire zorg",null,null,null,null,null,{"$f":"Kostenverzamelstaat!J21","v":0},{"$f":"'Specifieke informatie C'!L44","v":0},0]
[null,null,null," 515 Resultaatbeloning en zorgvernieuwing huisartsen",null,null,null,null,null,{"$f":"Kostenverzamelstaat!J22","v":0},{"$f":"'Specifieke informatie C'!L56","v":0},0]
[null,null,null," 516 Resultaatbeloning en zorgvernieuwing MDZ",null,null,null,null,null,{"$f":"Kostenverzamelstaat!J23","v":0},{"$f":"'Specifieke informatie C'!L62","v":0},0]
[null,null,null," 530 Kosten van verpleging en verzorging",null,null,null,null,null,{"$f":"Kostenverzamelstaat!J28","v":0},{"$f":"'Specifieke informatie C'!L73","v":0},{"$f":"J85-K85","v":0}]
[null,null,null," 560.1 Mondzorg volwassen verzekerden",null,null,null,null,null,{"$f":"Kostenverzamelstaat!J30","v":0},{"$f":"'Specifieke informatie C'!L100","v":0},{"$f":"J86-K86","v":0}]
[null,null,null," 560.2 Mondzorg jeugdige verzekerden",null,null,null,null,null,{"$f":"Kostenverzamelstaat!J31","v":0},{"$f":"'Specifieke informatie C'!L123","v":0},{"$f":"J87-K87","v":0}]
[null,null,null," 561 Gebitsprothesen",null,null,null,null,null,{"$f":"Kostenverzamelstaat!J32","v":0},{"$f":"'Specifieke informatie C'!L143","v":0},0]
[null,null,null," 610 Overige kosten ziekenhuiszorg en curatieve zorg",null,null,null,null,null,{"$f":"Kostenverzamelstaat!J53","v":0},{"$f":"'Specifieke informatie C'!H159","v":0},0]
[null,null,null," 611 Overige zorgproducten (naar instelling)",null,null,null,null,null,{"$f":"Kostenverzamelstaat!J54","v":0},{"$f":"'Specifieke informatie C'!H169","v":0},0]
[null,null,null," 612 Kosten add-on's ",null,null,null,null,null,{"$f":"Kostenverzamelstaat!J55","v":0},{"$f":"'Specifieke informatie C'!H189","v":0},0]
[null,null,null," 613.1 Integrale kosten DBC-zorgproduct gereguleerd segment",null,null,null,null,null,{"$f":"Kostenverzamelstaat!J56","v":0},{"$f":"'Specifieke informatie C'!H199","v":0},0]
[null,null,null," 615.1 Integrale kosten DBC-zorgproduct vrije segment",null,null,null,null,null,{"$f":"Kostenverzamelstaat!J57","v":0},{"$f":"'Specifieke informatie C'!H205","v":0},0]
[]
[]
[null,null,null,{"$f":"NOW()","v":"2018-06-18T11:23:02.870"},null,null,null,null,null,null,null,{"$f":"CONCATENATE(\"Controleoverzicht \",LOWER(A53))","v":"Controleoverzicht pagina 2"}]
[]
["Pagina 3",null,null,{"$f":"CONCATENATE(\"KWARTAALSTAAT ZVW \", jaar_id,\" \",kwartaal_id,\"E KWARTAAL\")","v":"KWARTAALSTAAT ZVW 2018 2E KWARTAAL"}]
[null,null,null,"CONTROLEOVERZICHT"]
[null,null,null,{"$f":"IF(naw_uzovi_zorgverzekeraar<>\"0000\",CONCATENATE(UPPER(naw_naam_zorgverzekeraar),\", \",UPPER(naw_plaats_zorgverzekeraar)),\"\")","v":""},null,null,null,null,null,null,null,{"$f":"CONCATENATE(\"UZOVI: \",naw_uzovi_zorgverzekeraar)","v":"UZOVI: 0000"}]
[]
[null,null,null,"VERGELIJKING SPECIFIEKE INFORMATIE A EN C - vervolg"]
[null,null,null,"KOSTEN PER CODENUMMER \n(ONTVANGEN EN GEACCEPTEERDE DECLARATIES \n T/M 2E KWARTAAL 2018)",null,null,null,null,null,"Spec. inform. A\nkostenver-\nzamelstaat","Spec. inform. C\ndetail-\ninformatie","VERSCHIL"]
[]
[null,null,null," 662 GGZ zonder verblijf ",null,null,null,null,null,{"$f":"Kostenverzamelstaat!J88","v":0},{"$f":"'Specifieke informatie C'!L213","v":0},{"$f":"J105-K105","v":0}]
[null,null,null," 665 Generalistische basis GGZ (naar instelling)",null,null,null,null,null,{"$f":"Kostenverzamelstaat!J89","v":0},{"$f":"'Specifieke informatie C'!L227","v":0},{"$f":"J106-K106","v":0}]
[null,null,null," 665 Generalistische basis GGZ",null,null,null,null,null,{"$f":"Kostenverzamelstaat!J89","v":0},{"$f":"'Specifieke informatie C'!L236","v":0},0]
[null,null,null," 700 Overige kosten",null,null,null,null,null,{"$f":"Kostenverzamelstaat!J98","v":0},{"$f":"'Specifieke informatie C'!L251","v":0},0]
[null,null,null," 701 Overige geneeskundige zorg",null,null,null,null,null,{"$f":"Kostenverzamelstaat!J99","v":0},{"$f":"'Specifieke informatie C'!L270","v":0},0]
[null,null,null," 702 Kosten van zorg zintuiglijk gehandicapten ",null,null,null,null,null,{"$f":"Kostenverzamelstaat!J100","v":0},{"$f":"'Specifieke informatie C'!L277","v":0},0]
[null,null,null," 720 Grensoverschrijdende zorg",null,null,null,null,null,{"$f":"Kostenverzamelstaat!J103","v":0},{"$f":"'Specifieke informatie C'!H285","v":0},0]
[]
[null,null,null," KOSTEN PER CODENUMMER (KOSTEN INCLUSIEF BALANSPOST) 2018",null,null,null,null,null,"Spec. inform. A\nkostenver-\nzamelstaat","Spec. inform. C\ndetail-\ninformatie","VERSCHIL"]
[]
[null,null,null," 610 Overige kosten ziekenhuiszorg en curatieve zorg",null,null,null,null,null,{"$f":"Kostenverzamelstaat!I53","v":0},{"$f":"'Specifieke informatie C'!G159","v":0},{"$f":"J115-K115","v":0}]
[null,null,null," 611 Overige zorgproducten (naar instelling)",null,null,null,null,null,{"$f":"Kostenverzamelstaat!I54","v":0},{"$f":"'Specifieke informatie C'!G169","v":0},{"$f":"J116-K116","v":0}]
[null,null,null," 612 Kosten add-on's ",null,null,null,null,null,{"$f":"Kostenverzamelstaat!I55","v":0},{"$f":"'Specifieke informatie C'!G189","v":0},0]
[null,null,null," 613.1 Integrale kosten DBC-zorgproduct gereguleerd segment",null,null,null,null,null,{"$f":"Kostenverzamelstaat!I56","v":0},{"$f":"'Specifieke informatie C'!G199","v":0},0]
[null,null,null," 615.1 Integrale kosten DBC-zorgproduct vrije segment",null,null,null,null,null,{"$f":"Kostenverzamelstaat!I57","v":0},{"$f":"'Specifieke informatie C'!G205","v":0},0]
[null,null,null," 720 Grensoverschrijdende zorg",null,null,null,null,null,{"$f":"Kostenverzamelstaat!I103","v":0},{"$f":"'Specifieke informatie C'!G285","v":0},0]
[]
[null,null,null," KOSTEN PER CODENUMMER (KOSTEN INCLUSIEF BALANSPOST) 2017",null,null,null,null,null,"Spec. inform. A\nkostenver-\nzamelstaat","Spec. inform. C\ndetail-\ninformatie","VERSCHIL"]
[]
[null,null,null," 610 Overige kosten ziekenhuiszorg en curatieve zorg",null,null,null,null,null,{"$f":"Kostenverzamelstaat!K53","v":0},{"$f":"'Specifieke informatie C'!I159","v":0},{"$f":"J124-K124","v":0}]
[null,null,null," 611 Overige zorgproducten (naar instelling)",null,null,null,null,null,{"$f":"Kostenverzamelstaat!K54","v":0},{"$f":"'Specifieke informatie C'!I169","v":0},{"$f":"J125-K125","v":0}]
[null,null,null," 612 Kosten add-on's ",null,null,null,null,null,{"$f":"Kostenverzamelstaat!K55","v":0},{"$f":"'Specifieke informatie C'!I189","v":0},0]
[null,null,null," 613.1 Integrale kosten DBC-zorgproduct gereguleerd segment",null,null,null,null,null,{"$f":"Kostenverzamelstaat!K56","v":0},{"$f":"'Specifieke informatie C'!I199","v":0},0]
[null,null,null," 615.1 Integrale kosten DBC-zorgproduct vrije segment",null,null,null,null,null,{"$f":"Kostenverzamelstaat!K57","v":0},{"$f":"'Specifieke informatie C'!I205","v":0},0]
[null,null,null," 720 Grensoverschrijdende zorg",null,null,null,null,null,{"$f":"Kostenverzamelstaat!K103","v":0},{"$f":"'Specifieke informatie C'!I285","v":0},{"$f":"J129-K129","v":0}]
[]
[null,null,null," KOSTEN PER CODENUMMER \n (ONTVANGEN EN GEACCEPTEERDE DECLARATIES) M.B.T. 2017 ",null,null,null,null,null,"Spec. inform. A\nkostenver-\nzamelstaat","Spec. inform. C\ndetail-\ninformatie","VERSCHIL"]
[]
[null,null,null," 610 Overige kosten ziekenhuiszorg en curatieve zorg",null,null,null,null,null,{"$f":"Kostenverzamelstaat!L53","v":0},{"$f":"'Specifieke informatie C'!J159","v":0},{"$f":"J133-K133","v":0}]
[null,null,null," 611 Overige zorgproducten (naar instelling)",null,null,null,null,null,{"$f":"Kostenverzamelstaat!L54","v":0},{"$f":"'Specifieke informatie C'!J169","v":0},{"$f":"J134-K134","v":0}]
[null,null,null," 612 Kosten add-on's ",null,null,null,null,null,{"$f":"Kostenverzamelstaat!L55","v":0},{"$f":"'Specifieke informatie C'!J189","v":0},0]
[null,null,null," 613.1 Integrale kosten DBC-zorgproduct gereguleerd segment",null,null,null,null,null,{"$f":"Kostenverzamelstaat!L56","v":0},{"$f":"'Specifieke informatie C'!J199","v":0},0]
[null,null,null," 615.1 Integrale kosten DBC-zorgproduct vrije segment",null,null,null,null,null,{"$f":"Kostenverzamelstaat!L57","v":0},{"$f":"'Specifieke informatie C'!J205","v":0},0]
[null,null,null," 720 Grensoverschrijdende zorg",null,null,null,null,null,{"$f":"Kostenverzamelstaat!L103","v":0},{"$f":"'Specifieke informatie C'!J285","v":0},{"$f":"J138-K138","v":0}]
[null,null,null,{"$f":"NOW()","v":"2018-06-18T11:23:02.870"},null,null,null,null,null,null,null,{"$f":"CONCATENATE(\"Controleoverzicht \",LOWER(A98))","v":"Controleoverzicht pagina 3"}]
[]
["Pagina 4",null,null,{"$f":"CONCATENATE(\"KWARTAALSTAAT ZVW \", jaar_id,\" \",kwartaal_id,\"E KWARTAAL\")","v":"KWARTAALSTAAT ZVW 2018 2E KWARTAAL"}]
[null,null,null,"CONTROLEOVERZICHT"]
[null,null,null,{"$f":"IF(naw_uzovi_zorgverzekeraar<>\"0000\",CONCATENATE(UPPER(naw_naam_zorgverzekeraar),\", \",UPPER(naw_plaats_zorgverzekeraar)),\"\")","v":""},null,null,null,null,null,null,null,{"$f":"CONCATENATE(\"UZOVI: \",naw_uzovi_zorgverzekeraar)","v":"UZOVI: 0000"}]
[]
[]
[null,null,null,"VERGELIJKING SPECIFIEKE INFORMATIE A EN C - vervolg"]
[null,null,null," KOSTEN PER CODENUMMER \n (KOSTEN INCLUSIEF BALANSPOST) 2016 EN OUDER",null,null,null,null,null,"Spec. inform. A\nkostenver-\nzamelstaat","Spec. inform. C\ndetail-\ninformatie","VERSCHIL"]
[]
[null,null,null," 610 Overige kosten ziekenhuiszorg en curatieve zorg",null,null,null,null,null,{"$f":"Kostenverzamelstaat!M53","v":0},{"$f":"'Specifieke informatie C'!K159","v":0},{"$f":"J149-K149","v":0}]
[null,null,null," 611 Overige zorgproducten (naar instelling)",null,null,null,null,null,{"$f":"Kostenverzamelstaat!M54","v":0},{"$f":"'Specifieke informatie C'!K169","v":0},{"$f":"J150-K150","v":0}]
[null,null,null," 612 Kosten add-on's ",null,null,null,null,null,{"$f":"Kostenverzamelstaat!M55","v":0},{"$f":"'Specifieke informatie C'!K189","v":0},0]
[null,null,null," 613.1 Integrale kosten DBC-zorgproduct gereguleerd segment",null,null,null,null,null,{"$f":"Kostenverzamelstaat!M56","v":0},{"$f":"'Specifieke informatie C'!K199","v":0},0]
[null,null,null," 615.1 Integrale kosten DBC-zorgproduct vrije segment",null,null,null,null,null,{"$f":"Kostenverzamelstaat!M57","v":0},{"$f":"'Specifieke informatie C'!K205","v":0},0]
[null,null,null," 720 Grensoverschrijdende zorg",null,null,null,null,null,{"$f":"Kostenverzamelstaat!M103","v":0},{"$f":"'Specifieke informatie C'!K285","v":0},{"$f":"J154-K154","v":0}]
[]
[null,null,null,"KOSTEN PER CODENUMMER \n(ONTVANGEN EN GEACCEPTEERDE DECLARATIES \n M.B.T. 2016 EN OUDER)",null,null,null,null,null,"Spec. inform. A\nkostenver-\nzamelstaat","Spec. inform. C\ndetail-\ninformatie","VERSCHIL"]
[]
[null,null,null," 610 Overige kosten ziekenhuiszorg en curatieve zorg",null,null,null,null,null,{"$f":"Kostenverzamelstaat!N53","v":0},{"$f":"'Specifieke informatie C'!L159","v":0},{"$f":"J158-K158","v":0}]
[null,null,null," 611 Overige zorgproducten (naar instelling)",null,null,null,null,null,{"$f":"Kostenverzamelstaat!N54","v":0},{"$f":"'Specifieke informatie C'!L169","v":0},{"$f":"J159-K159","v":0}]
[null,null,null," 612 Kosten add-on's ",null,null,null,null,null,{"$f":"Kostenverzamelstaat!N55","v":0},{"$f":"'Specifieke informatie C'!L189","v":0},0]
[null,null,null," 613.1 Integrale kosten DBC-zorgproduct gereguleerd segment",null,null,null,null,null,{"$f":"Kostenverzamelstaat!N56","v":0},{"$f":"'Specifieke informatie C'!L199","v":0},0]
[null,null,null," 615.1 Integrale kosten DBC-zorgproduct vrije segment",null,null,null,null,null,{"$f":"Kostenverzamelstaat!N57","v":0},{"$f":"'Specifieke informatie C'!L205","v":0},0]
[null,null,null," 720 Grensoverschrijdende zorg",null,null,null,null,null,{"$f":"Kostenverzamelstaat!N103","v":0},{"$f":"'Specifieke informatie C'!L285","v":0},0]
[]
[null,null,null," Controle code 505 kostenverzamelstaat",null,null,null,null,null,null,null,{"$f":"Kostenverzamelstaat!I18","v":0}]
[null,null,null," Kosten per verzekerde o.b.v. laatst bekende verzekerdenstand (in hele euro's)",null,null,null,null,null,null,null,{"$f":"IF(L165<>0,(L165/J12),0)","v":0}]
[null,null,null,{"$f":"IF(OR(L166>kwartaal_id*112),\"Attentiebericht: Kosten per verzekerde liggen buiten het verwachte bereik. Controleer de kostenverzamelstaat!\",\"\")","v":""}]
[]
[null,null,null,"VERGELIJKING SPECIFIEKE INFORMATIE A EN C (Contractinformatie)"]
[null,null,null," KOSTEN PER RUBRIEK OF CODENUMMER \n (KOSTEN INCLUSIEF BALANSPOST) 2018",null,null,null,null,null,"Spec. inform. A\nkostenver-\nzamelstaat","Spec. inform. C\ncontract-\ninformatie","VERSCHIL"]
[]
[null,null,null," Huisartsenzorg en Multidisciplinaire zorg, rubriek 01",null,null,null,null,null,{"$f":"Kostenverzamelstaat!I24","v":0},{"$f":"Contractinformatie!K23","v":0},{"$f":"J172-K172","v":0}]
[null,null,null," Verpleging en Verzorging, rubriek 03",null,null,null,null,null,{"$f":"Kostenverzamelstaat!I28","v":0},{"$f":"Contractinformatie!K30","v":0},{"$f":"J173-K173","v":0}]
[null,null,null," Medisch Specialistische zorg, rubriek 06",null,null,null,null,null,{"$f":"Kostenverzamelstaat!I59","v":0},{"$f":"Contractinformatie!K41","v":0},0]
[null,null,null," Geneeskundige Geestelijke Gezondheidszorg, rubriek 10",null,null,null,null,null,{"$f":"Kostenverzamelstaat!I90","v":0},{"$f":"Contractinformatie!K61","v":0},0]
[null,null,null," Geriatrische Revalidatiezorg & Eerstelijnsverblijf, rubriek 11",null,null,null,null,null,{"$f":"Kostenverzamelstaat!I94","v":0},{"$f":"Contractinformatie!K85","v":0},0]
[null,null,null," Zintuiglijk Gehandicapten, code 702",null,null,null,null,null,{"$f":"Kostenverzamelstaat!I100","v":0},{"$f":"Contractinformatie!K71","v":0},0]
[]
[]
[]
[null,null,null,{"$f":"NOW()","v":"2018-06-18T11:23:02.870"},null,null,null,null,null,null,null,{"$f":"CONCATENATE(\"Controleoverzicht \",LOWER(A141))","v":"Controleoverzicht pagina 4"}]

{"sheet":"Blad1","index":11,"n_rows":695,"n_cols":6,"rows_kept":695,"cut":false,"hidden":true,"merged":[]}
[70119129,{"$f":"'Specifieke informatie A'!$L$174","v":0},null,null,null,"*='Specifieke informatie A'!$L$174"]
[70119130,{"$f":"'Specifieke informatie A'!$L$175","v":0},null,null,null,"*='Specifieke informatie A'!$L$175"]
[70119131,{"$f":"'Specifieke informatie A'!$J$149","v":0},null,null,null,"*='Specifieke informatie A'!$J$149"]
[70119132,{"$f":"'Specifieke informatie A'!$K$149","v":0},null,null,null,"*='Specifieke informatie A'!$K$149"]
[70119133,{"$f":"'Specifieke informatie A'!$J$150","v":0},null,null,null,"*='Specifieke informatie A'!$J$150"]
[70119134,{"$f":"'Specifieke informatie A'!$K$150","v":0},null,null,null,"*='Specifieke informatie A'!$K$150"]
[70119135,{"$f":"'Specifieke informatie A'!$J$151","v":0},null,null,null,"*='Specifieke informatie A'!$J$151"]
[70119136,{"$f":"'Specifieke informatie A'!$K$151","v":0},null,null,null,"*='Specifieke informatie A'!$K$151"]
[70119137,{"$f":"'Specifieke informatie A'!$J$152","v":0},null,null,null,"*='Specifieke informatie A'!$J$152"]
[70119138,{"$f":"'Specifieke informatie A'!$K$152","v":0},null,null,null,"*='Specifieke informatie A'!$K$152"]
[70119139,{"$f":"'Specifieke informatie A'!$J$153","v":0},null,null,null,"*='Specifieke informatie A'!$J$153"]
[70119140,{"$f":"'Specifieke informatie A'!$K$153","v":0},null,null,null,"*='Specifieke informatie A'!$K$153"]
[70119141,{"$f":"'Specifieke informatie A'!$J$154","v":0},null,null,null,"*='Specifieke informatie A'!$J$154"]
[70119142,{"$f":"'Specifieke informatie A'!$K$154","v":0},null,null,null,"*='Specifieke informatie A'!$K$154"]
[70119143,{"$f":"'Specifieke informatie A'!$J$155","v":0},null,null,null,"*='Specifieke informatie A'!$J$155"]
[70119144,{"$f":"'Specifieke informatie A'!$K$155","v":0},null,null,null,"*='Specifieke informatie A'!$K$155"]
[70119145,{"$f":"'Specifieke informatie A'!$J$156","v":0},null,null,null,"*='Specifieke informatie A'!$J$156"]
[70119146,{"$f":"'Specifieke informatie A'!$K$156","v":0},null,null,null,"*='Specifieke informatie A'!$K$156"]
[70119147,{"$f":"'Specifieke informatie A'!$J$157","v":0},null,null,null,"*='Specifieke informatie A'!$J$157"]
[70119148,{"$f":"'Specifieke informatie A'!$K$157","v":0},null,null,null,"*='Specifieke informatie A'!$K$157"]
[70119149,{"$f":"'Specifieke informatie A'!$J$158","v":0},null,null,null,"*='Specifieke informatie A'!$J$158"]
[70119150,{"$f":"'Specifieke informatie A'!$K$158","v":0},null,null,null,"*='Specifieke informatie A'!$K$158"]
[70119151,{"$f":"'Specifieke informatie A'!$J$159","v":0},null,null,null,"*='Specifieke informatie A'!$J$159"]
[70119152,{"$f":"'Specifieke informatie A'!$K$159","v":0},null,null,null,"*='Specifieke informatie A'!$K$159"]
[70119153,{"$f":"'Specifieke informatie A'!$J$160","v":0},null,null,null,"*='Specifieke informatie A'!$J$160"]
[70119154,{"$f":"'Specifieke informatie A'!$K$160","v":0},null,null,null,"*='Specifieke informatie A'!$K$160"]
[70119155,{"$f":"'Specifieke informatie A'!$J$161","v":0},null,null,null,"*='Specifieke informatie A'!$J$161"]
[70119156,{"$f":"'Specifieke informatie A'!$K$161","v":0},null,null,null,"*='Specifieke informatie A'!$K$161"]
[70119157,{"$f":"'Specifieke informatie A'!$J$162","v":0},null,null,null,"*='Specifieke informatie A'!$J$162"]
[70119158,{"$f":"'Specifieke informatie A'!$K$162","v":0},null,null,null,"*='Specifieke informatie A'!$K$162"]
[70119159,{"$f":"'Specifieke informatie A'!$J$163","v":0},null,null,null,"*='Specifieke informatie A'!$J$163"]
[70119160,{"$f":"'Specifieke informatie A'!$K$163","v":0},null,null,null,"*='Specifieke informatie A'!$K$163"]
[70119161,{"$f":"'Specifieke informatie A'!$J$164","v":0},null,null,null,"*='Specifieke informatie A'!$J$164"]
[70119162,{"$f":"'Specifieke informatie A'!$K$164","v":0},null,null,null,"*='Specifieke informatie A'!$K$164"]
[70119163,{"$f":"'Specifieke informatie A'!$J$165","v":0},null,null,null,"*='Specifieke informatie A'!$J$165"]
[70119164,{"$f":"'Specifieke informatie A'!$K$165","v":0},null,null,null,"*='Specifieke informatie A'!$K$165"]
[70119165,{"$f":"'Specifieke informatie A'!$J$166","v":0},null,null,null,"*='Specifieke informatie A'!$J$166"]
[70119166,{"$f":"'Specifieke informatie A'!$K$166","v":0},null,null,null,"*='Specifieke informatie A'!$K$166"]
[70119167,{"$f":"'Specifieke informatie A'!$J$167","v":0},null,null,null,"*='Specifieke informatie A'!$J$167"]
[70119168,{"$f":"'Specifieke informatie A'!$K$167","v":0},null,null,null,"*='Specifieke informatie A'!$K$167"]
[70119169,{"$f":"'Specifieke informatie A'!$J$168","v":0},null,null,null,"*='Specifieke informatie A'!$J$168"]
[70119170,{"$f":"'Specifieke informatie A'!$K$168","v":0},null,null,null,"*='Specifieke informatie A'!$K$168"]
[70118929,{"$f":"Contractinformatie!$K$14","v":0},null,null,null,"*=Contractinformatie!$K$14"]
[70118930,{"$f":"Contractinformatie!$K$15","v":0},null,null,null,"*=Contractinformatie!$K$15"]
[70118928,{"$f":"Contractinformatie!$K$16","v":0},null,null,null,"*=Contractinformatie!$K$16"]
[70119123,{"$f":"Contractinformatie!$K$27","v":0},null,null,null,"*=Contractinformatie!$K$27"]
[70119124,{"$f":"Contractinformatie!$K$28","v":0},null,null,null,"*=Contractinformatie!$K$28"]
[70119125,{"$f":"Contractinformatie!$K$29","v":0},null,null,null,"*=Contractinformatie!$K$29"]
[70118429,{"$f":"Kostenverzamelstaat!$I$16","v":0},null,null,null,"*=Kostenverzamelstaat!$I$16"]
[70118430,{"$f":"Kostenverzamelstaat!$J$16","v":0},null,null,null,"*=Kostenverzamelstaat!$J$16"]
[70118431,{"$f":"Kostenverzamelstaat!$K$16","v":0},null,null,null,"*=Kostenverzamelstaat!$K$16"]
[70118432,{"$f":"Kostenverzamelstaat!$L$16","v":0},null,null,null,"*=Kostenverzamelstaat!$L$16"]
[70118433,{"$f":"Kostenverzamelstaat!$M$16","v":0},null,null,null,"*=Kostenverzamelstaat!$M$16"]
[70118434,{"$f":"Kostenverzamelstaat!$N$16","v":0},null,null,null,"*=Kostenverzamelstaat!$N$16"]
[70118435,{"$f":"Kostenverzamelstaat!$I$17","v":0},null,null,null,"*=Kostenverzamelstaat!$I$17"]
[70118436,{"$f":"Kostenverzamelstaat!$J$17","v":0},null,null,null,"*=Kostenverzamelstaat!$J$17"]
[70118437,{"$f":"Kostenverzamelstaat!$K$17","v":0},null,null,null,"*=Kostenverzamelstaat!$K$17"]
[70118438,{"$f":"Kostenverzamelstaat!$L$17","v":0},null,null,null,"*=Kostenverzamelstaat!$L$17"]
[70118439,{"$f":"Kostenverzamelstaat!$M$17","v":0},null,null,null,"*=Kostenverzamelstaat!$M$17"]
[70118440,{"$f":"Kostenverzamelstaat!$N$17","v":0},null,null,null,"*=Kostenverzamelstaat!$N$17"]
[70118441,{"$f":"Kostenverzamelstaat!$I$18","v":0},null,null,null,"*=Kostenverzamelstaat!$I$18"]
[70118442,{"$f":"Kostenverzamelstaat!$J$18","v":0},null,null,null,"*=Kostenverzamelstaat!$J$18"]
[70118443,{"$f":"Kostenverzamelstaat!$K$18","v":0},null,null,null,"*=Kostenverzamelstaat!$K$18"]
[70118444,{"$f":"Kostenverzamelstaat!$L$18","v":0},null,null,null,"*=Kostenverzamelstaat!$L$18"]
[70118445,{"$f":"Kostenverzamelstaat!$M$18","v":0},null,null,null,"*=Kostenverzamelstaat!$M$18"]
[70118446,{"$f":"Kostenverzamelstaat!$N$18","v":0},null,null,null,"*=Kostenverzamelstaat!$N$18"]
[70118447,{"$f":"Kostenverzamelstaat!$I$19","v":0},null,null,null,"*=Kostenverzamelstaat!$I$19"]
[70118448,{"$f":"Kostenverzamelstaat!$J$19","v":0},null,null,null,"*=Kostenverzamelstaat!$J$19"]
[70118449,{"$f":"Kostenverzamelstaat!$K$19","v":0},null,null,null,"*=Kostenverzamelstaat!$K$19"]
[70118450,{"$f":"Kostenverzamelstaat!$L$19","v":0},null,null,null,"*=Kostenverzamelstaat!$L$19"]
[70118451,{"$f":"Kostenverzamelstaat!$M$19","v":0},null,null,null,"*=Kostenverzamelstaat!$M$19"]
[70118452,{"$f":"Kostenverzamelstaat!$N$19","v":0},null,null,null,"*=Kostenverzamelstaat!$N$19"]
[70118453,{"$f":"Kostenverzamelstaat!$I$20","v":0},null,null,null,"*=Kostenverzamelstaat!$I$20"]
[70118454,{"$f":"Kostenverzamelstaat!$J$20","v":0},null,null,null,"*=Kostenverzamelstaat!$J$20"]
[70118455,{"$f":"Kostenverzamelstaat!$K$20","v":0},null,null,null,"*=Kostenverzamelstaat!$K$20"]
[70118456,{"$f":"Kostenverzamelstaat!$L$20","v":0},null,null,null,"*=Kostenverzamelstaat!$L$20"]
[70118457,{"$f":"Kostenverzamelstaat!$M$20","v":0},null,null,null,"*=Kostenverzamelstaat!$M$20"]
[70118458,{"$f":"Kostenverzamelstaat!$N$20","v":0},null,null,null,"*=Kostenverzamelstaat!$N$20"]
[70118459,{"$f":"Kostenverzamelstaat!$I$21","v":0},null,null,null,"*=Kostenverzamelstaat!$I$21"]
[70118460,{"$f":"Kostenverzamelstaat!$J$21","v":0},null,null,null,"*=Kostenverzamelstaat!$J$21"]
[70118461,{"$f":"Kostenverzamelstaat!$K$21","v":0},null,null,null,"*=Kostenverzamelstaat!$K$21"]
[70118462,{"$f":"Kostenverzamelstaat!$L$21","v":0},null,null,null,"*=Kostenverzamelstaat!$L$21"]
[70118463,{"$f":"Kostenverzamelstaat!$M$21","v":0},null,null,null,"*=Kostenverzamelstaat!$M$21"]
[70118464,{"$f":"Kostenverzamelstaat!$N$21","v":0},null,null,null,"*=Kostenverzamelstaat!$N$21"]
[70118465,{"$f":"Kostenverzamelstaat!$I$22","v":0},null,null,null,"*=Kostenverzamelstaat!$I$22"]
[70118466,{"$f":"Kostenverzamelstaat!$J$22","v":0},null,null,null,"*=Kostenverzamelstaat!$J$22"]
[70118467,{"$f":"Kostenverzamelstaat!$K$22","v":0},null,null,null,"*=Kostenverzamelstaat!$K$22"]
[70118468,{"$f":"Kostenverzamelstaat!$L$22","v":0},null,null,null,"*=Kostenverzamelstaat!$L$22"]
[70118469,{"$f":"Kostenverzamelstaat!$M$22","v":0},null,null,null,"*=Kostenverzamelstaat!$M$22"]
[70118470,{"$f":"Kostenverzamelstaat!$N$22","v":0},null,null,null,"*=Kostenverzamelstaat!$N$22"]
[70118471,{"$f":"Kostenverzamelstaat!$I$23","v":0},null,null,null,"*=Kostenverzamelstaat!$I$23"]
[70118472,{"$f":"Kostenverzamelstaat!$J$23","v":0},null,null,null,"*=Kostenverzamelstaat!$J$23"]
[70118473,{"$f":"Kostenverzamelstaat!$K$23","v":0},null,null,null,"*=Kostenverzamelstaat!$K$23"]
[70118474,{"$f":"Kostenverzamelstaat!$L$23","v":0},null,null,null,"*=Kostenverzamelstaat!$L$23"]
[70118475,{"$f":"Kostenverzamelstaat!$M$23","v":0},null,null,null,"*=Kostenverzamelstaat!$M$23"]
[70118476,{"$f":"Kostenverzamelstaat!$N$23","v":0},null,null,null,"*=Kostenverzamelstaat!$N$23"]
[70118495,{"$f":"Kostenverzamelstaat!$I$26","v":0},null,null,null,"*=Kostenverzamelstaat!$I$26"]
[70118496,{"$f":"Kostenverzamelstaat!$J$26","v":0},null,null,null,"*=Kostenverzamelstaat!$J$26"]
[70118497,{"$f":"Kostenverzamelstaat!$K$26","v":0},null,null,null,"*=Kostenverzamelstaat!$K$26"]
[70118498,{"$f":"Kostenverzamelstaat!$L$26","v":0},null,null,null,"*=Kostenverzamelstaat!$L$26"]
[70118499,{"$f":"Kostenverzamelstaat!$M$26","v":0},null,null,null,"*=Kostenverzamelstaat!$M$26"]
[70118500,{"$f":"Kostenverzamelstaat!$N$26","v":0},null,null,null,"*=Kostenverzamelstaat!$N$26"]
[70118508,{"$f":"Kostenverzamelstaat!$I$30","v":0},null,null,null,"*=Kostenverzamelstaat!$I$30"]
[70118509,{"$f":"Kostenverzamelstaat!$J$30","v":0},null,null,null,"*=Kostenverzamelstaat!$J$30"]
[70118510,{"$f":"Kostenverzamelstaat!$K$30","v":0},null,null,null,"*=Kostenverzamelstaat!$K$30"]
[70118511,{"$f":"Kostenverzamelstaat!$L$30","v":0},null,null,null,"*=Kostenverzamelstaat!$L$30"]
[70118512,{"$f":"Kostenverzamelstaat!$M$30","v":0},null,null,null,"*=Kostenverzamelstaat!$M$30"]
[70118513,{"$f":"Kostenverzamelstaat!$N$30","v":0},null,null,null,"*=Kostenverzamelstaat!$N$30"]
[70118514,{"$f":"Kostenverzamelstaat!$I$31","v":0},null,null,null,"*=Kostenverzamelstaat!$I$31"]
[70118515,{"$f":"Kostenverzamelstaat!$J$31","v":0},null,null,null,"*=Kostenverzamelstaat!$J$31"]
[70118516,{"$f":"Kostenverzamelstaat!$K$31","v":0},null,null,null,"*=Kostenverzamelstaat!$K$31"]
[70118517,{"$f":"Kostenverzamelstaat!$L$31","v":0},null,null,null,"*=Kostenverzamelstaat!$L$31"]
[70118518,{"$f":"Kostenverzamelstaat!$M$31","v":0},null,null,null,"*=Kostenverzamelstaat!$M$31"]
[70118519,{"$f":"Kostenverzamelstaat!$N$31","v":0},null,null,null,"*=Kostenverzamelstaat!$N$31"]
[70118520,{"$f":"Kostenverzamelstaat!$I$32","v":0},null,null,null,"*=Kostenverzamelstaat!$I$32"]
[70118521,{"$f":"Kostenverzamelstaat!$J$32","v":0},null,null,null,"*=Kostenverzamelstaat!$J$32"]
[70118522,{"$f":"Kostenverzamelstaat!$K$32","v":0},null,null,null,"*=Kostenverzamelstaat!$K$32"]
[70118523,{"$f":"Kostenverzamelstaat!$L$32","v":0},null,null,null,"*=Kostenverzamelstaat!$L$32"]
[70118524,{"$f":"Kostenverzamelstaat!$M$32","v":0},null,null,null,"*=Kostenverzamelstaat!$M$32"]
[70118525,{"$f":"Kostenverzamelstaat!$N$32","v":0},null,null,null,"*=Kostenverzamelstaat!$N$32"]
[70118535,{"$f":"Kostenverzamelstaat!$I$35","v":0},null,null,null,"*=Kostenverzamelstaat!$I$35"]
[70118536,{"$f":"Kostenverzamelstaat!$J$35","v":0},null,null,null,"*=Kostenverzamelstaat!$J$35"]
[70118537,{"$f":"Kostenverzamelstaat!$K$35","v":0},null,null,null,"*=Kostenverzamelstaat!$K$35"]
[70118538,{"$f":"Kostenverzamelstaat!$L$35","v":0},null,null,null,"*=Kostenverzamelstaat!$L$35"]
[70118539,{"$f":"Kostenverzamelstaat!$M$35","v":0},null,null,null,"*=Kostenverzamelstaat!$M$35"]
[70118540,{"$f":"Kostenverzamelstaat!$N$35","v":0},null,null,null,"*=Kostenverzamelstaat!$N$35"]
[70118529,{"$f":"Kostenverzamelstaat!$I$36","v":0},null,null,null,"*=Kostenverzamelstaat!$I$36"]
[70118530,{"$f":"Kostenverzamelstaat!$J$36","v":0},null,null,null,"*=Kostenverzamelstaat!$J$36"]
[70118531,{"$f":"Kostenverzamelstaat!$K$36","v":0},null,null,null,"*=Kostenverzamelstaat!$K$36"]
[70118532,{"$f":"Kostenverzamelstaat!$L$36","v":0},null,null,null,"*=Kostenverzamelstaat!$L$36"]
[70118533,{"$f":"Kostenverzamelstaat!$M$36","v":0},null,null,null,"*=Kostenverzamelstaat!$M$36"]
[70118534,{"$f":"Kostenverzamelstaat!$N$36","v":0},null,null,null,"*=Kostenverzamelstaat!$N$36"]
[70119039,{"$f":"Kostenverzamelstaat!$I$52","v":0},null,null,null,"*=Kostenverzamelstaat!$I$52"]
[70119040,{"$f":"Kostenverzamelstaat!$J$52","v":0},null,null,null,"*=Kostenverzamelstaat!$J$52"]
[70119041,{"$f":"Kostenverzamelstaat!$K$52","v":0},null,null,null,"*=Kostenverzamelstaat!$K$52"]
[70119042,{"$f":"Kostenverzamelstaat!$L$52","v":0},null,null,null,"*=Kostenverzamelstaat!$L$52"]
[70119043,{"$f":"Kostenverzamelstaat!$M$52","v":0},null,null,null,"*=Kostenverzamelstaat!$M$52"]
[70119044,{"$f":"Kostenverzamelstaat!$N$52","v":0},null,null,null,"*=Kostenverzamelstaat!$N$52"]
[70119045,{"$f":"Kostenverzamelstaat!$I$53","v":0},null,null,null,"*=Kostenverzamelstaat!$I$53"]
[70119046,{"$f":"Kostenverzamelstaat!$J$53","v":0},null,null,null,"*=Kostenverzamelstaat!$J$53"]
[70119047,{"$f":"Kostenverzamelstaat!$K$53","v":0},null,null,null,"*=Kostenverzamelstaat!$K$53"]
[70119048,{"$f":"Kostenverzamelstaat!$L$53","v":0},null,null,null,"*=Kostenverzamelstaat!$L$53"]
[70119049,{"$f":"Kostenverzamelstaat!$M$53","v":0},null,null,null,"*=Kostenverzamelstaat!$M$53"]
[70119050,{"$f":"Kostenverzamelstaat!$N$53","v":0},null,null,null,"*=Kostenverzamelstaat!$N$53"]
[70118997,{"$f":"Kostenverzamelstaat!$I$54","v":0},null,null,null,"*=Kostenverzamelstaat!$I$54"]
[70118998,{"$f":"Kostenverzamelstaat!$J$54","v":0},null,null,null,"*=Kostenverzamelstaat!$J$54"]
[70118999,{"$f":"Kostenverzamelstaat!$K$54","v":0},null,null,null,"*=Kostenverzamelstaat!$K$54"]
[70119000,{"$f":"Kostenverzamelstaat!$L$54","v":0},null,null,null,"*=Kostenverzamelstaat!$L$54"]
[70119001,{"$f":"Kostenverzamelstaat!$M$54","v":0},null,null,null,"*=Kostenverzamelstaat!$M$54"]
[70119002,{"$f":"Kostenverzamelstaat!$N$54","v":0},null,null,null,"*=Kostenverzamelstaat!$N$54"]
[70119003,{"$f":"Kostenverzamelstaat!$I$55","v":0},null,null,null,"*=Kostenverzamelstaat!$I$55"]
[70119004,{"$f":"Kostenverzamelstaat!$J$55","v":0},null,null,null,"*=Kostenverzamelstaat!$J$55"]
[70119005,{"$f":"Kostenverzamelstaat!$K$55","v":0},null,null,null,"*=Kostenverzamelstaat!$K$55"]
[70119006,{"$f":"Kostenverzamelstaat!$L$55","v":0},null,null,null,"*=Kostenverzamelstaat!$L$55"]
[70119007,{"$f":"Kostenverzamelstaat!$M$55","v":0},null,null,null,"*=Kostenverzamelstaat!$M$55"]
[70119008,{"$f":"Kostenverzamelstaat!$N$55","v":0},null,null,null,"*=Kostenverzamelstaat!$N$55"]
[70118985,{"$f":"Kostenverzamelstaat!$I$56","v":0},null,null,null,"*=Kostenverzamelstaat!$I$56"]
[70118986,{"$f":"Kostenverzamelstaat!$J$56","v":0},null,null,null,"*=Kostenverzamelstaat!$J$56"]
[70118987,{"$f":"Kostenverzamelstaat!$K$56","v":0},null,null,null,"*=Kostenverzamelstaat!$K$56"]
[70118988,{"$f":"Kostenverzamelstaat!$L$56","v":0},null,null,null,"*=Kostenverzamelstaat!$L$56"]
[70118989,{"$f":"Kostenverzamelstaat!$M$56","v":0},null,null,null,"*=Kostenverzamelstaat!$M$56"]
[70118990,{"$f":"Kostenverzamelstaat!$N$56","v":0},null,null,null,"*=Kostenverzamelstaat!$N$56"]
[70118991,{"$f":"Kostenverzamelstaat!$I$57","v":0},null,null,null,"*=Kostenverzamelstaat!$I$57"]
[70118992,{"$f":"Kostenverzamelstaat!$J$57","v":0},null,null,null,"*=Kostenverzamelstaat!$J$57"]
[70118993,{"$f":"Kostenverzamelstaat!$K$57","v":0},null,null,null,"*=Kostenverzamelstaat!$K$57"]
[70118994,{"$f":"Kostenverzamelstaat!$L$57","v":0},null,null,null,"*=Kostenverzamelstaat!$L$57"]
[70118995,{"$f":"Kostenverzamelstaat!$M$57","v":0},null,null,null,"*=Kostenverzamelstaat!$M$57"]
[70118996,{"$f":"Kostenverzamelstaat!$N$57","v":0},null,null,null,"*=Kostenverzamelstaat!$N$57"]
[70119021,{"$f":"Kostenverzamelstaat!$I$58","v":0},null,null,null,"*=Kostenverzamelstaat!$I$58"]
[70119022,{"$f":"Kostenverzamelstaat!$J$58","v":0},null,null,null,"*=Kostenverzamelstaat!$J$58"]
[70119023,{"$f":"Kostenverzamelstaat!$K$58","v":0},null,null,null,"*=Kostenverzamelstaat!$K$58"]
[70119024,{"$f":"Kostenverzamelstaat!$L$58","v":0},null,null,null,"*=Kostenverzamelstaat!$L$58"]
[70119025,{"$f":"Kostenverzamelstaat!$M$58","v":0},null,null,null,"*=Kostenverzamelstaat!$M$58"]
[70119026,{"$f":"Kostenverzamelstaat!$N$58","v":0},null,null,null,"*=Kostenverzamelstaat!$N$58"]
[70119051,{"$f":"Kostenverzamelstaat!$I$61","v":0},null,null,null,"*=Kostenverzamelstaat!$I$61"]
[70119052,{"$f":"Kostenverzamelstaat!$J$61","v":0},null,null,null,"*=Kostenverzamelstaat!$J$61"]
[70119053,{"$f":"Kostenverzamelstaat!$K$61","v":0},null,null,null,"*=Kostenverzamelstaat!$K$61"]
[70119054,{"$f":"Kostenverzamelstaat!$L$61","v":0},null,null,null,"*=Kostenverzamelstaat!$L$61"]
[70119055,{"$f":"Kostenverzamelstaat!$M$61","v":0},null,null,null,"*=Kostenverzamelstaat!$M$61"]
[70119056,{"$f":"Kostenverzamelstaat!$N$61","v":0},null,null,null,"*=Kostenverzamelstaat!$N$61"]
[70119075,{"$f":"Kostenverzamelstaat!$I$62","v":0},null,null,null,"*=Kostenverzamelstaat!$I$62"]
[70119076,{"$f":"Kostenverzamelstaat!$J$62","v":0},null,null,null,"*=Kostenverzamelstaat!$J$62"]
[70119077,{"$f":"Kostenverzamelstaat!$K$62","v":0},null,null,null,"*=Kostenverzamelstaat!$K$62"]
[70119078,{"$f":"Kostenverzamelstaat!$L$62","v":0},null,null,null,"*=Kostenverzamelstaat!$L$62"]
[70119079,{"$f":"Kostenverzamelstaat!$M$62","v":0},null,null,null,"*=Kostenverzamelstaat!$M$62"]
[70119080,{"$f":"Kostenverzamelstaat!$N$62","v":0},null,null,null,"*=Kostenverzamelstaat!$N$62"]
[70119069,{"$f":"Kostenverzamelstaat!$I$63","v":0},null,null,null,"*=Kostenverzamelstaat!$I$63"]
[70119070,{"$f":"Kostenverzamelstaat!$J$63","v":0},null,null,null,"*=Kostenverzamelstaat!$J$63"]
[70119071,{"$f":"Kostenverzamelstaat!$K$63","v":0},null,null,null,"*=Kostenverzamelstaat!$K$63"]
[70119072,{"$f":"Kostenverzamelstaat!$L$63","v":0},null,null,null,"*=Kostenverzamelstaat!$L$63"]
[70119073,{"$f":"Kostenverzamelstaat!$M$63","v":0},null,null,null,"*=Kostenverzamelstaat!$M$63"]
[70119074,{"$f":"Kostenverzamelstaat!$N$63","v":0},null,null,null,"*=Kostenverzamelstaat!$N$63"]
[70119057,{"$f":"Kostenverzamelstaat!$I$64","v":0},null,null,null,"*=Kostenverzamelstaat!$I$64"]
[70119058,{"$f":"Kostenverzamelstaat!$J$64","v":0},null,null,null,"*=Kostenverzamelstaat!$J$64"]
[70119059,{"$f":"Kostenverzamelstaat!$K$64","v":0},null,null,null,"*=Kostenverzamelstaat!$K$64"]
[70119060,{"$f":"Kostenverzamelstaat!$L$64","v":0},null,null,null,"*=Kostenverzamelstaat!$L$64"]
[70119061,{"$f":"Kostenverzamelstaat!$M$64","v":0},null,null,null,"*=Kostenverzamelstaat!$M$64"]
[70119062,{"$f":"Kostenverzamelstaat!$N$64","v":0},null,null,null,"*=Kostenverzamelstaat!$N$64"]
[70119063,{"$f":"Kostenverzamelstaat!$I$65","v":0},null,null,null,"*=Kostenverzamelstaat!$I$65"]
[70119064,{"$f":"Kostenverzamelstaat!$J$65","v":0},null,null,null,"*=Kostenverzamelstaat!$J$65"]
[70119065,{"$f":"Kostenverzamelstaat!$K$65","v":0},null,null,null,"*=Kostenverzamelstaat!$K$65"]
[70119066,{"$f":"Kostenverzamelstaat!$L$65","v":0},null,null,null,"*=Kostenverzamelstaat!$L$65"]
[70119067,{"$f":"Kostenverzamelstaat!$M$65","v":0},null,null,null,"*=Kostenverzamelstaat!$M$65"]
[70119068,{"$f":"Kostenverzamelstaat!$N$65","v":0},null,null,null,"*=Kostenverzamelstaat!$N$65"]
[70118775,{"$f":"Kostenverzamelstaat!$I$68","v":0},null,null,null,"*=Kostenverzamelstaat!$I$68"]
[70118776,{"$f":"Kostenverzamelstaat!$J$68","v":0},null,null,null,"*=Kostenverzamelstaat!$J$68"]
[70118777,{"$f":"Kostenverzamelstaat!$K$68","v":0},null,null,null,"*=Kostenverzamelstaat!$K$68"]
[70118778,{"$f":"Kostenverzamelstaat!$L$68","v":0},null,null,null,"*=Kostenverzamelstaat!$L$68"]
[70118779,{"$f":"Kostenverzamelstaat!$M$68","v":0},null,null,null,"*=Kostenverzamelstaat!$M$68"]
[70118780,{"$f":"Kostenverzamelstaat!$N$68","v":0},null,null,null,"*=Kostenverzamelstaat!$N$68"]
[70119087,{"$f":"Kostenverzamelstaat!$I$70","v":0},null,null,null,"*=Kostenverzamelstaat!$I$70"]
[70119088,{"$f":"Kostenverzamelstaat!$J$70","v":0},null,null,null,"*=Kostenverzamelstaat!$J$70"]
[70119089,{"$f":"Kostenverzamelstaat!$K$70","v":0},null,null,null,"*=Kostenverzamelstaat!$K$70"]
[70119090,{"$f":"Kostenverzamelstaat!$L$70","v":0},null,null,null,"*=Kostenverzamelstaat!$L$70"]
[70119091,{"$f":"Kostenverzamelstaat!$M$70","v":0},null,null,null,"*=Kostenverzamelstaat!$M$70"]
[70119092,{"$f":"Kostenverzamelstaat!$N$70","v":0},null,null,null,"*=Kostenverzamelstaat!$N$70"]
[70119081,{"$f":"Kostenverzamelstaat!$I$71","v":0},null,null,null,"*=Kostenverzamelstaat!$I$71"]
[70119082,{"$f":"Kostenverzamelstaat!$J$71","v":0},null,null,null,"*=Kostenverzamelstaat!$J$71"]
[70119083,{"$f":"Kostenverzamelstaat!$K$71","v":0},null,null,null,"*=Kostenverzamelstaat!$K$71"]
[70119084,{"$f":"Kostenverzamelstaat!$L$71","v":0},null,null,null,"*=Kostenverzamelstaat!$L$71"]
[70119085,{"$f":"Kostenverzamelstaat!$M$71","v":0},null,null,null,"*=Kostenverzamelstaat!$M$71"]
[70119086,{"$f":"Kostenverzamelstaat!$N$71","v":0},null,null,null,"*=Kostenverzamelstaat!$N$71"]
[70118880,{"$f":"Kostenverzamelstaat!$I$86","v":0},null,null,null,"*=Kostenverzamelstaat!$I$86"]
[70118881,{"$f":"Kostenverzamelstaat!$J$86","v":0},null,null,null,"*=Kostenverzamelstaat!$J$86"]
[70118882,{"$f":"Kostenverzamelstaat!$K$86","v":0},null,null,null,"*=Kostenverzamelstaat!$K$86"]
[70118883,{"$f":"Kostenverzamelstaat!$L$86","v":0},null,null,null,"*=Kostenverzamelstaat!$L$86"]
[70118884,{"$f":"Kostenverzamelstaat!$M$86","v":0},null,null,null,"*=Kostenverzamelstaat!$M$86"]
[70118885,{"$f":"Kostenverzamelstaat!$N$86","v":0},null,null,null,"*=Kostenverzamelstaat!$N$86"]
[70118874,{"$f":"Kostenverzamelstaat!$I$87","v":0},null,null,null,"*=Kostenverzamelstaat!$I$87"]
[70118875,{"$f":"Kostenverzamelstaat!$J$87","v":0},null,null,null,"*=Kostenverzamelstaat!$J$87"]
[70118876,{"$f":"Kostenverzamelstaat!$K$87","v":0},null,null,null,"*=Kostenverzamelstaat!$K$87"]
[70118877,{"$f":"Kostenverzamelstaat!$L$87","v":0},null,null,null,"*=Kostenverzamelstaat!$L$87"]
[70118878,{"$f":"Kostenverzamelstaat!$M$87","v":0},null,null,null,"*=Kostenverzamelstaat!$M$87"]
[70118879,{"$f":"Kostenverzamelstaat!$N$87","v":0},null,null,null,"*=Kostenverzamelstaat!$N$87"]
[70118892,{"$f":"Kostenverzamelstaat!$I$88","v":0},null,null,null,"*=Kostenverzamelstaat!$I$88"]
[70118893,{"$f":"Kostenverzamelstaat!$J$88","v":0},null,null,null,"*=Kostenverzamelstaat!$J$88"]
[70118894,{"$f":"Kostenverzamelstaat!$K$88","v":0},null,null,null,"*=Kostenverzamelstaat!$K$88"]
[70118895,{"$f":"Kostenverzamelstaat!$L$88","v":0},null,null,null,"*=Kostenverzamelstaat!$L$88"]
[70118896,{"$f":"Kostenverzamelstaat!$M$88","v":0},null,null,null,"*=Kostenverzamelstaat!$M$88"]
[70118897,{"$f":"Kostenverzamelstaat!$N$88","v":0},null,null,null,"*=Kostenverzamelstaat!$N$88"]
[70118904,{"$f":"Kostenverzamelstaat!$I$89","v":0},null,null,null,"*=Kostenverzamelstaat!$I$89"]
[70118905,{"$f":"Kostenverzamelstaat!$J$89","v":0},null,null,null,"*=Kostenverzamelstaat!$J$89"]
[70118906,{"$f":"Kostenverzamelstaat!$K$89","v":0},null,null,null,"*=Kostenverzamelstaat!$K$89"]
[70118907,{"$f":"Kostenverzamelstaat!$L$89","v":0},null,null,null,"*=Kostenverzamelstaat!$L$89"]
[70118908,{"$f":"Kostenverzamelstaat!$M$89","v":0},null,null,null,"*=Kostenverzamelstaat!$M$89"]
[70118909,{"$f":"Kostenverzamelstaat!$N$89","v":0},null,null,null,"*=Kostenverzamelstaat!$N$89"]
[70119093,{"$f":"Kostenverzamelstaat!$I$96","v":0},null,null,null,"*=Kostenverzamelstaat!$I$96"]
[70119094,{"$f":"Kostenverzamelstaat!$J$96","v":0},null,null,null,"*=Kostenverzamelstaat!$J$96"]
[70119095,{"$f":"Kostenverzamelstaat!$K$96","v":0},null,null,null,"*=Kostenverzamelstaat!$K$96"]
[70119096,{"$f":"Kostenverzamelstaat!$L$96","v":0},null,null,null,"*=Kostenverzamelstaat!$L$96"]
[70119097,{"$f":"Kostenverzamelstaat!$M$96","v":0},null,null,null,"*=Kostenverzamelstaat!$M$96"]
[70119098,{"$f":"Kostenverzamelstaat!$N$96","v":0},null,null,null,"*=Kostenverzamelstaat!$N$96"]
[70118477,{"$f":"Kostenverzamelstaat!$I$98","v":0},null,null,null,"*=Kostenverzamelstaat!$I$98"]
[70118478,{"$f":"Kostenverzamelstaat!$J$98","v":0},null,null,null,"*=Kostenverzamelstaat!$J$98"]
[70118479,{"$f":"Kostenverzamelstaat!$K$98","v":0},null,null,null,"*=Kostenverzamelstaat!$K$98"]
[70118480,{"$f":"Kostenverzamelstaat!$L$98","v":0},null,null,null,"*=Kostenverzamelstaat!$L$98"]
[70118481,{"$f":"Kostenverzamelstaat!$M$98","v":0},null,null,null,"*=Kostenverzamelstaat!$M$98"]
[70118482,{"$f":"Kostenverzamelstaat!$N$98","v":0},null,null,null,"*=Kostenverzamelstaat!$N$98"]
[70118483,{"$f":"Kostenverzamelstaat!$I$99","v":0},null,null,null,"*=Kostenverzamelstaat!$I$99"]
[70118484,{"$f":"Kostenverzamelstaat!$J$99","v":0},null,null,null,"*=Kostenverzamelstaat!$J$99"]
[70118485,{"$f":"Kostenverzamelstaat!$K$99","v":0},null,null,null,"*=Kostenverzamelstaat!$K$99"]
[70118486,{"$f":"Kostenverzamelstaat!$L$99","v":0},null,null,null,"*=Kostenverzamelstaat!$L$99"]
[70118487,{"$f":"Kostenverzamelstaat!$M$99","v":0},null,null,null,"*=Kostenverzamelstaat!$M$99"]
[70118488,{"$f":"Kostenverzamelstaat!$N$99","v":0},null,null,null,"*=Kostenverzamelstaat!$N$99"]
[70118489,{"$f":"Kostenverzamelstaat!$I$100","v":0},null,null,null,"*=Kostenverzamelstaat!$I$100"]
[70118490,{"$f":"Kostenverzamelstaat!$J$100","v":0},null,null,null,"*=Kostenverzamelstaat!$J$100"]
[70118491,{"$f":"Kostenverzamelstaat!$K$100","v":0},null,null,null,"*=Kostenverzamelstaat!$K$100"]
[70118492,{"$f":"Kostenverzamelstaat!$L$100","v":0},null,null,null,"*=Kostenverzamelstaat!$L$100"]
[70118493,{"$f":"Kostenverzamelstaat!$M$100","v":0},null,null,null,"*=Kostenverzamelstaat!$M$100"]
[70118494,{"$f":"Kostenverzamelstaat!$N$100","v":0},null,null,null,"*=Kostenverzamelstaat!$N$100"]
[70119099,{"$f":"Kostenverzamelstaat!$I$103","v":0},null,null,null,"*=Kostenverzamelstaat!$I$103"]
[70119100,{"$f":"Kostenverzamelstaat!$J$103","v":0},null,null,null,"*=Kostenverzamelstaat!$J$103"]
[70119101,{"$f":"Kostenverzamelstaat!$K$103","v":0},null,null,null,"*=Kostenverzamelstaat!$K$103"]
[70119102,{"$f":"Kostenverzamelstaat!$L$103","v":0},null,null,null,"*=Kostenverzamelstaat!$L$103"]
[70119103,{"$f":"Kostenverzamelstaat!$M$103","v":0},null,null,null,"*=Kostenverzamelstaat!$M$103"]
[70119104,{"$f":"Kostenverzamelstaat!$N$103","v":0},null,null,null,"*=Kostenverzamelstaat!$N$103"]
[70119105,{"$f":"Kostenverzamelstaat!$I$105","v":0},null,null,null,"*=Kostenverzamelstaat!$I$105"]
[70119106,{"$f":"Kostenverzamelstaat!$J$105","v":0},null,null,null,"*=Kostenverzamelstaat!$J$105"]
[70119107,{"$f":"Kostenverzamelstaat!$K$105","v":0},null,null,null,"*=Kostenverzamelstaat!$K$105"]
[70119108,{"$f":"Kostenverzamelstaat!$L$105","v":0},null,null,null,"*=Kostenverzamelstaat!$L$105"]
[70119109,{"$f":"Kostenverzamelstaat!$M$105","v":0},null,null,null,"*=Kostenverzamelstaat!$M$105"]
[70119110,{"$f":"Kostenverzamelstaat!$N$105","v":0},null,null,null,"*=Kostenverzamelstaat!$N$105"]
[70118961,{"$f":"Kostenverzamelstaat!$I$92","v":0},null,null,null,"*=Kostenverzamelstaat!$I$92"]
[70118962,{"$f":"Kostenverzamelstaat!$J$92","v":0},null,null,null,"*=Kostenverzamelstaat!$J$92"]
[70118963,{"$f":"Kostenverzamelstaat!$K$92","v":0},null,null,null,"*=Kostenverzamelstaat!$K$92"]
[70118964,{"$f":"Kostenverzamelstaat!$L$92","v":0},null,null,null,"*=Kostenverzamelstaat!$L$92"]
[70118965,{"$f":"Kostenverzamelstaat!$M$92","v":0},null,null,null,"*=Kostenverzamelstaat!$M$92"]
[70118966,{"$f":"Kostenverzamelstaat!$N$92","v":0},null,null,null,"*=Kostenverzamelstaat!$N$92"]
[70118967,{"$f":"Kostenverzamelstaat!$I$93","v":0},null,null,null,"*=Kostenverzamelstaat!$I$93"]
[70118968,{"$f":"Kostenverzamelstaat!$J$93","v":0},null,null,null,"*=Kostenverzamelstaat!$J$93"]
[70119111,{"$f":"Kostenverzamelstaat!$I$118","v":0},null,null,null,"*=Kostenverzamelstaat!$I$118"]
[70118235,{"$f":"Kostenverzamelstaat!$I$119","v":0},null,null,null,"*=Kostenverzamelstaat!$I$119"]
[70118236,{"$f":"Kostenverzamelstaat!$J$119","v":0},null,null,null,"*=Kostenverzamelstaat!$J$119"]
[70118237,{"$f":"Kostenverzamelstaat!$K$119","v":0},null,null,null,"*=Kostenverzamelstaat!$K$119"]
[70118238,{"$f":"Kostenverzamelstaat!$L$119","v":0},null,null,null,"*=Kostenverzamelstaat!$L$119"]
[70118239,{"$f":"Kostenverzamelstaat!$M$119","v":0},null,null,null,"*=Kostenverzamelstaat!$M$119"]
[70118240,{"$f":"Kostenverzamelstaat!$N$119","v":0},null,null,null,"*=Kostenverzamelstaat!$N$119"]
[70118293,{"$f":"Kostenverzamelstaat!$I$120","v":0},null,null,null,"*=Kostenverzamelstaat!$I$120"]
[70118294,{"$f":"Kostenverzamelstaat!$J$120","v":0},null,null,null,"*=Kostenverzamelstaat!$J$120"]
[70118295,{"$f":"Kostenverzamelstaat!$K$120","v":0},null,null,null,"*=Kostenverzamelstaat!$K$120"]
[70118296,{"$f":"Kostenverzamelstaat!$L$120","v":0},null,null,null,"*=Kostenverzamelstaat!$L$120"]
[70118297,{"$f":"Kostenverzamelstaat!$M$120","v":0},null,null,null,"*=Kostenverzamelstaat!$M$120"]
[70118298,{"$f":"Kostenverzamelstaat!$N$120","v":0},null,null,null,"*=Kostenverzamelstaat!$N$120"]
[70118241,{"$f":"Kostenverzamelstaat!$I$121","v":0},null,null,null,"*=Kostenverzamelstaat!$I$121"]
[70118341,{"$f":"'Specifieke informatie A'!$L$14","v":0},null,null,null,"*='Specifieke informatie A'!$L$14"]
[70118342,{"$f":"'Specifieke informatie A'!$L$15","v":0},null,null,null,"*='Specifieke informatie A'!$L$15"]
[70118343,{"$f":"'Specifieke informatie A'!$L$16","v":0},null,null,null,"*='Specifieke informatie A'!$L$16"]
[70118319,{"$f":"'Specifieke informatie A'!$J$59","v":0},null,null,null,"*='Specifieke informatie A'!$J$59"]
[70118320,{"$f":"'Specifieke informatie A'!$K$59","v":0},null,null,null,"*='Specifieke informatie A'!$K$59"]
[70118321,{"$f":"'Specifieke informatie A'!$J$60","v":0},null,null,null,"*='Specifieke informatie A'!$J$60"]
[70118322,{"$f":"'Specifieke informatie A'!$K$60","v":0},null,null,null,"*='Specifieke informatie A'!$K$60"]
[70118323,{"$f":"'Specifieke informatie A'!$J$61","v":0},null,null,null,"*='Specifieke informatie A'!$J$61"]
[70118324,{"$f":"'Specifieke informatie A'!$K$61","v":0},null,null,null,"*='Specifieke informatie A'!$K$61"]
[70118317,{"$f":"'Specifieke informatie A'!$J$62","v":0},null,null,null,"*='Specifieke informatie A'!$J$62"]
[70118318,{"$f":"'Specifieke informatie A'!$K$62","v":0},null,null,null,"*='Specifieke informatie A'!$K$62"]
[70118325,{"$f":"'Specifieke informatie A'!$J$63","v":0},null,null,null,"*='Specifieke informatie A'!$J$63"]
[70118326,{"$f":"'Specifieke informatie A'!$K$63","v":0},null,null,null,"*='Specifieke informatie A'!$K$63"]
[70118327,{"$f":"'Specifieke informatie A'!$J$64","v":0},null,null,null,"*='Specifieke informatie A'!$J$64"]
[70118328,{"$f":"'Specifieke informatie A'!$K$64","v":0},null,null,null,"*='Specifieke informatie A'!$K$64"]
[70118329,{"$f":"'Specifieke informatie A'!$J$65","v":0},null,null,null,"*='Specifieke informatie A'!$J$65"]
[70118330,{"$f":"'Specifieke informatie A'!$K$65","v":0},null,null,null,"*='Specifieke informatie A'!$K$65"]
[70118331,{"$f":"'Specifieke informatie A'!$J$66","v":0},null,null,null,"*='Specifieke informatie A'!$J$66"]
[70118332,{"$f":"'Specifieke informatie A'!$K$66","v":0},null,null,null,"*='Specifieke informatie A'!$K$66"]
[70118333,{"$f":"'Specifieke informatie A'!$J$67","v":0},null,null,null,"*='Specifieke informatie A'!$J$67"]
[70118334,{"$f":"'Specifieke informatie A'!$K$67","v":0},null,null,null,"*='Specifieke informatie A'!$K$67"]
[70118335,{"$f":"'Specifieke informatie A'!$J$68","v":0},null,null,null,"*='Specifieke informatie A'!$J$68"]
[70118336,{"$f":"'Specifieke informatie A'!$K$68","v":0},null,null,null,"*='Specifieke informatie A'!$K$68"]
[70118337,{"$f":"'Specifieke informatie A'!$J$69","v":0},null,null,null,"*='Specifieke informatie A'!$J$69"]
[70118338,{"$f":"'Specifieke informatie A'!$K$69","v":0},null,null,null,"*='Specifieke informatie A'!$K$69"]
[70118299,{"$f":"'Specifieke informatie A'!$J$70","v":0},null,null,null,"*='Specifieke informatie A'!$J$70"]
[70118300,{"$f":"'Specifieke informatie A'!$K$70","v":0},null,null,null,"*='Specifieke informatie A'!$K$70"]
[70118301,{"$f":"'Specifieke informatie A'!$J$71","v":0},null,null,null,"*='Specifieke informatie A'!$J$71"]
[70118302,{"$f":"'Specifieke informatie A'!$K$71","v":0},null,null,null,"*='Specifieke informatie A'!$K$71"]
[70118303,{"$f":"'Specifieke informatie A'!$J$72","v":0},null,null,null,"*='Specifieke informatie A'!$J$72"]
[70118304,{"$f":"'Specifieke informatie A'!$K$72","v":0},null,null,null,"*='Specifieke informatie A'!$K$72"]
[70118305,{"$f":"'Specifieke informatie A'!$J$73","v":0},null,null,null,"*='Specifieke informatie A'!$J$73"]
[70118306,{"$f":"'Specifieke informatie A'!$K$73","v":0},null,null,null,"*='Specifieke informatie A'!$K$73"]
[70118307,{"$f":"'Specifieke informatie A'!$J$74","v":0},null,null,null,"*='Specifieke informatie A'!$J$74"]
[70118308,{"$f":"'Specifieke informatie A'!$K$74","v":0},null,null,null,"*='Specifieke informatie A'!$K$74"]
[70118309,{"$f":"'Specifieke informatie A'!$J$75","v":0},null,null,null,"*='Specifieke informatie A'!$J$75"]
[70118310,{"$f":"'Specifieke informatie A'!$K$75","v":0},null,null,null,"*='Specifieke informatie A'!$K$75"]
[70118311,{"$f":"'Specifieke informatie A'!$J$76","v":0},null,null,null,"*='Specifieke informatie A'!$J$76"]
[70118312,{"$f":"'Specifieke informatie A'!$K$76","v":0},null,null,null,"*='Specifieke informatie A'!$K$76"]
[70118313,{"$f":"'Specifieke informatie A'!$J$77","v":0},null,null,null,"*='Specifieke informatie A'!$J$77"]
[70118314,{"$f":"'Specifieke informatie A'!$K$77","v":0},null,null,null,"*='Specifieke informatie A'!$K$77"]
[70118315,{"$f":"'Specifieke informatie A'!$J$78","v":0},null,null,null,"*='Specifieke informatie A'!$J$78"]
[70118316,{"$f":"'Specifieke informatie A'!$K$78","v":0},null,null,null,"*='Specifieke informatie A'!$K$78"]
[70118339,{"$f":"'Specifieke informatie A'!$L$84","v":0},null,null,null,"*='Specifieke informatie A'!$L$84"]
[70118340,{"$f":"'Specifieke informatie A'!$L$85","v":0},null,null,null,"*='Specifieke informatie A'!$L$85"]
[70118839,{"$f":"'Specifieke informatie A'!$J$104","v":0},null,null,null,"*='Specifieke informatie A'!$J$104"]
[70118840,{"$f":"'Specifieke informatie A'!$K$104","v":0},null,null,null,"*='Specifieke informatie A'!$K$104"]
[70118841,{"$f":"'Specifieke informatie A'!$J$105","v":0},null,null,null,"*='Specifieke informatie A'!$J$105"]
[70118842,{"$f":"'Specifieke informatie A'!$K$105","v":0},null,null,null,"*='Specifieke informatie A'!$K$105"]
[70118843,{"$f":"'Specifieke informatie A'!$J$106","v":0},null,null,null,"*='Specifieke informatie A'!$J$106"]
[70118844,{"$f":"'Specifieke informatie A'!$K$106","v":0},null,null,null,"*='Specifieke informatie A'!$K$106"]
[70118845,{"$f":"'Specifieke informatie A'!$J$107","v":0},null,null,null,"*='Specifieke informatie A'!$J$107"]
[70118846,{"$f":"'Specifieke informatie A'!$K$107","v":0},null,null,null,"*='Specifieke informatie A'!$K$107"]
[70118847,{"$f":"'Specifieke informatie A'!$J$108","v":0},null,null,null,"*='Specifieke informatie A'!$J$108"]
[70118848,{"$f":"'Specifieke informatie A'!$K$108","v":0},null,null,null,"*='Specifieke informatie A'!$K$108"]
[70118849,{"$f":"'Specifieke informatie A'!$J$109","v":0},null,null,null,"*='Specifieke informatie A'!$J$109"]
[70118850,{"$f":"'Specifieke informatie A'!$K$109","v":0},null,null,null,"*='Specifieke informatie A'!$K$109"]
[70118851,{"$f":"'Specifieke informatie A'!$J$110","v":0},null,null,null,"*='Specifieke informatie A'!$J$110"]
[70118852,{"$f":"'Specifieke informatie A'!$K$110","v":0},null,null,null,"*='Specifieke informatie A'!$K$110"]
[70118853,{"$f":"'Specifieke informatie A'!$J$111","v":0},null,null,null,"*='Specifieke informatie A'!$J$111"]
[70118854,{"$f":"'Specifieke informatie A'!$K$111","v":0},null,null,null,"*='Specifieke informatie A'!$K$111"]
[70118855,{"$f":"'Specifieke informatie A'!$J$112","v":0},null,null,null,"*='Specifieke informatie A'!$J$112"]
[70118856,{"$f":"'Specifieke informatie A'!$K$112","v":0},null,null,null,"*='Specifieke informatie A'!$K$112"]
[70118857,{"$f":"'Specifieke informatie A'!$J$113","v":0},null,null,null,"*='Specifieke informatie A'!$J$113"]
[70118858,{"$f":"'Specifieke informatie A'!$K$113","v":0},null,null,null,"*='Specifieke informatie A'!$K$113"]
[70118859,{"$f":"'Specifieke informatie A'!$J$114","v":0},null,null,null,"*='Specifieke informatie A'!$J$114"]
[70118860,{"$f":"'Specifieke informatie A'!$K$114","v":0},null,null,null,"*='Specifieke informatie A'!$K$114"]
[70118861,{"$f":"'Specifieke informatie A'!$J$115","v":0},null,null,null,"*='Specifieke informatie A'!$J$115"]
[70118862,{"$f":"'Specifieke informatie A'!$K$115","v":0},null,null,null,"*='Specifieke informatie A'!$K$115"]
[70118863,{"$f":"'Specifieke informatie A'!$J$116","v":0},null,null,null,"*='Specifieke informatie A'!$J$116"]
[70118864,{"$f":"'Specifieke informatie A'!$K$116","v":0},null,null,null,"*='Specifieke informatie A'!$K$116"]
[70118865,{"$f":"'Specifieke informatie A'!$J$117","v":0},null,null,null,"*='Specifieke informatie A'!$J$117"]
[70118866,{"$f":"'Specifieke informatie A'!$K$117","v":0},null,null,null,"*='Specifieke informatie A'!$K$117"]
[70118867,{"$f":"'Specifieke informatie A'!$J$118","v":0},null,null,null,"*='Specifieke informatie A'!$J$118"]
[70118868,{"$f":"'Specifieke informatie A'!$K$118","v":0},null,null,null,"*='Specifieke informatie A'!$K$118"]
[70118837,{"$f":"'Specifieke informatie A'!$J$119","v":0},null,null,null,"*='Specifieke informatie A'!$J$119"]
[70118838,{"$f":"'Specifieke informatie A'!$K$119","v":0},null,null,null,"*='Specifieke informatie A'!$K$119"]
[70118829,{"$f":"'Specifieke informatie A'!$J$120","v":0},null,null,null,"*='Specifieke informatie A'!$J$120"]
[70118830,{"$f":"'Specifieke informatie A'!$K$120","v":0},null,null,null,"*='Specifieke informatie A'!$K$120"]
[70118831,{"$f":"'Specifieke informatie A'!$J$121","v":0},null,null,null,"*='Specifieke informatie A'!$J$121"]
[70118832,{"$f":"'Specifieke informatie A'!$K$121","v":0},null,null,null,"*='Specifieke informatie A'!$K$121"]
[70118833,{"$f":"'Specifieke informatie A'!$J$122","v":0},null,null,null,"*='Specifieke informatie A'!$J$122"]
[70118834,{"$f":"'Specifieke informatie A'!$K$122","v":0},null,null,null,"*='Specifieke informatie A'!$K$122"]
[70118835,{"$f":"'Specifieke informatie A'!$J$123","v":0},null,null,null,"*='Specifieke informatie A'!$J$123"]
[70118836,{"$f":"'Specifieke informatie A'!$K$123","v":0},null,null,null,"*='Specifieke informatie A'!$K$123"]
[70118911,{"$f":"'Specifieke informatie A'!$L$129","v":0},null,null,null,"*='Specifieke informatie A'!$L$129"]
[70118910,{"$f":"'Specifieke informatie A'!$L$130","v":0},null,null,null,"*='Specifieke informatie A'!$L$130"]
[70118870,{"$f":"'Specifieke informatie C'!$L$13","v":0},null,null,null,"*='Specifieke informatie C'!$L$13"]
[70118873,{"$f":"'Specifieke informatie C'!$L$15","v":0},null,null,null,"*='Specifieke informatie C'!$L$15"]
[70118869,{"$f":"'Specifieke informatie C'!$L$14","v":0},null,null,null,"*='Specifieke informatie C'!$L$14"]
[70118501,{"$f":"'Specifieke informatie C'!$L$20","v":0},null,null,null,"*='Specifieke informatie C'!$L$20"]
[70118502,{"$f":"'Specifieke informatie C'!$L$21","v":0},null,null,null,"*='Specifieke informatie C'!$L$21"]
[70118504,{"$f":"'Specifieke informatie C'!$L$22","v":0},null,null,null,"*='Specifieke informatie C'!$L$22"]
[70118505,{"$f":"'Specifieke informatie C'!$L$23","v":0},null,null,null,"*='Specifieke informatie C'!$L$23"]
[70118506,{"$f":"'Specifieke informatie C'!$L$24","v":0},null,null,null,"*='Specifieke informatie C'!$L$24"]
[70118503,{"$f":"'Specifieke informatie C'!$L$25","v":0},null,null,null,"*='Specifieke informatie C'!$L$25"]
[70118507,{"$f":"'Specifieke informatie C'!$L$26","v":0},null,null,null,"*='Specifieke informatie C'!$L$26"]
[70118973,{"$f":"'Specifieke informatie C'!$G$156","v":0},null,null,null,"*='Specifieke informatie C'!$G$156"]
[70118974,{"$f":"'Specifieke informatie C'!$H$156","v":0},null,null,null,"*='Specifieke informatie C'!$H$156"]
[70118975,{"$f":"'Specifieke informatie C'!$I$156","v":0},null,null,null,"*='Specifieke informatie C'!$I$156"]
[70118976,{"$f":"'Specifieke informatie C'!$J$156","v":0},null,null,null,"*='Specifieke informatie C'!$J$156"]
[70118977,{"$f":"'Specifieke informatie C'!$G$157","v":0},null,null,null,"*='Specifieke informatie C'!$G$157"]
[70118978,{"$f":"'Specifieke informatie C'!$H$157","v":0},null,null,null,"*='Specifieke informatie C'!$H$157"]
[70118979,{"$f":"'Specifieke informatie C'!$I$157","v":0},null,null,null,"*='Specifieke informatie C'!$I$157"]
[70118980,{"$f":"'Specifieke informatie C'!$J$157","v":0},null,null,null,"*='Specifieke informatie C'!$J$157"]
[70118981,{"$f":"'Specifieke informatie C'!$G$158","v":0},null,null,null,"*='Specifieke informatie C'!$G$158"]
[70118982,{"$f":"'Specifieke informatie C'!$H$158","v":0},null,null,null,"*='Specifieke informatie C'!$H$158"]
[70118983,{"$f":"'Specifieke informatie C'!$I$158","v":0},null,null,null,"*='Specifieke informatie C'!$I$158"]
[70118984,{"$f":"'Specifieke informatie C'!$J$158","v":0},null,null,null,"*='Specifieke informatie C'!$J$158"]
[70118291,{"$f":"'Specifieke informatie C'!$L$211","v":0},null,null,null,"*='Specifieke informatie C'!$L$211"]
[70118292,{"$f":"'Specifieke informatie C'!$L$212","v":0},null,null,null,"*='Specifieke informatie C'!$L$212"]
[70118345,{"$f":"Kostenverzamelstaat!$I$28","v":0},null,null,null,"*=Kostenverzamelstaat!$I$28"]
[70118346,{"$f":"Kostenverzamelstaat!$J$28","v":0},null,null,null,"*=Kostenverzamelstaat!$J$28"]
[70118347,{"$f":"Kostenverzamelstaat!$K$28","v":0},null,null,null,"*=Kostenverzamelstaat!$K$28"]
[70118348,{"$f":"Kostenverzamelstaat!$L$28","v":0},null,null,null,"*=Kostenverzamelstaat!$L$28"]
[70118349,{"$f":"Kostenverzamelstaat!$M$28","v":0},null,null,null,"*=Kostenverzamelstaat!$M$28"]
[70118350,{"$f":"Kostenverzamelstaat!$N$28","v":0},null,null,null,"*=Kostenverzamelstaat!$N$28"]
[70118351,{"$f":"'Specifieke informatie C'!$L$32","v":0},null,null,null,"*='Specifieke informatie C'!$L$32"]
[70118352,{"$f":"'Specifieke informatie C'!$L$33","v":0},null,null,null,"*='Specifieke informatie C'!$L$33"]
[70118353,{"$f":"'Specifieke informatie C'!$L$34","v":0},null,null,null,"*='Specifieke informatie C'!$L$34"]
[70118354,{"$f":"'Specifieke informatie C'!$L$35","v":0},null,null,null,"*='Specifieke informatie C'!$L$35"]
[70118526,{"$f":"'Specifieke informatie C'!$L$40","v":0},null,null,null,"*='Specifieke informatie C'!$L$40"]
[70118527,{"$f":"'Specifieke informatie C'!$L$41","v":0},null,null,null,"*='Specifieke informatie C'!$L$41"]
[70119172,{"$f":"'Specifieke informatie C'!$L$42","v":0},null,null,null,"*='Specifieke informatie C'!$L$42"]
[70119171,{"$f":"'Specifieke informatie C'!$L$43","v":0},null,null,null,"*='Specifieke informatie C'!$L$43"]
[70119112,{"$f":"'Specifieke informatie C'!$L$54","v":0},null,null,null,"*='Specifieke informatie C'!$L$54"]
[70119113,{"$f":"'Specifieke informatie C'!$L$55","v":0},null,null,null,"*='Specifieke informatie C'!$L$55"]
[70119114,{"$f":"'Specifieke informatie C'!$L$60","v":0},null,null,null,"*='Specifieke informatie C'!$L$60"]
[70119115,{"$f":"'Specifieke informatie C'!$L$61","v":0},null,null,null,"*='Specifieke informatie C'!$L$61"]
[70119116,{"$f":"'Specifieke informatie C'!$L$67","v":0},null,null,null,"*='Specifieke informatie C'!$L$67"]
[70119117,{"$f":"'Specifieke informatie C'!$L$68","v":0},null,null,null,"*='Specifieke informatie C'!$L$68"]
[70119118,{"$f":"'Specifieke informatie C'!$L$69","v":0},null,null,null,"*='Specifieke informatie C'!$L$69"]
[70119119,{"$f":"'Specifieke informatie C'!L70","v":0},null,null,null,"*='Specifieke informatie C'!L70"]
[70119120,{"$f":"'Specifieke informatie C'!$L$77","v":0},null,null,null,"*='Specifieke informatie C'!$L$77"]
[70119121,{"$f":"'Specifieke informatie C'!$L$78","v":0},null,null,null,"*='Specifieke informatie C'!$L$78"]
[70119122,{"$f":"'Specifieke informatie C'!$L$79","v":0},null,null,null,"*='Specifieke informatie C'!$L$79"]
[70118562,{"$f":"'Specifieke informatie C'!$L$95","v":0},null,null,null,"*='Specifieke informatie C'!$L$95"]
[70118558,{"$f":"'Specifieke informatie C'!$L$96","v":0},null,null,null,"*='Specifieke informatie C'!$L$96"]
[70118559,{"$f":"'Specifieke informatie C'!$L$97","v":0},null,null,null,"*='Specifieke informatie C'!$L$97"]
[70118560,{"$f":"'Specifieke informatie C'!$L$98","v":0},null,null,null,"*='Specifieke informatie C'!$L$98"]
[70118561,{"$f":"'Specifieke informatie C'!$L$99","v":0},null,null,null,"*='Specifieke informatie C'!$L$99"]
[70118761,{"$f":"'Specifieke informatie C'!$L$104","v":0},null,null,null,"*='Specifieke informatie C'!$L$104"]
[70118543,{"$f":"'Specifieke informatie C'!$L$108","v":0},null,null,null,"*='Specifieke informatie C'!$L$108"]
[70118544,{"$f":"'Specifieke informatie C'!$L$109","v":0},null,null,null,"*='Specifieke informatie C'!$L$109"]
[70118545,{"$f":"'Specifieke informatie C'!$L$110","v":0},null,null,null,"*='Specifieke informatie C'!$L$110"]
[70118546,{"$f":"'Specifieke informatie C'!$L$111","v":0},null,null,null,"*='Specifieke informatie C'!$L$111"]
[70118547,{"$f":"'Specifieke informatie C'!$L$112","v":0},null,null,null,"*='Specifieke informatie C'!$L$112"]
[70118548,{"$f":"'Specifieke informatie C'!$L$113","v":0},null,null,null,"*='Specifieke informatie C'!$L$113"]
[70118549,{"$f":"'Specifieke informatie C'!$L$114","v":0},null,null,null,"*='Specifieke informatie C'!$L$114"]
[70118550,{"$f":"'Specifieke informatie C'!$L$115","v":0},null,null,null,"*='Specifieke informatie C'!$L$115"]
[70118551,{"$f":"'Specifieke informatie C'!$L$116","v":0},null,null,null,"*='Specifieke informatie C'!$L$116"]
[70118552,{"$f":"'Specifieke informatie C'!$L$117","v":0},null,null,null,"*='Specifieke informatie C'!$L$117"]
[70118553,{"$f":"'Specifieke informatie C'!$L$118","v":0},null,null,null,"*='Specifieke informatie C'!$L$118"]
[70118554,{"$f":"'Specifieke informatie C'!$L$119","v":0},null,null,null,"*='Specifieke informatie C'!$L$119"]
[70118555,{"$f":"'Specifieke informatie C'!$L$120","v":0},null,null,null,"*='Specifieke informatie C'!$L$120"]
[70118556,{"$f":"'Specifieke informatie C'!$L$121","v":0},null,null,null,"*='Specifieke informatie C'!$L$121"]
[70118557,{"$f":"'Specifieke informatie C'!$L$122","v":0},null,null,null,"*='Specifieke informatie C'!$L$122"]
[70118758,{"$f":"'Specifieke informatie C'!$L$127","v":0},null,null,null,"*='Specifieke informatie C'!$L$127"]
[70118759,{"$f":"'Specifieke informatie C'!$L$128","v":0},null,null,null,"*='Specifieke informatie C'!$L$128"]
[70118760,{"$f":"'Specifieke informatie C'!$L$129","v":0},null,null,null,"*='Specifieke informatie C'!$L$129"]
[70119173,{"$f":"'Specifieke informatie C'!$L$139","v":0},null,null,null,"*='Specifieke informatie C'!$L$139"]
[70119174,{"$f":"'Specifieke informatie C'!$L$140","v":0},null,null,null,"*='Specifieke informatie C'!$L$140"]
[70119175,{"$f":"'Specifieke informatie C'!$L$141","v":0},null,null,null,"*='Specifieke informatie C'!$L$141"]
[70119176,{"$f":"'Specifieke informatie C'!$L$142","v":0},null,null,null,"*='Specifieke informatie C'!$L$142"]
[70119177,{"$f":"'Specifieke informatie C'!$L$147","v":0},null,null,null,"*='Specifieke informatie C'!$L$147"]
[70119178,{"$f":"'Specifieke informatie C'!$L$148","v":0},null,null,null,"*='Specifieke informatie C'!$L$148"]
[70119179,{"$f":"'Specifieke informatie C'!$L$149","v":0},null,null,null,"*='Specifieke informatie C'!$L$149"]
[70119180,{"$f":"'Specifieke informatie C'!$L$150","v":0},null,null,null,"*='Specifieke informatie C'!$L$150"]
[70118947,{"$f":"Contractinformatie!$K$34","v":0},null,null,null,"*=Contractinformatie!$K$34"]
[70118948,{"$f":"Contractinformatie!$K$35","v":0},null,null,null,"*=Contractinformatie!$K$35"]
[70118949,{"$f":"Contractinformatie!$K$36","v":0},null,null,null,"*=Contractinformatie!$K$36"]
[70118950,{"$f":"Contractinformatie!$K$37","v":0},null,null,null,"*=Contractinformatie!$K$37"]
[70118951,{"$f":"Contractinformatie!$K$39","v":0},null,null,null,"*=Contractinformatie!$K$39"]
[70118952,{"$f":"Contractinformatie!$K$40","v":0},null,null,null,"*=Contractinformatie!$K$40"]
[70118953,{"$f":"Contractinformatie!$K$44","v":0},null,null,null,"*=Contractinformatie!$K$44"]
[70118924,{"$f":"'Specifieke informatie C'!$G$165","v":0},null,null,null,"*='Specifieke informatie C'!$G$165"]
[70118925,{"$f":"'Specifieke informatie C'!$H$165","v":0},null,null,null,"*='Specifieke informatie C'!$H$165"]
[70118926,{"$f":"'Specifieke informatie C'!$I$165","v":0},null,null,null,"*='Specifieke informatie C'!$I$165"]
[70118927,{"$f":"'Specifieke informatie C'!$J$165","v":0},null,null,null,"*='Specifieke informatie C'!$J$165"]
[70118912,{"$f":"'Specifieke informatie C'!$G$166","v":0},null,null,null,"*='Specifieke informatie C'!$G$166"]
[70118913,{"$f":"'Specifieke informatie C'!$H$166","v":0},null,null,null,"*='Specifieke informatie C'!$H$166"]
[70118914,{"$f":"'Specifieke informatie C'!$I$166","v":0},null,null,null,"*='Specifieke informatie C'!$I$166"]
[70118915,{"$f":"'Specifieke informatie C'!$J$166","v":0},null,null,null,"*='Specifieke informatie C'!$J$166"]
[70118916,{"$f":"'Specifieke informatie C'!$G$167","v":0},null,null,null,"*='Specifieke informatie C'!$G$167"]
[70118917,{"$f":"'Specifieke informatie C'!$H$167","v":0},null,null,null,"*='Specifieke informatie C'!$H$167"]
[70118918,{"$f":"'Specifieke informatie C'!$I$167","v":0},null,null,null,"*='Specifieke informatie C'!$I$167"]
[70118919,{"$f":"'Specifieke informatie C'!$J$167","v":0},null,null,null,"*='Specifieke informatie C'!$J$167"]
[70118920,{"$f":"'Specifieke informatie C'!$G$168","v":0},null,null,null,"*='Specifieke informatie C'!$G$168"]
[70118921,{"$f":"'Specifieke informatie C'!$H$168","v":0},null,null,null,"*='Specifieke informatie C'!$H$168"]
[70118922,{"$f":"'Specifieke informatie C'!$I$168","v":0},null,null,null,"*='Specifieke informatie C'!$I$168"]
[70118923,{"$f":"'Specifieke informatie C'!$J$168","v":0},null,null,null,"*='Specifieke informatie C'!$J$168"]
[70118586,{"$f":"'Specifieke informatie C'!$G$181","v":0},null,null,null,"*='Specifieke informatie C'!$G$181"]
[70118587,{"$f":"'Specifieke informatie C'!$H$181","v":0},null,null,null,"*='Specifieke informatie C'!$H$181"]
[70118588,{"$f":"'Specifieke informatie C'!$I$181","v":0},null,null,null,"*='Specifieke informatie C'!$I$181"]
[70118589,{"$f":"'Specifieke informatie C'!$J$181","v":0},null,null,null,"*='Specifieke informatie C'!$J$181"]
[70118590,{"$f":"'Specifieke informatie C'!$G$182","v":0},null,null,null,"*='Specifieke informatie C'!$G$182"]
[70118591,{"$f":"'Specifieke informatie C'!$H$182","v":0},null,null,null,"*='Specifieke informatie C'!$H$182"]
[70118592,{"$f":"'Specifieke informatie C'!$I$182","v":0},null,null,null,"*='Specifieke informatie C'!$I$182"]
[70118593,{"$f":"'Specifieke informatie C'!$J$182","v":0},null,null,null,"*='Specifieke informatie C'!$J$182"]
[70118594,{"$f":"'Specifieke informatie C'!$G$183","v":0},null,null,null,"*='Specifieke informatie C'!$G$183"]
[70118595,{"$f":"'Specifieke informatie C'!$H$183","v":0},null,null,null,"*='Specifieke informatie C'!$H$183"]
[70118596,{"$f":"'Specifieke informatie C'!$I$183","v":0},null,null,null,"*='Specifieke informatie C'!$I$183"]
[70118597,{"$f":"'Specifieke informatie C'!$J$183","v":0},null,null,null,"*='Specifieke informatie C'!$J$183"]
[70118598,{"$f":"'Specifieke informatie C'!$G$184","v":0},null,null,null,"*='Specifieke informatie C'!$G$184"]
[70118599,{"$f":"'Specifieke informatie C'!$H$184","v":0},null,null,null,"*='Specifieke informatie C'!$H$184"]
[70118600,{"$f":"'Specifieke informatie C'!$I$184","v":0},null,null,null,"*='Specifieke informatie C'!$I$184"]
[70118601,{"$f":"'Specifieke informatie C'!$J$184","v":0},null,null,null,"*='Specifieke informatie C'!$J$184"]
[70118570,{"$f":"'Specifieke informatie C'!$G$185","v":0},null,null,null,"*='Specifieke informatie C'!$G$185"]
[70118571,{"$f":"'Specifieke informatie C'!$H$185","v":0},null,null,null,"*='Specifieke informatie C'!$H$185"]
[70118572,{"$f":"'Specifieke informatie C'!$I$185","v":0},null,null,null,"*='Specifieke informatie C'!$I$185"]
[70118573,{"$f":"'Specifieke informatie C'!$J$185","v":0},null,null,null,"*='Specifieke informatie C'!$J$185"]
[70118574,{"$f":"'Specifieke informatie C'!$G$186","v":0},null,null,null,"*='Specifieke informatie C'!$G$186"]
[70118575,{"$f":"'Specifieke informatie C'!$H$186","v":0},null,null,null,"*='Specifieke informatie C'!$H$186"]
[70118576,{"$f":"'Specifieke informatie C'!$I$186","v":0},null,null,null,"*='Specifieke informatie C'!$I$186"]
[70118577,{"$f":"'Specifieke informatie C'!$J$186","v":0},null,null,null,"*='Specifieke informatie C'!$J$186"]
[70118578,{"$f":"'Specifieke informatie C'!$G$187","v":0},null,null,null,"*='Specifieke informatie C'!$G$187"]
[70118579,{"$f":"'Specifieke informatie C'!$H$187","v":0},null,null,null,"*='Specifieke informatie C'!$H$187"]
[70118580,{"$f":"'Specifieke informatie C'!$I$187","v":0},null,null,null,"*='Specifieke informatie C'!$I$187"]
[70118581,{"$f":"'Specifieke informatie C'!$J$187","v":0},null,null,null,"*='Specifieke informatie C'!$J$187"]
[70118582,{"$f":"'Specifieke informatie C'!$G$188","v":0},null,null,null,"*='Specifieke informatie C'!$G$188"]
[70118583,{"$f":"'Specifieke informatie C'!$H$188","v":0},null,null,null,"*='Specifieke informatie C'!$H$188"]
[70118584,{"$f":"'Specifieke informatie C'!$I$188","v":0},null,null,null,"*='Specifieke informatie C'!$I$188"]
[70118585,{"$f":"'Specifieke informatie C'!$J$188","v":0},null,null,null,"*='Specifieke informatie C'!$J$188"]
[70118605,{"$f":"Wanbetalers!$I$12","v":0},null,null,null,"*=Wanbetalers!$I$12"]
[70118606,{"$f":"Wanbetalers!$J$12","v":0},null,null,null,"*=Wanbetalers!$J$12"]
[70118607,{"$f":"Wanbetalers!$K$12","v":0},null,null,null,"*=Wanbetalers!$K$12"]
[70118617,{"$f":"Wanbetalers!$I$13","v":0},null,null,null,"*=Wanbetalers!$I$13"]
[70118618,{"$f":"Wanbetalers!$J$13","v":0},null,null,null,"*=Wanbetalers!$J$13"]
[70118619,{"$f":"Wanbetalers!$K$13","v":0},null,null,null,"*=Wanbetalers!$K$13"]
[70118629,{"$f":"Wanbetalers!$I$14","v":0},null,null,null,"*=Wanbetalers!$I$14"]
[70118630,{"$f":"Wanbetalers!$J$14","v":0},null,null,null,"*=Wanbetalers!$J$14"]
[70118631,{"$f":"Wanbetalers!$K$14","v":0},null,null,null,"*=Wanbetalers!$K$14"]
[70118641,{"$f":"Wanbetalers!$I$17","v":0},null,null,null,"*=Wanbetalers!$I$17"]
[70118642,{"$f":"Wanbetalers!$J$17","v":0},null,null,null,"*=Wanbetalers!$J$17"]
[70118643,{"$f":"Wanbetalers!$K$17","v":0},null,null,null,"*=Wanbetalers!$K$17"]
[70118653,{"$f":"Wanbetalers!$I$18","v":0},null,null,null,"*=Wanbetalers!$I$18"]
[70118654,{"$f":"Wanbetalers!$J$18","v":0},null,null,null,"*=Wanbetalers!$J$18"]
[70118655,{"$f":"Wanbetalers!$K$18","v":0},null,null,null,"*=Wanbetalers!$K$18"]
[70118725,{"$f":"Wanbetalers!$I$21","v":0},null,null,null,"*=Wanbetalers!$I$21"]
[70118726,{"$f":"Wanbetalers!$J$21","v":0},null,null,null,"*=Wanbetalers!$J$21"]
[70118727,{"$f":"Wanbetalers!$K$21","v":0},null,null,null,"*=Wanbetalers!$K$21"]
[70118665,{"$f":"Wanbetalers!$I$22","v":0},null,null,null,"*=Wanbetalers!$I$22"]
[70118666,{"$f":"Wanbetalers!$J$22","v":0},null,null,null,"*=Wanbetalers!$J$22"]
[70118667,{"$f":"Wanbetalers!$K$22","v":0},null,null,null,"*=Wanbetalers!$K$22"]
[70118677,{"$f":"Wanbetalers!$I$23","v":0},null,null,null,"*=Wanbetalers!$I$23"]
[70118678,{"$f":"Wanbetalers!$J$23","v":0},null,null,null,"*=Wanbetalers!$J$23"]
[70118679,{"$f":"Wanbetalers!$K$23","v":0},null,null,null,"*=Wanbetalers!$K$23"]
[70118689,{"$f":"Wanbetalers!$I$26","v":0},null,null,null,"*=Wanbetalers!$I$26"]
[70118690,{"$f":"Wanbetalers!$J$26","v":0},null,null,null,"*=Wanbetalers!$J$26"]
[70118691,{"$f":"Wanbetalers!$K$26","v":0},null,null,null,"*=Wanbetalers!$K$26"]
[70118701,{"$f":"Wanbetalers!$I$27","v":0},null,null,null,"*=Wanbetalers!$I$27"]
[70118702,{"$f":"Wanbetalers!$J$27","v":0},null,null,null,"*=Wanbetalers!$J$27"]
[70118703,{"$f":"Wanbetalers!$K$27","v":0},null,null,null,"*=Wanbetalers!$K$27"]
[70118713,{"$f":"Wanbetalers!$I$28","v":0},null,null,null,"*=Wanbetalers!$I$28"]
[70118714,{"$f":"Wanbetalers!$J$28","v":0},null,null,null,"*=Wanbetalers!$J$28"]
[70118715,{"$f":"Wanbetalers!$K$28","v":0},null,null,null,"*=Wanbetalers!$K$28"]
[70118355,{"$f":"'Specifieke informatie C'!$G$195","v":0},null,null,null,"*='Specifieke informatie C'!$G$195"]
[70118356,{"$f":"'Specifieke informatie C'!$H$195","v":0},null,null,null,"*='Specifieke informatie C'!$H$195"]
[70118357,{"$f":"'Specifieke informatie C'!$I$195","v":0},null,null,null,"*='Specifieke informatie C'!$I$195"]
[70118358,{"$f":"'Specifieke informatie C'!$J$195","v":0},null,null,null,"*='Specifieke informatie C'!$J$195"]
[70118359,{"$f":"'Specifieke informatie C'!$K$195","v":0},null,null,null,"*='Specifieke informatie C'!$K$195"]
[70118360,{"$f":"'Specifieke informatie C'!$L$195","v":0},null,null,null,"*='Specifieke informatie C'!$L$195"]
[70118361,{"$f":"'Specifieke informatie C'!$G$196","v":0},null,null,null,"*='Specifieke informatie C'!$G$196"]
[70118362,{"$f":"'Specifieke informatie C'!$H$196","v":0},null,null,null,"*='Specifieke informatie C'!$H$196"]
[70118363,{"$f":"'Specifieke informatie C'!$I$196","v":0},null,null,null,"*='Specifieke informatie C'!$I$196"]
[70118364,{"$f":"'Specifieke informatie C'!$J$196","v":0},null,null,null,"*='Specifieke informatie C'!$J$196"]
[70118365,{"$f":"'Specifieke informatie C'!$K$196","v":0},null,null,null,"*='Specifieke informatie C'!$K$196"]
[70118366,{"$f":"'Specifieke informatie C'!$L$196","v":0},null,null,null,"*='Specifieke informatie C'!$L$196"]
[70118367,{"$f":"'Specifieke informatie C'!$G$197","v":0},null,null,null,"*='Specifieke informatie C'!$G$197"]
[70118368,{"$f":"'Specifieke informatie C'!$H$197","v":0},null,null,null,"*='Specifieke informatie C'!$H$197"]
[70118369,{"$f":"'Specifieke informatie C'!$I$197","v":0},null,null,null,"*='Specifieke informatie C'!$I$197"]
[70118370,{"$f":"'Specifieke informatie C'!$J$197","v":0},null,null,null,"*='Specifieke informatie C'!$J$197"]
[70118371,{"$f":"'Specifieke informatie C'!$K$197","v":0},null,null,null,"*='Specifieke informatie C'!$K$197"]
[70118372,{"$f":"'Specifieke informatie C'!$L$197","v":0},null,null,null,"*='Specifieke informatie C'!$L$197"]
[70118373,{"$f":"'Specifieke informatie C'!$G$198","v":0},null,null,null,"*='Specifieke informatie C'!$G$198"]
[70118374,{"$f":"'Specifieke informatie C'!$H$198","v":0},null,null,null,"*='Specifieke informatie C'!$H$198"]
[70118375,{"$f":"'Specifieke informatie C'!$I$198","v":0},null,null,null,"*='Specifieke informatie C'!$I$198"]
[70118376,{"$f":"'Specifieke informatie C'!$J$198","v":0},null,null,null,"*='Specifieke informatie C'!$J$198"]
[70118377,{"$f":"'Specifieke informatie C'!$K$198","v":0},null,null,null,"*='Specifieke informatie C'!$K$198"]
[70118378,{"$f":"'Specifieke informatie C'!$L$198","v":0},null,null,null,"*='Specifieke informatie C'!$L$198"]
[70118379,{"$f":"'Specifieke informatie C'!$G$201","v":0},null,null,null,"*='Specifieke informatie C'!$G$201"]
[70118380,{"$f":"'Specifieke informatie C'!$H$201","v":0},null,null,null,"*='Specifieke informatie C'!$H$201"]
[70118381,{"$f":"'Specifieke informatie C'!$I$201","v":0},null,null,null,"*='Specifieke informatie C'!$I$201"]
[70118382,{"$f":"'Specifieke informatie C'!$J$201","v":0},null,null,null,"*='Specifieke informatie C'!$J$201"]
[70118383,{"$f":"'Specifieke informatie C'!$K$201","v":0},null,null,null,"*='Specifieke informatie C'!$K$201"]
[70118384,{"$f":"'Specifieke informatie C'!$L$201","v":0},null,null,null,"*='Specifieke informatie C'!$L$201"]
[70118385,{"$f":"'Specifieke informatie C'!$G$202","v":0},null,null,null,"*='Specifieke informatie C'!$G$202"]
[70118386,{"$f":"'Specifieke informatie C'!$H$202","v":0},null,null,null,"*='Specifieke informatie C'!$H$202"]
[70118387,{"$f":"'Specifieke informatie C'!$I$202","v":0},null,null,null,"*='Specifieke informatie C'!$I$202"]
[70118388,{"$f":"'Specifieke informatie C'!$J$202","v":0},null,null,null,"*='Specifieke informatie C'!$J$202"]
[70118389,{"$f":"'Specifieke informatie C'!$K$202","v":0},null,null,null,"*='Specifieke informatie C'!$K$202"]
[70118390,{"$f":"'Specifieke informatie C'!$L$202","v":0},null,null,null,"*='Specifieke informatie C'!$L$202"]
[70118391,{"$f":"'Specifieke informatie C'!$G$203","v":0},null,null,null,"*='Specifieke informatie C'!$G$203"]
[70118392,{"$f":"'Specifieke informatie C'!$H$203","v":0},null,null,null,"*='Specifieke informatie C'!$H$203"]
[70118393,{"$f":"'Specifieke informatie C'!$I$203","v":0},null,null,null,"*='Specifieke informatie C'!$I$203"]
[70118394,{"$f":"'Specifieke informatie C'!$J$203","v":0},null,null,null,"*='Specifieke informatie C'!$J$203"]
[70118395,{"$f":"'Specifieke informatie C'!$K$203","v":0},null,null,null,"*='Specifieke informatie C'!$K$203"]
[70118396,{"$f":"'Specifieke informatie C'!$L$203","v":0},null,null,null,"*='Specifieke informatie C'!$L$203"]
[70118397,{"$f":"'Specifieke informatie C'!$G$204","v":0},null,null,null,"*='Specifieke informatie C'!$G$204"]
[70118398,{"$f":"'Specifieke informatie C'!$H$204","v":0},null,null,null,"*='Specifieke informatie C'!$H$204"]
[70118399,{"$f":"'Specifieke informatie C'!$I$204","v":0},null,null,null,"*='Specifieke informatie C'!$I$204"]
[70118400,{"$f":"'Specifieke informatie C'!$J$204","v":0},null,null,null,"*='Specifieke informatie C'!$J$204"]
[70118401,{"$f":"'Specifieke informatie C'!$K$204","v":0},null,null,null,"*='Specifieke informatie C'!$K$204"]
[70118402,{"$f":"'Specifieke informatie C'!$L$204","v":0},null,null,null,"*='Specifieke informatie C'!$L$204"]
[70118954,{"$f":"Contractinformatie!$K$54","v":0},null,null,null,"*=Contractinformatie!$K$54"]
[70118955,{"$f":"Contractinformatie!$K$55","v":0},null,null,null,"*=Contractinformatie!$K$55"]
[70118956,{"$f":"Contractinformatie!$K$56","v":0},null,null,null,"*=Contractinformatie!$K$56"]
[70118957,{"$f":"Contractinformatie!$K$57","v":0},null,null,null,"*=Contractinformatie!$K$57"]
[70118958,{"$f":"Contractinformatie!$K$59","v":0},null,null,null,"*=Contractinformatie!$K$59"]
[70118959,{"$f":"Contractinformatie!$K$60","v":0},null,null,null,"*=Contractinformatie!$K$60"]
[70118960,{"$f":"Contractinformatie!$K$64","v":0},null,null,null,"*=Contractinformatie!$K$64"]
[70118763,{"$f":"'Specifieke informatie C'!$L$225","v":0},null,null,null,"*='Specifieke informatie C'!$L$225"]
[70118764,{"$f":"'Specifieke informatie C'!$L$226","v":0},null,null,null,"*='Specifieke informatie C'!$L$226"]
[70118766,{"$f":"'Specifieke informatie C'!$L$231","v":0},null,null,null,"*='Specifieke informatie C'!$L$231"]
[70118767,{"$f":"'Specifieke informatie C'!$L$232","v":0},null,null,null,"*='Specifieke informatie C'!$L$232"]
[70118768,{"$f":"'Specifieke informatie C'!$L$233","v":0},null,null,null,"*='Specifieke informatie C'!$L$233"]
[70118769,{"$f":"'Specifieke informatie C'!$L$234","v":0},null,null,null,"*='Specifieke informatie C'!$L$234"]
[70118765,{"$f":"'Specifieke informatie C'!$L$235","v":0},null,null,null,"*='Specifieke informatie C'!$L$235"]
[70118771,{"$f":"'Specifieke informatie C'!$L$240","v":0},null,null,null,"*='Specifieke informatie C'!$L$240"]
[70118772,{"$f":"'Specifieke informatie C'!$L$241","v":0},null,null,null,"*='Specifieke informatie C'!$L$241"]
[70118773,{"$f":"'Specifieke informatie C'!$L$242","v":0},null,null,null,"*='Specifieke informatie C'!$L$242"]
[70118774,{"$f":"'Specifieke informatie C'!$L$243","v":0},null,null,null,"*='Specifieke informatie C'!$L$243"]
[70118770,{"$f":"'Specifieke informatie C'!$L$244","v":0},null,null,null,"*='Specifieke informatie C'!$L$244"]
[70118567,{"$f":"'Specifieke informatie C'!$L$249","v":0},null,null,null,"*='Specifieke informatie C'!$L$249"]
[70118425,{"$f":"'Specifieke informatie C'!$L$263","v":0},null,null,null,"*='Specifieke informatie C'!$L$263"]
[70118419,{"$f":"'Specifieke informatie C'!$L$264","v":0},null,null,null,"*='Specifieke informatie C'!$L$264"]
[70118420,{"$f":"'Specifieke informatie C'!$L$265","v":0},null,null,null,"*='Specifieke informatie C'!$L$265"]
[70118421,{"$f":"'Specifieke informatie C'!$L$266","v":0},null,null,null,"*='Specifieke informatie C'!$L$266"]
[70118422,{"$f":"'Specifieke informatie C'!$L$267","v":0},null,null,null,"*='Specifieke informatie C'!$L$267"]
[70118423,{"$f":"'Specifieke informatie C'!$L$268","v":0},null,null,null,"*='Specifieke informatie C'!$L$268"]
[70118424,{"$f":"'Specifieke informatie C'!$L$269","v":0},null,null,null,"*='Specifieke informatie C'!$L$269"]
[70118426,{"$f":"'Specifieke informatie C'!$L$274","v":0},null,null,null,"*='Specifieke informatie C'!$L$274"]
[70118427,{"$f":"'Specifieke informatie C'!$L$275","v":0},null,null,null,"*='Specifieke informatie C'!$L$275"]
[70118428,{"$f":"'Specifieke informatie C'!$L$276","v":0},null,null,null,"*='Specifieke informatie C'!$L$276"]
[70119126,{"$f":"Contractinformatie!$K$19","v":0},null,null,null,"*=Contractinformatie!$K$19"]
[70119127,{"$f":"Contractinformatie!$K$20","v":0},null,null,null,"*=Contractinformatie!$K$20"]
[70119128,{"$f":"Contractinformatie!$K$21","v":0},null,null,null,"*=Contractinformatie!$K$21"]
[70119181,{"$f":"'Specifieke informatie C'!L27","v":0},null,null,null,"*='Specifieke informatie C'!L27"]
[70119182,{"$f":"'Specifieke informatie C'!L71","v":0},null,null,null,"*='Specifieke informatie C'!L71"]
[70119183,{"$f":"'Specifieke informatie C'!L72","v":0},null,null,null,"*='Specifieke informatie C'!L72"]
[70119184,{"$f":"'Specifieke informatie C'!L80","v":0},null,null,null,"*='Specifieke informatie C'!L80"]
[70119185,{"$f":"'Specifieke informatie C'!K156","v":0},null,null,null,"*='Specifieke informatie C'!K156"]
[70119186,{"$f":"'Specifieke informatie C'!L156","v":0},null,null,null,"*='Specifieke informatie C'!L156"]
[70119187,{"$f":"'Specifieke informatie C'!K157","v":0},null,null,null,"*='Specifieke informatie C'!K157"]
[70119188,{"$f":"'Specifieke informatie C'!L157","v":0},null,null,null,"*='Specifieke informatie C'!L157"]
[70119189,{"$f":"'Specifieke informatie C'!K158","v":0},null,null,null,"*='Specifieke informatie C'!K158"]
[70119190,{"$f":"'Specifieke informatie C'!L158","v":0},null,null,null,"*='Specifieke informatie C'!L158"]
[70119191,{"$f":"'Specifieke informatie C'!K165","v":0},null,null,null,"*='Specifieke informatie C'!K165"]
[70119192,{"$f":"'Specifieke informatie C'!L165","v":0},null,null,null,"*='Specifieke informatie C'!L165"]
[70119193,{"$f":"'Specifieke informatie C'!K166","v":0},null,null,null,"*='Specifieke informatie C'!K166"]
[70119194,{"$f":"'Specifieke informatie C'!L166","v":0},null,null,null,"*='Specifieke informatie C'!L166"]
[70119195,{"$f":"'Specifieke informatie C'!K167","v":0},null,null,null,"*='Specifieke informatie C'!K167"]
[70119196,{"$f":"'Specifieke informatie C'!L167","v":0},null,null,null,"*='Specifieke informatie C'!L167"]
[70119197,{"$f":"'Specifieke informatie C'!K168","v":0},null,null,null,"*='Specifieke informatie C'!K168"]
[70119198,{"$f":"'Specifieke informatie C'!L168","v":0},null,null,null,"*='Specifieke informatie C'!L168"]
[70119199,{"$f":"'Specifieke informatie C'!K181","v":0},null,null,null,"*='Specifieke informatie C'!K181"]
[70119200,{"$f":"'Specifieke informatie C'!L181","v":0},null,null,null,"*='Specifieke informatie C'!L181"]
[70119201,{"$f":"'Specifieke informatie C'!K182","v":0},null,null,null,"*='Specifieke informatie C'!K182"]
[70119202,{"$f":"'Specifieke informatie C'!L182","v":0},null,null,null,"*='Specifieke informatie C'!L182"]
[70119203,{"$f":"'Specifieke informatie C'!K183","v":0},null,null,null,"*='Specifieke informatie C'!K183"]
[70119204,{"$f":"'Specifieke informatie C'!L183","v":0},null,null,null,"*='Specifieke informatie C'!L183"]
[70119205,{"$f":"'Specifieke informatie C'!K184","v":0},null,null,null,"*='Specifieke informatie C'!K184"]
[70119206,{"$f":"'Specifieke informatie C'!L184","v":0},null,null,null,"*='Specifieke informatie C'!L184"]
[70119207,{"$f":"'Specifieke informatie C'!K185","v":0},null,null,null,"*='Specifieke informatie C'!K185"]
[70119208,{"$f":"'Specifieke informatie C'!L185","v":0},null,null,null,"*='Specifieke informatie C'!L185"]
[70119209,{"$f":"'Specifieke informatie C'!K186","v":0},null,null,null,"*='Specifieke informatie C'!K186"]
[70119210,{"$f":"'Specifieke informatie C'!L186","v":0},null,null,null,"*='Specifieke informatie C'!L186"]
[70119211,{"$f":"'Specifieke informatie C'!K187","v":0},null,null,null,"*='Specifieke informatie C'!K187"]
[70119212,{"$f":"'Specifieke informatie C'!L187","v":0},null,null,null,"*='Specifieke informatie C'!L187"]
[70119213,{"$f":"'Specifieke informatie C'!K188","v":0},null,null,null,"*='Specifieke informatie C'!K188"]
[70119214,{"$f":"'Specifieke informatie C'!L188","v":0},null,null,null,"*='Specifieke informatie C'!L188"]
[70119215,{"$f":"'Specifieke informatie C'!L250","v":0},null,null,null,"*='Specifieke informatie C'!L250"]
[70119218,{"$f":"'Specifieke informatie C'!I283","v":0},null,null,null,"*='Specifieke informatie C'!I283"]
[70119219,{"$f":"'Specifieke informatie C'!J283","v":0},null,null,null,"*='Specifieke informatie C'!J283"]
[70119220,{"$f":"'Specifieke informatie C'!K283","v":0},null,null,null,"*='Specifieke informatie C'!K283"]
[70119221,{"$f":"'Specifieke informatie C'!L283","v":0},null,null,null,"*='Specifieke informatie C'!L283"]
[70119222,{"$f":"'Specifieke informatie C'!G284","v":0},null,null,null,"*='Specifieke informatie C'!G284"]
[70119223,{"$f":"'Specifieke informatie C'!H284","v":0},null,null,null,"*='Specifieke informatie C'!H284"]
[70119224,{"$f":"'Specifieke informatie C'!I284","v":0},null,null,null,"*='Specifieke informatie C'!I284"]
[70119225,{"$f":"'Specifieke informatie C'!J284","v":0},null,null,null,"*='Specifieke informatie C'!J284"]
[70119226,{"$f":"'Specifieke informatie C'!K284","v":0},null,null,null,"*='Specifieke informatie C'!K284"]
[70119227,{"$f":"'Specifieke informatie C'!L284","v":0},null,null,null,"*='Specifieke informatie C'!L284"]
[70119228,{"$f":"Contractinformatie!K68","v":0},null,null,null,"*=Contractinformatie!K68"]
[70119229,{"$f":"Contractinformatie!K69","v":0},null,null,null,"*=Contractinformatie!K69"]
[70119230,{"$f":"Contractinformatie!K70","v":0},null,null,null,"*=Contractinformatie!K70"]
[70119231,{"$f":"Contractinformatie!K76","v":0},null,null,null,"*=Contractinformatie!K76"]
[70119232,{"$f":"Contractinformatie!K77","v":0},null,null,null,"*=Contractinformatie!K77"]
[70119233,{"$f":"Contractinformatie!K78","v":0},null,null,null,"*=Contractinformatie!K78"]
[70119234,{"$f":"Contractinformatie!K81","v":0},null,null,null,"*=Contractinformatie!K81"]
[70119235,{"$f":"Contractinformatie!K82","v":0},null,null,null,"*=Contractinformatie!K82"]
[70119236,{"$f":"Contractinformatie!K83","v":0},null,null,null,"*=Contractinformatie!K83"]

{"sheet":"Parameters","index":12,"n_rows":39,"n_cols":7,"rows_kept":39,"cut":false,"hidden":true,"merged":[[1,4,1,5]]}
[]
[null,"Kwartaal:",2,null,"HASHTOTALEN"]
[null,"Jaar:",2018,null,"Alle waarden tabblad specifieke informatie A",{"$f":"ROUND(SUM(alle_cellen_info_a),0)","v":{"$error":"#REF!"}},"Opm: kolom I..L"]
[null,"Wet:","ZVW",null,"Alle waarden tabblad specifieke informatie B",{"$f":"ROUND(SUM(alle_cellen_info_c),0)","v":173078},"Opm: kolom I..L"]
[null,"Document:",{"$f":"CONCATENATE(\"KS\",jaar_id,wet_id,\".\",kwartaal_id)","v":"KS2018ZVW.2"},null,"Alle waarden tabbladen specifieke informatie A en C",{"$f":"SUM(F3:F4)","v":{"$error":"#REF!"}},"Opm: kolom I..L"]
[null,"Revisie:","A"]
[null,"Revisiedatum:","2018-06-18"]
[null,"Versie:",{"$f":"CONCATENATE(document_id,revisie_id)","v":"KS2018ZVW.2A"}]
[]
[]
[]
[null,"NUMMER_UO","NAAM_UO","FORMAT_UO1"]
[null,"0000","KIES UW UZOVI-NUMMER",{"$f":"CONCATENATE(B13,\" \",C13)","v":"0000 KIES UW UZOVI-NUMMER"}]
[null,"0101","UNIVÉ ZORG","0101 UNIVÉ ZORG"]
[null,"0104","DELTA LLOYD","0104 DELTA LLOYD"]
[null,"0201","OHRA ZIEKTEKOSTENVERZEKERINGEN","0201 OHRA ZIEKTEKOSTENVERZEKERINGEN"]
[null,"0403","ASR ","0403 ASR "]
[null,"0420","CARES ","0420 CARES "]
[null,"0699","IZA","0699 IZA"]
[null,"0736","UMC","0736 UMC"]
[null,"3311","ZILVEREN KRUIS","3311 ZILVEREN KRUIS"]
[null,"3313","INTERPOLIS","3313 INTERPOLIS"]
[null,"3314","OZF","3314 OZF"]
[null,"3329","AVERO",{"$f":"CONCATENATE(B24,\" \",C24)","v":"3329 AVERO"}]
[null,"3332","MENZIS","3332 MENZIS"]
[null,"3333","ANDERZORG","3333 ANDERZORG"]
[null,"3343","ONVZ",{"$f":"CONCATENATE(B27,\" \",C27)","v":"3343 ONVZ"}]
[null,"3351","FBTO",{"$f":"CONCATENATE(B28,\" \",C28)","v":"3351 FBTO"}]
[null,"3352","IPTIQ",{"$f":"CONCATENATE(B29,\" \",C29)","v":"3352 IPTIQ"}]
[null,"7029","DSW","7029 DSW"]
[null,"7032","ENO","7032 ENO"]
[null,"7037","STAD HOLLAND","7037 STAD HOLLAND"]
[null,"7053","OHRA ZORGVERZEKERINGEN","7053 OHRA ZORGVERZEKERINGEN"]
[null,"7054","AZIVO","7054 AZIVO"]
[null,"7084","DE FRIESLAND","7084 DE FRIESLAND"]
[null,"7085","ZORG EN ZEKERHEID","7085 ZORG EN ZEKERHEID"]
[null,"7095","VGZ ZORGVERZEKERAAR","7095 VGZ ZORGVERZEKERAAR"]
[null,"7119","CZ","7119 CZ"]
[null,"9015","VGZ VOOR DE ZORG","9015 VGZ VOOR DE ZORG"]